Workbook

Sheet Instructions

Sheet Index
B7: TABLE OF CONTENTS
B9: Sheets | I9: Content
B11: Input Spreadsheets
B12: Pop Data Entry | I12: Data for building assumptions and basic algorithms
B14: Characteristics of Target Pop | I14: Data entry for completing detailed demographic and morbidity-based assumptions
B16: Logistics Data Entry | I16: Data entry for capturing consumption quantities by commodity
B18: Results for Forecasting Emergency Reproductive Kits
B19: Results Dashboard | I19: Summary results for resource mobilization and advocacy
B21: Advocacy Dashboard | I21: Summary of direct beneficiaries
B23: Advocacy Dashboard | I23: Summary of clients impacted by kit
B28: Commodity and Cost Estimates | I28: Detailed information and assumptions regarding dosage, treatment duration, and intended population for products within each kit
B30: Per-Item Estimates | I30: Recommended requirements forecast figures for each unique item across the kits, based on the demographic forecast
B31: Tables for Reference Data Sources
B32: Inter-Agency Reproductive Health Kits for Crisis Situations | I32: Inter-Agency Reproductive Health Kits for Crisis Situations Manual 5th edition, 2011
B34: Baseline costs of kits | I34: Acquisition costs of kits and related health commodities (data provided by suppliers)
B36: Guidelines on Data Issues in Humanitarian Crisis Situations | I36: Guidelines on data issues in humanitarian crisis, 2010
B38: WHO Best Practices Treatment Guidelines | I38: WHO Best Practices Treatment Guidelines, 2003
B40: UNOCHA | I40: Population estimates of those affected by humanitarian crisis
B43: Supply Chain Handbook | I43: See Chapter 5 -- Quantification for explanations of the types of logistics data (consumption and issues data) relevant for forecasting

Sheet Pop Data Entry
C8: Target Population | D8: 0-3 Months | F8: 3-6 Months | H8: 6-9 Months
C9: Estimated target population affected by humanitarian disasters
C11: Key inputs | D11: Default | G11: Country-Specific Figures
D12: 0-3 Months | E12: 3-6 Months | F12: 6-9 Months | G12: 0-3 Months | H12: 3-6 Months | I12: 6-9 Months
C13: Population served by one community facility | D13: 10000 | E13: 10000 | F13: 10000 | G13: 8000 | H13: 8000 | I13: 8000
C14: Population served by one primary health care center | D14: 30000 | E14: 30000 | F14: 30000 | G14: 50000 | H14: 50000 | I14: 50000
C15: Population served by one hospital or referral care facility | D15: 150000 | E15: 150000 | F15: 150000 | G15: 30000 | H15: 100000 | I15: 15000
C16: =IF(G13="", "Number of community and primary health care facilities to be equipped for RH response per " & D13 & " population", "Number of community and primary health care facilities to be equipped for RH response per " & G13 & " population") -> Number of community and primary health care facilities to be equipped for RH response per 8000 population | D16: =IFERROR($D$9/D13,"") -> 0 | E16: =IFERROR($F$9/E13,"") -> 0 | F16: =IFERROR($H$9/F13,"") -> 0 | G16: =IFERROR($D$9/G13,"") -> 0 | H16: =IFERROR($F$9/H13,"") -> 0 | I16: =IFERROR($H$9/I13,"") -> 0
C17: =IF(G14="", "Number of health centers to be equipped for RH response per " & D14 & " population", "Number of health centers to be equipped for RH response per " & G14 & " population") -> Number of health centers to be equipped for RH response per 50000 population | D17: =IFERROR($D$9/D14,"") -> 0 | E17: =IFERROR($F$9/E14,"") -> 0 | F17: =IFERROR($H$9/F14,"") -> 0 | G17: =IFERROR($D$9/G14,"") -> 0 | H17: =IFERROR($F$9/H14,"") -> 0 | I17: =IFERROR($H$9/I14,"") -> 0
C18: =IF(G15="", "Number of referral hospitals to be equipped for RH response per " & D15 & " population", "Number of referral hospitals to be equipped for RH response per " & G15 & " population") -> Number of referral hospitals to be equipped for RH response per 30000 population | D18: =IFERROR($D$9/D15,"") -> 0 | E18: =IFERROR($F$9/E15,"") -> 0 | F18: =IFERROR($H$9/F15,"") -> 0 | G18: =IFERROR($D$9/G15,"") -> 0 | H18: 0 | I18: 0
C19: Duration of kit use (in years) | D19: =3/12 -> 0.25 | E19: 0.25 | F19: 0.25 | G19: 0.25 | H19: 0.25 | I19: 0.25

Sheet Characteristics of Target Pop
B6: Default Figures | C6: Estimates using default figures | F6: Country- specific figures | G6: Estimates using country-specific figures | J6: Units
C7: 0-3 Months | D7: 3-6 Months | E7: 6-9 Months | G7: 0-3 Months | H7: 3-6 Months | I7: 6-9 Months
A8: Total Population | C8: ='Pop Data Entry'!D9 -> 0 | D8: ='Pop Data Entry'!F9 -> 0 | E8: ='Pop Data Entry'!H9 -> 0 | G8: ='Pop Data Entry'!D9 -> 0 | H8: ='Pop Data Entry'!F9 -> 0 | I8: ='Pop Data Entry'!H9 -> 0 | J8: persons
A9: Crude Birth Rate (per 1,000 population) | B9: 40 | J9: persons per 1,000 population
A10: Contraceptive Prevalence Rate (%) | B10: 0.15 | J10: percent
A11: STI Prevalence Rate (% of adults) | B11: 0.05 | J11: percent
A12: Maternal Mortality Ratio (per 100,000 live births) | B12: - | J12: persons per 100,000 live births
A13: Population Figures - Delivery Services
A14: Live births per year | C14: =C8*(B9/1000) -> 0 | D14: =D8*(B9/1000) -> 0 | E14: =E8*(B9/1000) -> 0 | G14: =G8* IF(G9>0,(G9/1000),B9/1000) -> 0 | H14: =H8* IF(H9>0,(H9/1000),B9/1000) -> 0 | I14: =I8* IF(I9>0,(I9/1000),B9/1000) -> 0 | J14: births
A15: Live births per month | C15: =C14/12 -> 0 | D15: =D14/12 -> 0 | E15: 0 | G15: 0 | H15: 0 | I15: 0 | J15: births
A16: Live births in the next 3 months | C16: =C15*3 -> 0 | D16: =D15*3 -> 0 | E16: =E15*3 -> 0 | G16: =G15*3 -> 0 | H16: =H15*3 -> 0 | I16: =I15*3 -> 0 | J16: births
A17: Number of currently pregnant women (excluding the additional 15% of pregnancies that will end in miscarriage) | C17: =C15*9 -> 0 | D17: =D15*9 -> 0 | E17: 0 | G17: 0 | H17: 0 | I17: 0 | J17: pregnant women
A18: Estimated number of pregnancies that end in miscarriage or unsafe abortion in one year (estimated as an additional percentage of live births) | B18: 0.15 | C18: =C14*B18 -> 0 | D18: =D14*B18 -> 0 | E18: =E14*B18 -> 0 | G18: =G14*IF(F18>0, F18, B18) -> 0 | H18: =H14*IF(F18>0, F18, B18) -> 0 | I18: =I14*IF(F18>0, F18, B18) -> 0 | J18: pregnancies
A19: Estimated number of pregnancies that end in miscarriage or unsafe abortion in one month (estimated as an additional percentage of live births) | B19: 0.15 | C19: =C15*B19 -> 0 | D19: =D15*B19 -> 0 | E19: =E15*B19 -> 0 | G19: =G15*IF($F$19>0, $F$19, $B$19) -> 0 | H19: =H15*IF($F$19>0, $F$19, $B$19) -> 0 | I19: =I15*IF($F$19>0, $F$19, $B$19) -> 0 | J19: pregnancies
A20: Estimated number of pregnancies that end in miscarriage or stillbirth in the next 3 months (estimates as an additional percentage of live births) | C20: =C19*3 -> 0 | D20: =D19*3 -> 0 | E20: =E19*3 -> 0 | G20: =G19*3 -> 0 | H20: =H19*3 -> 0 | I20: =I19*3 -> 0 | J20: pregnancies
A21: Estimated total number of pregnancies in one year (including live births plus those that will end in miscarriage or stillbirth | C21: =C14+C18 -> 0 | D21: =D14+D18 -> 0 | E21: =E14+E18 -> 0 | G21: =G14+G18 -> 0 | H21: =H14+H18 -> 0 | I21: =I14+I18 -> 0 | J21: pregnancies
A22: Estimated number of currently pregnant women (women who are pregnant in any given month) (weighted estimate of fullterm pregnancies and those that terminate early every month) | B22: 0.7 | C22: =C21*B22 -> 0 | D22: =D21*B22 -> 0 | E22: =E21*B22 -> 0 | G22: =G21*IF($F$22>0, $F$22, $B$22) -> 0 | H22: =H21*IF($F$22>0, $F$22, $B$22) -> 0 | I22: =I21*IF($F$22>0, $F$22, $B$22) -> 0 | J22: pregnant women
A23: Number of women who will experience obstetric complications at delivery in one month | B23: 0.15 | C23: =C15*B23 -> 0 | D23: =D15*B23 -> 0 | E23: =E15*B23 -> 0 | G23: =G15*IF($F$23>0, $F$23, $B$23) -> 0 | H23: =H15*IF($F$23>0, $F$23, $B$23) -> 0 | I23: =I15*IF($F$23>0, $F$23, $B$23) -> 0 | J23: pregnant women
A24: Number women who will experience obstetric complications at delivery in the next 3 months | B24: 0.15 | C24: =C17*B24 -> 0 | D24: =D17*B24 -> 0 | E24: =E17*B24 -> 0 | G24: =G16*IF($F$24>0, $F$24, $B$24) -> 0 | H24: =H16*IF($F$24>0, $F$24, $B$24) -> 0 | I24: =I16*IF($F$24>0, $F$24, $B$24) -> 0 | J24: pregnant women
A25: Number of currently pregnant women who will have access and be able to give birth in a health center in one month | B25: 0.15 | C25: =(C14*B25)/12 -> 0 | D25: =(D14*B25)/12 -> 0 | E25: =(E14*B25)/12 -> 0 | G25: =(G14*IF($F$25>0,$F$25,$B$25))/12 -> 0 | H25: =(H14*IF($F$25>0,$F$25,$B$25))/12 -> 0 | I25: =(I14*IF($F$25>0,$F$25,$B$25))/12 -> 0 | J25: pregnant women
A26: Number of currently pregnant women who will have access and be able to give birth in a health center in 3 months | B26: 0.15 | C26: =(C14*B26)/4 -> 0 | D26: =(D14*B26)/4 -> 0 | E26: =(E14*B26)/4 -> 0 | G26: =G14*IF($F$26>0, $F$26, $B$26)/4 -> 0 | H26: =H14*IF($F$26>0, $F$26, $B$26)/4 -> 0 | I26: =I14*IF($F$26>0, $F$26, $B$26)/4 -> 0 | J26: pregnant women
A27: Number of currently pregnant women who deliver who will need suturing of vaginal tears in one month | C27: =C28/9 -> 0 | D27: =D28/9 -> 0 | E27: 0 | G27: 0 | H27: 0 | I27: 0 | J27: pregnant women
A28: Number of currently pregnant women who deliver who will need suturing of vaginal tears in the next 9 months | B28: 0.15 | C28: =C17*B28 -> 0 | D28: =D17*B28 -> 0 | E28: =E17*B28 -> 0 | G28: =G17*IF(F28>0, F28, B28) -> 0 | H28: =H17*IF(F28>0, F28, B28) -> 0 | I28: =I17*IF(F28>0, F28, B28) -> 0 | J28: pregnant women
A29: Number of deliveries requiring a c-section in one month (Min) | B29: 0.05 | C29: =C15*B29 -> 0 | D29: =D15*B29 -> 0 | E29: =E15*B29 -> 0 | G29: =G15*IF($F$29>0, $F$29, $B$29) -> 0 | H29: =H15*IF($F$29>0, $F$29, $B$29) -> 0 | I29: =I15*IF($F$29>0, $F$29, $B$29) -> 0 | J29: deliveries
A30: Number of deliveries requiring a c-section in the next 3 months (Min) | C30: =C29*3 -> 0 | D30: =D29*3 -> 0 | E30: =E29*3 -> 0 | G30: =G29*3 -> 0 | H30: =H29*3 -> 0 | I30: =I29*3 -> 0 | J30: deliveries
A31: Number of deliveries requiring a c-section in one month (Max) | B31: 0.15 | C31: =C15*B31 -> 0 | D31: =D15*B31 -> 0 | E31: =E15*B31 -> 0 | G31: =G15*IF($F$31>0, $F$31, $B$31) -> 0 | H31: =H15*IF($F$31>0, $F$31, $B$31) -> 0 | I31: =I15*IF($F$31>0, $F$31, $B$31) -> 0 | J31: deliveries
A32: Number of deliveries requiring a c-section in the next 3 months (Max) | C32: =C31*3 -> 0 | D32: =D31*3 -> 0 | E32: =E31*3 -> 0 | G32: =G31*3 -> 0 | H32: =H31*3 -> 0 | I32: =I31*3 -> 0 | J32: deliveries
A33: Number of women requiring emergency care | B33: 0.005 | C33: =C14*$B$33 -> 0 | D33: =D14*$B$33 -> 0 | E33: =E14*$B$33 -> 0 | G33: =G14*IF(F33>0, F33, B33) -> 0 | H33: =H14*IF(F33>0, F33, B33) -> 0 | I33: =I14*IF(F33>0, F33, B33) -> 0 | J33: pregnant women
A34: Number of maternal deaths averted in the next 3 months if MISP is fully implemented and all pregnant women have access to EmOC services | B34: 1 | C34: =(C12/100000)*(C14/4) -> 0 | D34: =(D12/100000)*(D14/4) -> 0 | E34: =(E12/100000)*(E14/4) -> 0 | G34: =(G12/100000)*(G14/4) -> 0 | H34: =(H12/100000)*(H14/4) -> 0 | I34: =(I12/100000)*(I14/4) -> 0 | J34: deaths
A35: Number of women who will request an induced abortion per quarter (out of WRA) per year (where legal) | B35: 0.03733 | C35: =C37*$B$35/4 -> 0 | D35: =D37*$B$35/4 -> 0 | E35: =E37*$B$35/4 -> 0 | G35: =G37*$F$35/4 -> 0 | H35: =H37*$F$35/4 -> 0 | I35: =I37*$F$35/4 -> 0 | J35: women
A36: Population Figures - Family Planning
A37: Number of women of reproductive age (WRA) | B37: 0.25 | C37: =C8*B37 -> 0 | D37: =D8*B37 -> 0 | E37: =E8*B37 -> 0 | G37: =G8*IF(F37>0, F37, B37) -> 0 | H37: =H8*IF(F37>0, F37, B37) -> 0 | I37: =I8*IF(F37>0, F37, B37) -> 0 | J37: WRA
A38: Number of sexually active men in the population | B38: 0.2 | C38: =C8*B38 -> 0 | D38: =D8*B38 -> 0 | E38: =E8*B38 -> 0 | G38: =G8*IF(F38>0, F38, B38) -> 0 | H38: =H8*IF(F38>0, F38, B38) -> 0 | I38: =I8*IF(F38>0, F38, B38) -> 0 | J38: men
A39: Number of adults with STIs | C39: =(C8*0.5)*$B$11 -> 0 | D39: =(D8*0.5)*$B$11 -> 0 | E39: =(E8*0.5)*$B$11 -> 0 | G39: =(G8*0.5)*G11 -> 0 | H39: =(H8*0.5)*H11 -> 0 | I39: =(I8*0.5)*I11 -> 0 | J39: adults
A40: Number of children with STIs | B40: 0.0025 | C40: =C8*$B$40 -> 0 | D40: =D8*$B$40 -> 0 | E40: =E8*$B$40 -> 0 | G40: =G8*IF(F40>0, F40, B40) -> 0 | H40: =H8*IF(F40>0, F40, B40) -> 0 | I40: =I8*IF(F40>0, F40, B40) -> 0 | J40: children
A41: Number of children with STIs under 30 kg | B41: 0.4 | C41: =C40*$B$41 -> 0 | D41: =D40*$B$41 -> 0 | E41: =E40*$B$41 -> 0 | G41: =$G$40*IF(F41>0, F41, B41) -> 0 | H41: =$H$40*IF(F41>0, F41, B41) -> 0 | I41: =$I$40*IF(F41>0, F41, B41) -> 0 | J41: children
A42: Number of children with STIs above 30 kg | B42: 0.6 | C42: =C40*$B$42 -> 0 | D42: =D40*$B$42 -> 0 | E42: =E40*$B$42 -> 0 | G42: =$G$40*IF(F42>0, F42, B42) -> 0 | H42: =$H$40*IF(F42>0, F42, B42) -> 0 | I42: =$I$40*IF(F42>0, F42, B42) -> 0 | J42: children
A43: Number of adults with Genital Ulcer Syndrome | B43: 0.2 | C43: =C39*$B$43 -> 0 | D43: =D39*$B$43 -> 0 | E43: =E39*$B$43 -> 0 | G43: =$G$39*IF(F43>0, F43, B43) -> 0 | H43: =$H$39*IF(F43>0,F43,B43) -> 0 | I43: =$I$39*IF(F43>0, F43, B43) -> 0 | J43: adults
A44: Number of adults with Urethral Discharge Syndrome | B44: 0.5 | C44: =C39*$B$44 -> 0 | D44: =D39*$B$44 -> 0 | E44: =E39*$B$44 -> 0 | G44: =$G$39*IF(F44>0, F44, B44) -> 0 | H44: =$H$39*IF(F44>0,F44,B44) -> 0 | I44: =$I$39*IF(F44>0, F44, B44) -> 0 | J44: adults
A45: Number of adults with vaginal discharge syndrome | B45: 0.3 | C45: =C39*$B$45 -> 0 | D45: =D39*$B$45 -> 0 | E45: =E39*$B$45 -> 0 | G45: =$G$39*IF(F45>0, F45, B45) -> 0 | H45: =$H$39*IF(F45>0,F45,B45) -> 0 | I45: =$I$39*IF(F45>0, F45, B45) -> 0 | J45: adults
A46: Number of sexually active men who use condoms | B46: 0.2 | C46: =C38*B46 -> 0 | D46: =D38*B46 -> 0 | E46: =E38*B46 -> 0 | G46: =G38*IF(F46>0, F46, B46) -> 0 | H46: =H38*IF(F46>0, F46, B46) -> 0 | I46: =I38*IF(F46>0, F46, B46) -> 0 | J46: men
A47: Number of WRA who use modern contraceptives | C47: =C37*B10 -> 0 | D47: =D37*B10 -> 0 | E47: =E37*B10 -> 0 | G47: =G37*IF(G10>0,G10,$B$10) -> 0 | H47: =H37*IF(H10>0,H10,$B$10) -> 0 | I47: =I37*IF(I10>0,I10,$B$10) -> 0 | J47: WRA
A48: Number of WRA who use female condoms | B48: 0.01 | C48: =C37*B48 -> 0 | D48: =D37*B48 -> 0 | E48: =E37*B48 -> 0 | G48: =G37*IF(F48<>"", F48, B48) -> 0 | H48: =H37*IF(F48>0, F48, B48) -> 0 | I48: =I47*IF(F48>0, F48, B48) -> 0 | J48: WRA
A49: Number of WRA using modern methods of contraception who use combined oral contraceptive pills | B49: 0.3 | C49: =C47*B49 -> 0 | D49: =D47*B49 -> 0 | E49: =E47*B49 -> 0 | G49: =$G$47*IF(F49>0, F49, B49) -> 0 | H49: =$H$47*IF(F49>0, F49, B49) -> 0 | I49: =$I$47*IF(F49>0, F49, B49) -> 0 | J49: WRA
A50: Number of WRA using modern methods of contraception who use injectable contraception | B50: 0.559 | C50: =C47*B50 -> 0 | D50: =D47*B50 -> 0 | E50: =E47*B50 -> 0 | G50: =$G$47*IF(F50>0, F50, B50) -> 0 | H50: =$H$47*IF(F50>0, F50, B50) -> 0 | I50: =$I$47*IF(F50>0, F50, B50) -> 0 | J50: WRA
A51: Number of WRA using progestin-only pills (POP) | B51: 0.05333333333 | C51: =C47*B51 -> 0 | D51: =D47*B51 -> 0 | E51: =E47*B51 -> 0 | G51: =$G$47*IF(F51>0, F51, B51) -> 0 | H51: =$H$47*IF(F51>0, F51, B51) -> 0 | I51: =$I$47*IF(F51>0, F51, B51) -> 0 | J51: WRA
A52: Number of WRA using emergency contraception, monthly | B52: 0.053333333 | C52: =C47*$B$52 -> 0 | D52: =D47*$B$52 -> 0 | E52: =E47*$B$52 -> 0 | G52: =$G$47*IF(F52>0, F52, B52) -> 0 | H52: =$H$47*IF(F52>0, F52, B52) -> 0 | I52: =$I$47*IF(F52>0, F52, B52) -> 0 | J52: WRA
A53: Number of WRA using modern methods of contraception who use an IUD | B53: 0.0533333333 | C53: =C47*B53 -> 0 | D53: =D47*B53 -> 0 | E53: =E47*B53 -> 0 | G53: =$G$47*IF(F53>0, F53, B53) -> 0 | H53: =$H$47*IF(F53>0, F53, B53) -> 0 | I53: =$I$47*IF(F53>0, F53, B53) -> 0 | J53: WRA
A54: Number of cases of sexual violence (percent of WRA at risk of rape) | B54: 0.02 | C54: =C37*B54 -> 0 | D54: =D37*B54 -> 0 | E54: =E37*B54 -> 0 | G54: =G37*IF(F54>0, F54, B54) -> 0 | H54: =H37*IF(F54>0, F54, B54) -> 0 | I54: =I37*IF(F54>0, F54, B54) -> 0 | J54: WRA
A55: Number of cases of sexual violence for children | B55: 0.001 | C55: =C8*$B$55 -> 0 | D55: =D8*$B$55 -> 0 | E55: =E8*$B$55 -> 0 | G55: =G8*IF(F55>0, F55, $B$55) -> 0 | H55: =H8*IF(F55>0, F55, $B$55) -> 0 | I55: =I8*IF(F55>0, F55, $B$55) -> 0 | J55: children
A56: Number of women who will present for PEP | B56: 0.6 | C56: =C54*$B$56 -> 0 | D56: =D54*$B$56 -> 0 | E56: =E54*$B$56 -> 0 | G56: =G54*IF(F56>0, F56, B56) -> 0 | H56: =H54*IF(F56>0, F56, B56) -> 0 | I56: =I54*IF(F56>0, F56, B56) -> 0 | J56: WRA
A57: Number of children who will present for PEP | B57: 0.8 | C57: =C55*$B$57 -> 0 | D57: =D55*$B$57 -> 0 | E57: =E55*$B$57 -> 0 | G57: =G55*IF(F57>0, F57, B57) -> 0 | H57: =H55*IF(F57>0, F57, B57) -> 0 | I57: =I55*IF(F57>0, F57, B57) -> 0 | J57: children
A58: Default figure source: Inter-agency Reproductive Health Kit Field Manual, 2011

Sheet Logistics Data Entry
A1: KIT INFORMATION | G1: Historical Consumption / Quantity Issued | I1: Default Quarterly Growth Factor (Manually Adjust if Needed) | J1: Commodity Quantity Forecast | N1: KIT ESTIMATES | Q1: COST ESTIMATE PER KIT
A2: KIT category | B2: Forecast Basis | C2: Commodity | D2: Kit application | E2: Duration of kit use (in years) | F2: Formulation (Unit) | G2: Three Months Prior | H2: Most Recent Three Months | J2: Now - 3 Months | K2: 3 - 6 Months | L2: 6 - 9 Months | M2: Items per kit | N2: Kit Estimate Now - 3 Months | O2: Kit Estimate 3 - 6 Months | P2: Kit Estimate 6 - 9 Months | Q2: Product Cost Year 1 | R2: Product Cost Year 2 | S2: Product Cost Year 3
A3: KIT 1A | D3: Male Condoms
A4: KIT 1A | B4: Commodity Consumption | C4: Male condoms | E4: ='Pop Data Entry'!$D$19 -> 0.25 | F4: condom | I4: =IFERROR(((H4-G4)/G4),0) -> 0 | J4: =H4*(1+I4) -> 0 | K4: =J4*(1+I4) -> 0 | L4: =K4*(1+I4) -> 0 | M4: 17280 | N4: =ROUNDUP(((J4)/$M4),0) -> 0 | O4: =ROUNDUP(((K4)/$M4),0) -> 0 | P4: =ROUNDUP(((L4)/$M4),0) -> 0 | Q4: =N4*'Product cost'!#REF! ->  | R4: =O4*'Product cost'!#REF! ->  | S4: =P4*'Product cost'!#REF! -> 
A5: KIT 1A | B5: Kits Issued to SDPs | I5: =IFERROR(((H5-G5)/G5),0) -> 0 | J5: =H5*(1+I5) -> 0 | K5: =J5*(1+I5) -> 0 | L5: =K5*(1+I5) -> 0 | N5: =J5 -> 0 | O5: =K5 -> 0 | P5: =L5 -> 0 | Q5: =N5*'Product cost'!#REF! ->  | R5: =O5*'Product cost'!#REF! ->  | S5: =P5*'Product cost'!#REF! -> 
A6: KIT 1B (Complementary Kit) | D6: Female Condoms
A7: KIT 1B (Complementary Kit) | B7: Commodity Consumption | C7: Female condoms | E7: ='Pop Data Entry'!$D$19 -> 0.25 | F7: condom | I7: =IFERROR(((H7-G7)/G7),0) -> 0 | J7: =H7*(1+I7) -> 0 | K7: =J7*(1+I7) -> 0 | L7: =K7*(1+I7) -> 0 | M7: 540 | N7: =ROUNDUP(((J7)/$M7),0) -> 0 | O7: =ROUNDUP(((K7)/$M7),0) -> 0 | P7: =ROUNDUP(((L7)/$M7),0) -> 0 | Q7: =N7*'Product cost'!#REF! ->  | R7: =O7*'Product cost'!#REF! ->  | S7: =P7*'Product cost'!#REF! -> 
A8: KIT 1B (Complementary Kit) | B8: Kits Issued to SDPs | I8: =IFERROR(((H8-G8)/G8),0) -> 0 | J8: =H8*(1+I8) -> 0 | K8: =J8*(1+I8) -> 0 | L8: =K8*(1+I8) -> 0 | N8: =J8 -> 0 | O8: =K8 -> 0 | P8: =L8 -> 0 | Q8: =N8*'Product cost'!#REF! ->  | R8: =O8*'Product cost'!#REF! ->  | S8: =P8*'Product cost'!#REF! -> 
A9: KIT 2A | D9: Clean Delivery
A10: Kit 2A | B10: Commodity Consumption | C10: Bag, plastic, approximately 18 x 28 cm, snap-lock fastening, for disposal of placenta | D10: Part A: Individual delivery | E10: ='Pop Data Entry'!$D$19 -> 0.25 | F10: bag | I10: =IFERROR(((H10-G10)/G10),0) -> 0 | J10: =H10*(1+I10) -> 0 | K10: =J10*(1+I10) -> 0 | L10: =K10*(1+I10) -> 0 | M10: 200 | N10: =ROUNDUP(((J10)/$M10),0) -> 0 | O10: =ROUNDUP(((K10)/$M10),0) -> 0 | P10: =ROUNDUP(((L10)/$M10),0) -> 0 | Q10: =MAX(N10:N17)*'Product cost'!#REF! ->  | R10: =MAX(O10:O17)*'Product cost'!#REF! ->  | S10: =MAX(P10:P17)*'Product cost'!#REF! -> 
A11: Kit 2A | B11: Commodity Consumption | C11: Toilet soap, bar, approx.110 g, wrapped | E11: ='Pop Data Entry'!$D$19 -> 0.25 | F11: bar | I11: 0 | J11: 0 | K11: 0 | L11: 0 | M11: 200 | N11: 0 | O11: 0 | P11: 0
A12: Kit 2A | B12: Commodity Consumption | C12: Drawsheet, plastic, approximately 100 x 100 cm | E12: ='Pop Data Entry'!$D$19 -> 0.25 | F12: sheet | I12: 0 | J12: 0 | K12: 0 | L12: 0 | M12: 200 | N12: 0 | O12: 0 | P12: 0
A13: Kit 2A | B13: Commodity Consumption | C13: Scissors, umbilical cord, round blades, b/b, sterile, disposable | E13: ='Pop Data Entry'!$D$19 -> 0.25 | F13: blade | I13: 0 | J13: 0 | K13: 0 | L13: 0 | M13: 200 | N13: 0 | O13: 0 | P13: 0
A14: Kit 2A | B14: Commodity Consumption | C14: Tape, umbilical, 3 mm x 15 cm | E14: ='Pop Data Entry'!$D$19 -> 0.25 | F14: tape | I14: 0 | J14: 0 | K14: 0 | L14: 0 | M14: 600 | N14: 0 | O14: 0 | P14: 0
A15: Kit 2A | B15: Commodity Consumption | C15: Cotton cloth/towel, ‘tetra’, approx. 90 g/m2, approx. 100 x 100 cm | E15: ='Pop Data Entry'!$D$19 -> 0.25 | F15: towel | I15: 0 | J15: 0 | K15: 0 | L15: 0 | M15: 400 | N15: 0 | O15: 0 | P15: 0
A16: Kit 2A | B16: Commodity Consumption | C16: Gloves, examination, medium, single use, box of 100 | E16: ='Pop Data Entry'!$D$19 -> 0.25 | F16: gloves | I16: 0 | J16: 0 | K16: 0 | L16: 0 | M16: 400 | N16: 0 | O16: 0 | P16: 0
A17: Kit 2A | B17: Commodity Consumption | C17: Pictorial instruction sheet | E17: ='Pop Data Entry'!$D$19 -> 0.25 | F17: sheet | I17: 0 | J17: 0 | K17: 0 | L17: 0 | M17: 200 | N17: 0 | O17: 0 | P17: 0
A18: Kit 2A | B18: Kits Issued to SDPs | I18: 0 | J18: 0 | K18: 0 | L18: 0 | N18: =J18 -> 0 | O18: =K18 -> 0 | P18: =L18 -> 0 | Q18: =N18*'Product cost'!#REF! ->  | R18: =O18*'Product cost'!#REF! ->  | S18: =P18*'Product cost'!#REF! -> 
A19: Chlorhexidine for cord care (Bulk) 2A Complement | D19: Complement to Kit 2A
A20: Chlorhexidine for cord care (Bulk) 2A Complement | B20: Commodity Consumption | C20: Chlorhexidine Di-gluconate 7.1%, gel, tube, 10g | I20: =IFERROR(((H20-G20)/G20),0) -> 0 | J20: =H20*(1+I20) -> 0 | K20: =J20*(1+I20) -> 0 | L20: =K20*(1+I20) -> 0 | M20: 200 | N20: =ROUNDUP(((J20)/$M20),0) -> 0 | O20: =ROUNDUP(((K20)/$M20),0) -> 0 | P20: =ROUNDUP(((L20)/$M20),0) -> 0
A21: Chlorhexidine for cord care (Bulk) 2A Complement | B21: Kits Issued to SDPs | I21: =IFERROR(((H21-G21)/G21),0) -> 0 | J21: =H21*(1+I21) -> 0 | K21: =J21*(1+I21) -> 0 | L21: =K21*(1+I21) -> 0 | N21: =J21 -> 0 | O21: =K21 -> 0 | P21: =L21 -> 0
A22: Misoprostol (Bulk) 2A Complement | D22: Complement to Kit 2A
A23: Misoprostol (Bulk) 2A Complement | B23: Commodity Consumption | C23: Misoprostol, tablet, 0.2 mg (200 mcg) | I23: =IFERROR(((H23-G23)/G23),0) -> 0 | J23: =H23*(1+I23) -> 0 | K23: =J23*(1+I23) -> 0 | L23: =K23*(1+I23) -> 0 | M23: 600 | N23: =ROUNDUP(((J23)/$M23),0) -> 0 | O23: =ROUNDUP(((K23)/$M23),0) -> 0 | P23: =ROUNDUP(((L23)/$M23),0) -> 0
A24: Misoprostol (Bulk) 2A Complement | B24: Kits Issued to SDPs | I24: =IFERROR(((H24-G24)/G24),0) -> 0 | J24: =H24*(1+I24) -> 0 | K24: =J24*(1+I24) -> 0 | L24: =K24*(1+I24) -> 0 | N24: =J24 -> 0 | O24: =K24 -> 0 | P24: =L24 -> 0
A25: KIT 2B | D25: Clean Delivery
A26: Kit 2B | B26: Commodity Consumption | C26: Bag, shoulder, UNFPA logo, vinyl, approx. 360 x 230 x 610 mm | D26: Part B: For use by birth attendants | E26: ='Pop Data Entry'!$D$19 -> 0.25 | F26: bag | I26: =IFERROR(((H26-G26)/G26),0) -> 0 | J26: =H26*(1+I26) -> 0 | K26: =J26*(1+I26) -> 0 | L26: =K26*(1+I26) -> 0 | M26: 5 | N26: =ROUNDUP(((J26)/$M26),0) -> 0 | O26: 0 | P26: 0 | Q26: =MAX(N26:N30)*'Product cost'!#REF! ->  | R26: =MAX(O26:O30)*'Product cost'!#REF! ->  | S26: =MAX(P26:P30)*'Product cost'!#REF! -> 
A27: Kit 2B | B27: Commodity Consumption | C27: Gloves, examination, medium, single use, box of 100 | E27: ='Pop Data Entry'!$D$19 -> 0.25 | F27: gloves | I27: 0 | J27: 0 | K27: 0 | L27: 0 | M27: 5 | N27: 0 | O27: 0 | P27: 0
A28: Kit 2B | B28: Commodity Consumption | C28: Flashlight, LED, re-chargeable | E28: ='Pop Data Entry'!$D$19 -> 0.25 | F28: flashlight | I28: 0 | J28: 0 | K28: 0 | L28: 0 | M28: 5 | N28: 0 | O28: 0 | P28: 0
A29: Kit 2B | B29: Commodity Consumption | C29: Apron, protective, plastic, reusable | E29: ='Pop Data Entry'!$D$19 -> 0.25 | F29: apron | I29: 0 | J29: 0 | K29: 0 | L29: 0 | M29: 5 | N29: 0 | O29: 0 | P29: 0
A30: Kit 2B | B30: Commodity Consumption | C30: Poncho, wet-weather | E30: ='Pop Data Entry'!$D$19 -> 0.25 | F30: poncho | I30: 0 | J30: 0 | K30: 0 | L30: 0 | M30: 5 | N30: 0 | O30: 0 | P30: 0
A31: Kit 2B | B31: Kits Issued to SDPs | I31: 0 | J31: 0 | K31: 0 | L31: 0 | N31: =J31 -> 0 | O31: =K31 -> 0 | P31: =L31 -> 0 | Q31: =N31*'Product cost'!#REF! ->  | R31: =O31*'Product cost'!#REF! ->  | S31: =P31*'Product cost'!#REF! -> 
A32: KIT 3 | D32: Post Rape Treatment
A33: Kit 3 | B33: Commodity Consumption | C33: Levonorgestrel, tablet, 1.5 mg, (treatment: single dose) | E33: ='Pop Data Entry'!$D$19 -> 0.25 | F33: tablet | I33: =IFERROR(((H33-G33)/G33),0) -> 0 | J33: =H33*(1+I33) -> 0 | K33: =J33*(1+I33) -> 0 | L33: =K33*(1+I33) -> 0 | M33: 55 | N33: =ROUNDUP(((J33)/$M33),0) -> 0 | O33: =ROUNDUP(((K33)/$M33),0) -> 0 | P33: =ROUNDUP(((L33)/$M33),0) -> 0 | Q33: =MAX(N33:N44)*'Product cost'!#REF! ->  | R33: =MAX(O33:O44)*'Product cost'!#REF! ->  | S33: =MAX(P33:P44)*'Product cost'!#REF! -> 
A34: Kit 3 | B34: Commodity Consumption | C34: Azithromycin, capsule, 250 mg | E34: ='Pop Data Entry'!$D$19 -> 0.25 | F34: capsule | I34: 0 | J34: 0 | K34: 0 | L34: 0 | M34: 220 | N34: 0 | O34: 0 | P34: 0
A35: Kit 3 | B35: Commodity Consumption | C35: Azithromycin, oral suspension, 200 mg per 5 ml, bottle 15 ml | E35: ='Pop Data Entry'!$D$19 -> 0.25 | F35: suspension | I35: 0 | J35: 0 | K35: 0 | L35: 0 | M35: 5 | N35: 0 | O35: 0 | P35: 0
A36: Kit 3 | B36: Commodity Consumption | C36: Cefixime 200mg tablets | E36: ='Pop Data Entry'!$D$19 -> 0.25 | F36: tablet | I36: 0 | J36: 0 | K36: 0 | L36: 0 | M36: 110 | N36: 0 | O36: 0 | P36: 0
A37: Kit 3 | B37: Commodity Consumption | C37: Cefixime (as trihydrate), dry syrup for oral suspension, 100 mg/5 ml, bottle 30 ml | E37: ='Pop Data Entry'!$D$19 -> 0.25 | F37: syrup | I37: 0 | J37: 0 | K37: 0 | L37: 0 | M37: 10 | N37: 0 | O37: 0 | P37: 0
A38: Kit 3 | B38: Commodity Consumption | C38: Tenofovir (TDF) + lamivudine (3TC), tablets 300+300 mg (adults: 1 tab/day for 28 days) | I38: 0 | J38: 0 | K38: 0 | L38: 0 | M38: 900 | N38: 0 | O38: 0 | P38: 0
A39: Kit 3 | B39: Commodity Consumption | C39: Atazanavir (ATV) + ritonavir ®, tablets 300+100mg (adults: 1 tab/day for 28 days) | I39: 0 | J39: 0 | K39: 0 | L39: 0 | M39: 900 | N39: 0 | O39: 0 | P39: 0
A40: Kit 3 | B40: Commodity Consumption | C40: Zidovudine (AZT) + lamivudine (3TC), tablets 60+30 mg (children) | I40: 0 | J40: 0 | K40: 0 | L40: 0 | M40: 1440 | N40: 0 | O40: 0 | P40: 0
A41: Kit 3 | B41: Commodity Consumption | C41: Lopinavir (LPV) + ritonavir ®, tablets 200+50 mg (children) | I41: 0 | J41: 0 | K41: 0 | L41: 0 | M41: 240 | N41: 0 | O41: 0 | P41: 0
A42: Kit 3 | B42: Commodity Consumption | C42: Lopinavir (LPV) + ritonavir ®, tablets 100+25 mg (children) | I42: 0 | J42: 0 | K42: 0 | L42: 0 | M42: 180 | N42: 0 | O42: 0 | P42: 0
A43: Kit 3 | B43: Commodity Consumption | C43: Pregnancy test, temperature stable | E43: ='Pop Data Entry'!$D$19 -> 0.25 | F43: tablet | I43: 0 | J43: 0 | K43: 0 | L43: 0 | M43: 25 | N43: 0 | O43: 0 | P43: 0
A44: Kit 3 | B44: Commodity Consumption | C44: Bag (envelope), plastic, for drugs, approx. 10 x 15 cm, pack of 100 | E44: ='Pop Data Entry'!$D$19 -> 0.25 | F44: bag | I44: 0 | J44: 0 | K44: 0 | L44: 0 | M44: 100 | N44: 0 | O44: 0 | P44: 0
A45: Kit 3 | B45: Kits Issued to SDPs | I45: 0 | J45: 0 | K45: 0 | L45: 0 | N45: =J45 -> 0 | O45: =K45 -> 0 | P45: =L45 -> 0 | Q45: =N45*'Product cost'!#REF! ->  | R45: =O45*'Product cost'!#REF! ->  | S45: =P45*'Product cost'!#REF! -> 
A46: KIT 4 | D46: Oral and Injectable contraception
A47: Kit 4 | B47: Commodity Consumption | C47: Ethinylestradiol 0.03 mg, plus levonorgestrel, 0.15 mg, combined tablet, 1 strip for 1 cycle (113 women x 3 cycles + 10% wastage) | D47: Medicines | E47: ='Pop Data Entry'!$D$19 -> 0.25 | F47: strip | I47: =IFERROR(((H47-G47)/G47),0) -> 0 | J47: =H47*(1+I47) -> 0 | K47: =J47*(1+I47) -> 0 | L47: =K47*(1+I47) -> 0 | M47: 375 | N47: =ROUNDUP(((J47)/$M47),0) -> 0 | O47: =ROUNDUP(((K47)/$M47),0) -> 0 | P47: =ROUNDUP(((L47)/$M47),0) -> 0 | Q47: =MAX(N47:N55)*'Product cost'!#REF! ->  | R47: =MAX(O47:O55)*'Product cost'!#REF! ->  | S47: =MAX(P47:P55)*'Product cost'!#REF! -> 
A48: Kit 4 | B48: Commodity Consumption | C48: Levonorgestrel, tablet, 1.5 mg, (emergency contraception) | E48: ='Pop Data Entry'!$D$19 -> 0.25 | F48: tablet | I48: 0 | J48: 0 | K48: 0 | L48: 0 | M48: 60 | N48: 0 | O48: 0 | P48: 0
A49: Kit 4 | B49: Commodity Consumption | C49: Levonorgestrel, tablet, 0.03 mg, 1 strip for 1 cycle (20 women x 3 cycles) | E49: ='Pop Data Entry'!$D$19 -> 0.25 | F49: strip | I49: 0 | J49: 0 | K49: 0 | L49: 0 | M49: 60 | N49: 0 | O49: 0 | P49: 0
A50: Kit 4 | B50: Commodity Consumption | C50: Medroxyprogesterone acetate, depot injection, 150 mg/ml, 1-ml vial | E50: ='Pop Data Entry'!$D$19 -> 0.25 | F50: amp | I50: 0 | J50: 0 | K50: 0 | L50: 0 | M50: 300 | N50: 0 | O50: 0 | P50: 0
A51: Kit 4 | B51: Commodity Consumption | C51: Chlorhexidine gluconate, concentrated solution, 5%, bottle, 1000 ml | E51: ='Pop Data Entry'!$D$19 -> 0.25 | I51: 0 | J51: 0 | K51: 0 | L51: 0 | M51: 3 | N51: 0 | O51: 0 | P51: 0
A52: Kit 4 | B52: Commodity Consumption | C52: Syringe, luer, 2 ml, sterile, single use | D52: Medical device | E52: ='Pop Data Entry'!$D$19 -> 0.25 | I52: 0 | J52: 0 | K52: 0 | L52: 0 | M52: 300 | N52: 0 | O52: 0 | P52: 0
A53: Kit 4 | B53: Commodity Consumption | C53: Needle, luer, 21G (0.8 x 40 mm), sterile, single use | E53: ='Pop Data Entry'!$D$19 -> 0.25 | I53: 0 | J53: 0 | K53: 0 | L53: 0 | M53: 600 | N53: 0 | O53: 0 | P53: 0
A54: Kit 4 | B54: Commodity Consumption | C54: Cotton wool, 500-g roll, non-sterile | E54: ='Pop Data Entry'!$D$19 -> 0.25 | I54: 0 | J54: 0 | K54: 0 | L54: 0 | M54: 4 | N54: 0 | O54: 0 | P54: 0
A55: Kit 4 | B55: Commodity Consumption | C55: Safety box, for used syringes and needles, 5 litres | E55: ='Pop Data Entry'!$D$19 -> 0.25 | I55: 0 | J55: 0 | K55: 0 | L55: 0 | M55: 3 | N55: 0 | O55: 0 | P55: 0
A56: Kit 4 | B56: Kits Issued to SDPs | I56: 0 | J56: 0 | K56: 0 | L56: 0 | N56: =J56 -> 0 | O56: =K56 -> 0 | P56: =L56 -> 0 | Q56: =N56*'Product cost'!#REF! ->  | R56: =O56*'Product cost'!#REF! ->  | S56: =P56*'Product cost'!#REF! -> 
A57: DMPA-SC Kit 4 Complement (Bulk) | D57: Complement to Kit 4
A58: DMPA-SC Kit 4 Complement (Bulk) | B58: Commodity Consumption | C58: Depot-Medroxyprogesterone Acetate (DMPA-SC) (Sayana© Press) | I58: =IFERROR(((H58-G58)/G58),0) -> 0 | J58: =H58*(1+I58) -> 0 | K58: =J58*(1+I58) -> 0 | L58: =K58*(1+I58) -> 0 | M58: 300 | N58: =ROUNDUP(((J58)/$M58),0) -> 0 | O58: =ROUNDUP(((K58)/$M58),0) -> 0 | P58: =ROUNDUP(((L58)/$M58),0) -> 0
A59: DMPA-SC Kit 4 Complement (Bulk) | B59: Kits Issued to SDPs | I59: 0 | J59: 0 | K59: 0 | L59: 0 | N59: =J59 -> 0 | O59: =K59 -> 0 | P59: =L59 -> 0
A60: KIT 5 | D60: Sexually Transmitted Infections
A61: KIT 5 | B61: Commodity Consumption | C61: Benzathine benzyl penicillin, powder for solution for injection, vial (equivalent to 2.4 million units of benzyl penicillin) | D61: Genital Ulcer Syndrome | E61: ='Pop Data Entry'!$D$19 -> 0.25 | I61: =IFERROR(((H61-G61)/G61),0) -> 0 | J61: =H61*(1+I61) -> 0 | K61: =J61*(1+I61) -> 0 | L61: =K61*(1+I61) -> 0 | M61: 65 | N61: =ROUNDUP(((J61)/$M61),0) -> 0 | O61: =ROUNDUP(((K61)/$M61),0) -> 0 | P61: =ROUNDUP(((L61)/$M61),0) -> 0 | Q61: =MAX(N61:N83)*'Product cost'!#REF! ->  | R61: =MAX(O61:O83)*'Product cost'!#REF! ->  | S61: =MAX(P61:P83)*'Product cost'!#REF! -> 
A62: KIT 5 | B62: Commodity Consumption | C62: Benzathine benzyl penicillin, powder for solution for injection, vial (equivalent to 1.2 million units of benzyl penicillin) | E62: ='Pop Data Entry'!$D$19 -> 0.25 | I62: 0 | J62: 0 | K62: 0 | L62: 0 | M62: 10 | N62: 0 | O62: 0 | P62: 0
A63: KIT 5 | B63: Commodity Consumption | C63: Water for injection, 10-ml ampoule | E63: ='Pop Data Entry'!$D$19 -> 0.25 | I63: 0 | J63: 0 | K63: 0 | L63: 0 | M63: 75 | N63: 0 | O63: 0 | P63: 0
A64: KIT 5 | B64: Commodity Consumption | C64: Azithromycin, capsule, 250 mg | E64: ='Pop Data Entry'!$D$19 -> 0.25 | I64: 0 | J64: 0 | K64: 0 | L64: 0 | M64: 240 | N64: 0 | O64: 0 | P64: 0
A65: KIT 5 | B65: Commodity Consumption | C65: Azithromycin, oral suspension, 200 mg per 5 ml, bottle 15 ml | E65: ='Pop Data Entry'!$D$19 -> 0.25 | I65: 0 | J65: 0 | K65: 0 | L65: 0 | M65: 10 | N65: 0 | O65: 0 | P65: 0
A66: KIT 5 | B66: Commodity Consumption | C66: Chlorhexidine gluconate, concentrated solution, 5%, bottle, 1000 ml | E66: ='Pop Data Entry'!$D$19 -> 0.25 | I66: 0 | J66: 0 | K66: 0 | L66: 0 | M66: 3 | N66: 0 | O66: 0 | P66: 0
A67: KIT 5 | B67: Commodity Consumption | C67: Cefixime 200mg tablets | D67: Urethral Discharge Syndrome | E67: ='Pop Data Entry'!$D$19 -> 0.25 | I67: 0 | J67: 0 | K67: 0 | L67: 0 | M67: 270 | N67: 0 | O67: 0 | P67: 0
A68: KIT 5 | B68: Commodity Consumption | C68: Cefixime (as trihydrate), dry syrup for oral suspension, 100 mg/5 ml, bottle 30 ml | E68: ='Pop Data Entry'!$D$19 -> 0.25 | I68: 0 | J68: 0 | K68: 0 | L68: 0 | M68: 20 | N68: 0 | O68: 0 | P68: 0
A69: KIT 5 | B69: Commodity Consumption | C69: Azithromycin, capsule, 250 mg | E69: ='Pop Data Entry'!$D$19 -> 0.25 | I69: 0 | J69: 0 | K69: 0 | L69: 0 | M69: 540 | N69: 0 | O69: 0 | P69: 0
A70: KIT 5 | B70: Commodity Consumption | C70: Azithromycin, oral suspension, 200 mg per 5 ml, bottle 15 ml | E70: ='Pop Data Entry'!$D$19 -> 0.25 | I70: 0 | J70: 0 | K70: 0 | L70: 0 | M70: 10 | N70: 0 | O70: 0 | P70: 0
A71: KIT 5 | B71: Commodity Consumption | C71: Metronidazole, tablet, 250 mg (single dose of 8 tablets, or 2 tablets twice a day for 7 days) | D71: Vagina discharge syndrome | E71: ='Pop Data Entry'!$D$19 -> 0.25 | I71: 0 | J71: 0 | K71: 0 | L71: 0 | M71: 2000 | N71: 0 | O71: 0 | P71: 0
A72: KIT 5 | B72: Commodity Consumption | C72: Clotrimazole, vaginal tablet, 500 mg (single dose) | E72: ='Pop Data Entry'!$D$19 -> 0.25 | I72: 0 | J72: 0 | K72: 0 | L72: 0 | M72: 100 | N72: 0 | O72: 0 | P72: 0
A73: KIT 5 | B73: Commodity Consumption | C73: Cefixime 200mg tablets | E73: ='Pop Data Entry'!$D$19 -> 0.25 | I73: 0 | J73: 0 | K73: 0 | L73: 0 | M73: 200 | N73: 0 | O73: 0 | P73: 0
A74: KIT 5 | B74: Commodity Consumption | C74: Cefixime (as trihydrate), dry syrup for oral suspension, 100 mg/5 ml, bottle 30 ml | E74: ='Pop Data Entry'!$D$19 -> 0.25 | I74: 0 | J74: 0 | K74: 0 | L74: 0 | M74: 10 | N74: 0 | O74: 0 | P74: 0
A75: KIT 5 | B75: Commodity Consumption | C75: Azithromycin, capsule, 250 mg | E75: ='Pop Data Entry'!$D$19 -> 0.25 | I75: 0 | J75: 0 | K75: 0 | L75: 0 | M75: 340 | N75: 0 | O75: 0 | P75: 0
A76: KIT 5 | B76: Commodity Consumption | C76: Azithromycin, oral suspension, 200 mg per 5 ml, bottle 15 ml | E76: ='Pop Data Entry'!$D$19 -> 0.25 | I76: 0 | J76: 0 | K76: 0 | L76: 0 | M76: 10 | N76: 0 | O76: 0 | P76: 0
A77: KIT 5 | B77: Commodity Consumption | C77: Male condoms | D77: Condoms | E77: ='Pop Data Entry'!$D$19 -> 0.25 | I77: 0 | J77: 0 | K77: 0 | L77: 0 | M77: 2880 | N77: 0 | O77: 0 | P77: 0
A78: KIT 5 | B78: Commodity Consumption | C78: Female condoms | E78: ='Pop Data Entry'!$D$19 -> 0.25 | I78: 0 | J78: 0 | K78: 0 | L78: 0 | M78: 90 | N78: 0 | O78: 0 | P78: 0
A79: KIT 5 | B79: Commodity Consumption | C79: Syringe, luer, 5 ml, sterile, single use | D79: Medical devices, renewable | E79: ='Pop Data Entry'!$D$19 -> 0.25 | I79: 0 | J79: 0 | K79: 0 | L79: 0 | M79: 75 | N79: 0 | O79: 0 | P79: 0
A80: KIT 5 | B80: Commodity Consumption | C80: Needle, luer, 21G (0.8 x 40 mm), sterile, single use | E80: ='Pop Data Entry'!$D$19 -> 0.25 | I80: 0 | J80: 0 | K80: 0 | L80: 0 | M80: 150 | N80: 0 | O80: 0 | P80: 0
A81: KIT 5 | B81: Commodity Consumption | C81: Cotton wool, 500-g roll, non-sterile | E81: ='Pop Data Entry'!$D$19 -> 0.25 | I81: 0 | J81: 0 | K81: 0 | L81: 0 | M81: 3 | N81: 0 | O81: 0 | P81: 0
A82: KIT 5 | B82: Commodity Consumption | C82: Safety box, for used syringes and needles, 5 litres | E82: ='Pop Data Entry'!$D$19 -> 0.25 | I82: 0 | J82: 0 | K82: 0 | L82: 0 | M82: 4 | N82: 0 | O82: 0 | P82: 0
A83: KIT 5 | B83: Commodity Consumption | C83: Bag (envelope), plastic, for drugs, approx. 10 x 15 cm, pack of 100 | E83: ='Pop Data Entry'!$D$19 -> 0.25 | I83: 0 | J83: 0 | K83: 0 | L83: 0 | M83: 1000 | N83: 0 | O83: 0 | P83: 0
A84: KIT 5 | B84: Kits Issued to SDPs | I84: 0 | J84: 0 | K84: 0 | L84: 0 | N84: =J84 -> 0 | O84: =K84 -> 0 | P84: =L84 -> 0 | Q84: =N84*'Product cost'!#REF! ->  | R84: =O84*'Product cost'!#REF! ->  | S84: =P84*'Product cost'!#REF! -> 
A85: Kit 6B | D85: Part B: Drugs and disposable equipment
A86: Kit 6B | B86: Commodity Consumption | C86: Ampicillin, powder for injection, 500mg vial (adult and pediatric) | D86: Medicines | I86: =IFERROR(((H86-G86)/G86),0) -> 0 | J86: =H86*(1+I86) -> 0 | K86: =J86*(1+I86) -> 0 | L86: =K86*(1+I86) -> 0 | M86: 200 | N86: =ROUNDUP(((J86)/$M86),0) -> 0 | O86: =ROUNDUP(((K86)/$M86),0) -> 0 | P86: =ROUNDUP(((L86)/$M86),0) -> 0 | Q86: =MAX(N86:N125)*'Product cost'!#REF! ->  | R86: =MAX(O86:O125)*'Product cost'!#REF! ->  | S86: =MAX(P86:P125)*'Product cost'!#REF! -> 
A87: Kit 6B | B87: Commodity Consumption | C87: Gentamicin injection, 40 mg/ml, 2 ml ampoule (adult and pediatric) | I87: 0 | J87: 0 | K87: 0 | L87: 0 | M87: 100 | N87: 0 | O87: 0 | P87: 0
A88: Kit 6B | B88: Commodity Consumption | C88: Clindamycin, injection: 600mg (as phosphate) (adult) | I88: 0 | J88: 0 | K88: 0 | L88: 0 | M88: 125 | N88: 0 | O88: 0 | P88: 0
A89: Kit 6B | B89: Commodity Consumption | C89: Amoxicillin 125mg/5ml powder for oral suspension, bottle (pediatric) | I89: 0 | J89: 0 | K89: 0 | L89: 0 | M89: 5 | N89: 0 | O89: 0 | P89: 0
A90: Kit 6B | B90: Commodity Consumption | C90: Misoprostol, tablet, 0.2 mg (200 mcg) | I90: 0 | J90: 0 | K90: 0 | L90: 0 | M90: 60 | N90: 0 | O90: 0 | P90: 0
A91: Kit 6B | B91: Commodity Consumption | C91: Ferrous sulfate + folic acid, tablet, 200 mg + 0.4 mg, box of 1000 | I91: 0 | J91: 0 | K91: 0 | L91: 0 | M91: 5000 | N91: 0 | O91: 0 | P91: 0
A92: Kit 6B | B92: Commodity Consumption | C92: Tetracycline hydrochloride, eye ointment, 1%, tube 5 g | I92: 0 | J92: 0 | K92: 0 | L92: 0 | M92: 6 | N92: 0 | O92: 0 | P92: 0
A93: Kit 6B | B93: Commodity Consumption | C93: Lidocaine hydrochloride, injection, 10 mg/ml (1%), 20-ml ampoule | I93: 0 | J93: 0 | K93: 0 | L93: 0 | M93: 20 | N93: 0 | O93: 0 | P93: 0
A94: Kit 6B | B94: Commodity Consumption | C94: Oxytocin, injection, 10 IU/ml, 1-ml ampoule | I94: 0 | J94: 0 | K94: 0 | L94: 0 | M94: 100 | N94: 0 | O94: 0 | P94: 0
A95: Kit 6B | B95: Commodity Consumption | C95: Compound Sodium Lactate, solution for infusion, 1000ml bag, with giving set | I95: 0 | J95: 0 | K95: 0 | L95: 0 | M95: 30 | N95: 0 | O95: 0 | P95: 0
A96: Kit 6B | B96: Commodity Consumption | C96: Glucose, solution for infusion, 5% (iso-osmotic), 1-litre bottle + infusion-giving set, sterile, single use | I96: 0 | J96: 0 | K96: 0 | L96: 0 | M96: 50 | N96: 0 | O96: 0 | P96: 0
A97: Kit 6B | B97: Commodity Consumption | C97: Hydralazine hydrochloride, powder for injection, 20 mg in ampoule | I97: 0 | J97: 0 | K97: 0 | L97: 0 | M97: 60 | N97: 0 | O97: 0 | P97: 0
A98: Kit 6B | B98: Commodity Consumption | C98: Magnesium sulfate, solution for injection, 500 mg/ml, 10-ml ampoule | I98: 0 | J98: 0 | K98: 0 | L98: 0 | M98: 10 | N98: 0 | O98: 0 | P98: 0
A99: Kit 6B | B99: Commodity Consumption | C99: Calcium gluconate (monohydrate), solution for injection, 100 mg/ml, 10-ml ampoule | I99: 0 | J99: 0 | K99: 0 | L99: 0 | M99: 5 | N99: 0 | O99: 0 | P99: 0
A100: Kit 6B | B100: Commodity Consumption | C100: Paracetamol 500 mg tabs | I100: 0 | J100: 0 | K100: 0 | L100: 0 | M100: 600 | N100: 0 | O100: 0 | P100: 0
A101: Kit 6B | B101: Commodity Consumption | C101: Vitamin K, inj, 1mg/0.2 ml vial | I101: 0 | J101: 0 | K101: 0 | L101: 0 | M101: 50 | N101: 0 | O101: 0 | P101: 0
A102: Kit 6B | B102: Commodity Consumption | C102: Sodium chloride, injectable 0,9% 10ml | I102: 0 | J102: 0 | K102: 0 | L102: 0 | M102: 100 | N102: 0 | O102: 0 | P102: 0
A103: Kit 6B | B103: Commodity Consumption | C103: Water for injection, 10-ml ampoule | I103: 0 | J103: 0 | K103: 0 | L103: 0 | M103: 20 | N103: 0 | O103: 0 | P103: 0
A104: Kit 6B | B104: Commodity Consumption | C104: Chlorhexidine gluconate, concentrated solution, 5%, bottle, 1000 ml | I104: 0 | J104: 0 | K104: 0 | L104: 0 | M104: 1 | N104: 0 | O104: 0 | P104: 0
A105: Kit 6B | B105: Commodity Consumption | C105: Chlorhexidine gluconate, detergent solution, 4% (Hibiscrub), bottle, 500 ml | I105: 0 | J105: 0 | K105: 0 | L105: 0 | M105: 1 | N105: 0 | O105: 0 | P105: 0
A106: Kit 6B | B106: Commodity Consumption | C106: Polyvidone iodine, solution for cutaneous use, 10%, 1000-ml bottle | I106: 0 | J106: 0 | K106: 0 | L106: 0 | M106: 5 | N106: 0 | O106: 0 | P106: 0
A107: Kit 6B | B107: Commodity Consumption | C107: Clamp, umbilical, cord, sterile, single use | D107: Medical devices, renewable | I107: 0 | J107: 0 | K107: 0 | L107: 0 | M107: 100 | N107: 0 | O107: 0 | P107: 0
A108: Kit 6B | B108: Commodity Consumption | C108: Cannula, intravenous, short, 20G, sterile, single use | I108: 0 | J108: 0 | K108: 0 | L108: 0 | M108: 100 | N108: 0 | O108: 0 | P108: 0
A109: Kit 6B | B109: Commodity Consumption | C109: Syringe, luer, 20 ml, sterile, single use | I109: 0 | J109: 0 | K109: 0 | L109: 0 | M109: 100 | N109: 0 | O109: 0 | P109: 0
A110: Kit 6B | B110: Commodity Consumption | C110: Syringe, luer, 10 ml, sterile, single use | I110: 0 | J110: 0 | K110: 0 | L110: 0 | M110: 200 | N110: 0 | O110: 0 | P110: 0
A111: Kit 6B | B111: Commodity Consumption | C111: Syringe, luer, 5 ml, sterile, single use | I111: 0 | J111: 0 | K111: 0 | L111: 0 | M111: 200 | N111: 0 | O111: 0 | P111: 0
A112: Kit 6B | B112: Commodity Consumption | C112: Syringe, luer, 2 ml, sterile, single use | I112: 0 | J112: 0 | K112: 0 | L112: 0 | M112: 400 | N112: 0 | O112: 0 | P112: 0
A113: Kit 6B | B113: Commodity Consumption | C113: Syringe, luer, 1 ml, sterile, single use | I113: 0 | J113: 0 | K113: 0 | L113: 0 | M113: 200 | N113: 0 | O113: 0 | P113: 0
A114: Kit 6B | B114: Commodity Consumption | C114: Needle, luer, 21G (0.8 x 40 mm), sterile, single use | I114: 0 | J114: 0 | K114: 0 | L114: 0 | M114: 1200 | N114: 0 | O114: 0 | P114: 0
A115: Kit 6B | B115: Commodity Consumption | C115: Needle, luer 25G, sterile single use | I115: 0 | J115: 0 | K115: 0 | L115: 0 | M115: 300 | N115: 0 | O115: 0 | P115: 0
A116: Kit 6B | B116: Commodity Consumption | C116: Syringe, feeding, catheter tip, 50/60 ml, sterile, single use | I116: 0 | J116: 0 | K116: 0 | L116: 0 | M116: 10 | N116: 0 | O116: 0 | P116: 0
A117: Kit 6B | B117: Commodity Consumption | C117: Gloves, surgical, size 8, sterile, single use, pair | I117: 0 | J117: 0 | K117: 0 | L117: 0 | M117: 30 | N117: 0 | O117: 0 | P117: 0
A118: Kit 6B | B118: Commodity Consumption | C118: Gloves, surgical, size 7, sterile, single use, pair | I118: 0 | J118: 0 | K118: 0 | L118: 0 | M118: 30 | N118: 0 | O118: 0 | P118: 0
A119: Kit 6B | B119: Commodity Consumption | C119: Gloves, gynecological, medium, sterile, single use, pair | I119: 0 | J119: 0 | K119: 0 | L119: 0 | M119: 5 | N119: 0 | O119: 0 | P119: 0
A120: Kit 6B | B120: Commodity Consumption | C120: Gloves, examination, medium, single use, box of 100 | I120: 0 | J120: 0 | K120: 0 | L120: 0 | M120: 3 | N120: 0 | O120: 0 | P120: 0
A121: Kit 6B | B121: Commodity Consumption | C121: Suture, synthetic, absorbable, DEC3(2/0), needle 3/8 30 mm, round, sterile, single use, box of 12 | I121: 0 | J121: 0 | K121: 0 | L121: 0 | M121: 3 | N121: 0 | O121: 0 | P121: 0
A122: Kit 6B | B122: Commodity Consumption | C122: Extractor, mucus, 20 ml, sterile, single use | I122: 0 | J122: 0 | K122: 0 | L122: 0 | M122: 50 | N122: 0 | O122: 0 | P122: 0
A123: Kit 6B | B123: Commodity Consumption | C123: Tube, suction, CH10, 50 cm long, conical tip, sterile, single use | I123: 0 | J123: 0 | K123: 0 | L123: 0 | M123: 10 | N123: 0 | O123: 0 | P123: 0
A124: Kit 6B | B124: Commodity Consumption | C124: Tube, suction, CH14, 50 cm long, conical tip, sterile, single use | I124: 0 | J124: 0 | K124: 0 | L124: 0 | M124: 10 | N124: 0 | O124: 0 | P124: 0
A125: Kit 6B | B125: Commodity Consumption | C125: Catheter, urethral, CH12, sterile, single use | I125: 0 | J125: 0 | K125: 0 | L125: 0 | M125: 20 | N125: 0 | O125: 0 | P125: 0
A126: Kit 6B | B126: Commodity Consumption | C126: Compress, gauze, 10 x 10 cm, sterile, single use, pack of 5 | I126: =IFERROR(((H126-G126)/G126),0) -> 0 | J126: =H126*(1+I126) -> 0 | K126: =J126*(1+I126) -> 0 | L126: =K126*(1+I126) -> 0 | M126: 50 | N126: =ROUNDUP(((J126)/$M126),0) -> 0 | O126: =ROUNDUP(((K126)/$M126),0) -> 0 | P126: =ROUNDUP(((L126)/$M126),0) -> 0
A127: Kit 6B | B127: Commodity Consumption | C127: Cotton wool, 500-g roll, non-sterile | I127: 0 | J127: 0 | K127: 0 | L127: 0 | M127: 3 | N127: 0 | O127: 0 | P127: 0
A128: Kit 6B | B128: Commodity Consumption | C128: Tape, adhesive, zinc oxide, 2.5 cm x 5m | I128: 0 | J128: 0 | K128: 0 | L128: 0 | M128: 5 | N128: 0 | O128: 0 | P128: 0
A129: Kit 6B | B129: Commodity Consumption | C129: Toilet soap, bar, approx.110 g, wrapped | I129: 0 | J129: 0 | K129: 0 | L129: 0 | M129: 30 | N129: 0 | O129: 0 | P129: 0
A130: Kit 6B | B130: Commodity Consumption | C130: Safety box, for used syringes and needles, 5 litres | I130: 0 | J130: 0 | K130: 0 | L130: 0 | M130: 18 | N130: 0 | O130: 0 | P130: 0
A131: Kit 6B | B131: Commodity Consumption | C131: Glasses, safety, regular size, disposable | I131: 0 | J131: 0 | K131: 0 | L131: 0 | M131: 2 | N131: 0 | O131: 0 | P131: 0
A132: Kit 6B | B132: Commodity Consumption | C132: Bag (envelope), plastic, for drugs, approx. 10 x 15 cm, pack of 100 | I132: 0 | J132: 0 | K132: 0 | L132: 0 | M132: 10 | N132: 0 | O132: 0 | P132: 0
A133: Kit 6B | B133: Commodity Consumption | C133: Apron, protective, plastic, reusable | I133: 0 | J133: 0 | K133: 0 | L133: 0 | M133: 2 | N133: 0 | O133: 0 | P133: 0
A134: Kit 6B | B134: Commodity Consumption | C134: Drawsheet, plastic, approx. 90 x 180 cm | I134: 0 | J134: 0 | K134: 0 | L134: 0 | M134: 2 | N134: 0 | O134: 0 | P134: 0
A135: Kit 6B | B135: Commodity Consumption | C135: Urinary protein test strips, box of 50 | I135: 0 | J135: 0 | K135: 0 | L135: 0 | M135: 3 | N135: 0 | O135: 0 | P135: 0
A136: Kit 6B | B136: Commodity Consumption | C136: Indicator, TST (Time, Steam, Temperature) control spot | I136: 0 | J136: 0 | K136: 0 | L136: 0 | M136: 300 | N136: 0 | O136: 0 | P136: 0
A137: Kit 6B | B137: Commodity Consumption | C137: Battery, dry cell, alkaline, AAA, 1.5V, for frontal flashlight | I137: 0 | J137: 0 | K137: 0 | L137: 0 | M137: 10 | N137: 0 | O137: 0 | P137: 0
A138: Kit 6B | B138: Commodity Consumption | C138: Bio hazard bag 50 liters | I138: 0 | J138: 0 | K138: 0 | L138: 0 | M138: 50 | N138: 0 | O138: 0 | P138: 0
A139: Kit 6B | B139: Kits Issued to SDPs | I139: 0 | J139: 0 | K139: 0 | L139: 0 | N139: =J139 -> 0 | O139: =K139 -> 0 | P139: =L139 -> 0 | Q139: =N139*'Product cost'!#REF! ->  | R139: =O139*'Product cost'!#REF! ->  | S139: =P139*'Product cost'!#REF! -> 
A140: Misoprostol (Bulk) 6B Complement | D140: Complement to Kit 6B
A141: Misoprostol (Bulk) 6B Complement | B141: Commodity Consumption | C141: Misoprostol, tablet, 0.2 mg (200 mcg) | D141: Medicines | I141: =IFERROR(((H141-G141)/G141),0) -> 0 | J141: =H141*(1+I141) -> 0 | K141: =J141*(1+I141) -> 0 | L141: =K141*(1+I141) -> 0 | M141: 240 | N141: =ROUNDUP(((J141)/$M141),0) -> 0 | O141: =ROUNDUP(((K141)/$M141),0) -> 0 | P141: =ROUNDUP(((L141)/$M141),0) -> 0
A142: Misoprostol (Bulk) 6B Complement | B142: Kits Issued to SDPs | I142: 0 | J142: 0 | K142: 0 | L142: 0 | N142: =J142 -> 0 | O142: =K142 -> 0 | P142: =L142 -> 0
A143: Oxytocin (Bulk) 6B Complement | D143: Complement to Kit 6B
A144: Oxytocin (Bulk) 6B Complement | B144: Commodity Consumption | C144: Oxytocin, injection, 10 IU/ml, 1-ml ampoule | D144: Medicines | I144: =IFERROR(((H144-G144)/G144),0) -> 0 | J144: =H144*(1+I144) -> 0 | K144: =J144*(1+I144) -> 0 | L144: =K144*(1+I144) -> 0 | M144: 300 | N144: =ROUNDUP(((J144)/$M144),0) -> 0 | O144: =ROUNDUP(((K144)/$M144),0) -> 0 | P144: =ROUNDUP(((L144)/$M144),0) -> 0
A145: Oxytocin (Bulk) 6B Complement | B145: Kits Issued to SDPs | I145: 0 | J145: 0 | K145: 0 | L145: 0 | N145: =J145 -> 0 | O145: =K145 -> 0 | P145: =L145 -> 0
A146: KIT 7 | D146: Intrauterine Device (IUD)
A147: Kit 7 | B147: Commodity Consumption | C147: Intrauterine device (IUD), Cu-T 380 A | D147: Medicines | I147: =IFERROR(((H147-G147)/G147),0) -> 0 | J147: =H147*(1+I147) -> 0 | K147: =J147*(1+I147) -> 0 | L147: =K147*(1+I147) -> 0 | M147: 90 | N147: =ROUNDUP(((J147)/$M147),0) -> 0 | O147: =ROUNDUP(((K147)/$M147),0) -> 0 | P147: =ROUNDUP(((L147)/$M147),0) -> 0 | Q147: =MAX(N147:N164)*'Product cost'!#REF! ->  | R147: =MAX(O147:O164)*'Product cost'!#REF! ->  | S147: =MAX(P147:P164)*'Product cost'!#REF! -> 
A148: Kit 7 | B148: Commodity Consumption | C148: Azithromycin, capsule, 250 mg | I148: 0 | J148: 0 | K148: 0 | L148: 0 | M148: 240 | N148: 0 | O148: 0 | P148: 0
A149: Kit 7 | B149: Commodity Consumption | C149: Cefixime 200mg tablets | I149: 0 | J149: 0 | K149: 0 | L149: 0 | M149: 6 | N149: 0 | O149: 0 | P149: 0
A150: Kit 7 | B150: Commodity Consumption | C150: Polyvidone iodine, solution for cutaneous use, 10%, 1000-ml bottle | D150: Medical devices, renewable | I150: 0 | J150: 0 | K150: 0 | L150: 0 | M150: 3 | N150: 0 | O150: 0 | P150: 0
A151: Kit 7 | B151: Commodity Consumption | C151: Bag (envelope), plastic, for drugs, approx. 10 x 15 cm, pack of 100 | I151: 0 | J151: 0 | K151: 0 | L151: 0 | M151: 1 | N151: 0 | O151: 0 | P151: 0
A152: Kit 7 | B152: Commodity Consumption | C152: Gloves, surgical, size 8, sterile, single use, pair | I152: 0 | J152: 0 | K152: 0 | L152: 0 | M152: 50 | N152: 0 | O152: 0 | P152: 0
A153: Kit 7 | B153: Commodity Consumption | C153: Gloves, surgical, size 7, sterile, single use, pair | I153: 0 | J153: 0 | K153: 0 | L153: 0 | M153: 50 | N153: 0 | O153: 0 | P153: 0
A154: Kit 7 | B154: Commodity Consumption | C154: Compress, gauze, 10 x 10 cm, sterile, single use, pack of 5 | I154: 0 | J154: 0 | K154: 0 | L154: 0 | M154: 200 | N154: 0 | O154: 0 | P154: 0
A155: Kit 7 | B155: Commodity Consumption | C155: Speculum, vaginal, Graves, 95 x 35 mm | D155: Medical devices, equipment | I155: 0 | J155: 0 | K155: 0 | L155: 0 | M155: 2 | N155: 0 | O155: 0 | P155: 0
A156: Kit 7 | B156: Commodity Consumption | C156: Speculum, vaginal, Graves, 115 x 35 mm | I156: 0 | J156: 0 | K156: 0 | L156: 0 | M156: 1 | N156: 0 | O156: 0 | P156: 0
A157: Kit 7 | B157: Commodity Consumption | C157: Forceps, dressing, Cheron, 250 mm | I157: 0 | J157: 0 | K157: 0 | L157: 0 | M157: 1 | N157: 0 | O157: 0 | P157: 0
A158: Kit 7 | B158: Commodity Consumption | C158: Forceps, artery, Pean/Roch, 220 mm, straight | I158: 0 | J158: 0 | K158: 0 | L158: 0 | M158: 2 | N158: 0 | O158: 0 | P158: 0
A159: Kit 7 | B159: Commodity Consumption | C159: Sound, uterine, Martin, 320 mm | I159: 0 | J159: 0 | K159: 0 | L159: 0 | M159: 3 | N159: 0 | O159: 0 | P159: 0
A160: Kit 7 | B160: Commodity Consumption | C160: Forceps, uterine, Duplay, 280 mm, curved | I160: 0 | J160: 0 | K160: 0 | L160: 0 | M160: 1 | N160: 0 | O160: 0 | P160: 0
A161: Kit 7 | B161: Commodity Consumption | C161: Scissors, gynecological, 200 mm, curved, b/b | I161: 0 | J161: 0 | K161: 0 | L161: 0 | M161: 1 | N161: 0 | O161: 0 | P161: 0
A162: Kit 7 | B162: Commodity Consumption | C162: Bowl, stainless steel, approx. 180 ml | I162: 0 | J162: 0 | K162: 0 | L162: 0 | M162: 1 | N162: 0 | O162: 0 | P162: 0
A163: Kit 8 | B163: Commodity Consumption | C163: Basin, kidney, stainless steel, approx. 825 ml | I163: =IFERROR(((H163-G163)/G163),0) -> 0 | J163: =H163*(1+I163) -> 0 | K163: =J163*(1+I163) -> 0 | L163: =K163*(1+I163) -> 0 | M163: 2 | N163: =ROUNDUP(((J163)/$M163),0) -> 0 | O163: =ROUNDUP(((K163)/$M163),0) -> 0 | P163: =ROUNDUP(((L163)/$M163),0) -> 0
A164: Kit 7 | B164: Commodity Consumption | C164: Tray, instruments, stainless steel, approx. 320 x 200 x 80 mm, with cover | I164: 0 | J164: 0 | K164: 0 | L164: 0 | M164: 1 | N164: 0 | O164: 0 | P164: 0
A165: Kit 7 | B165: Kits Issued to SDPs | I165: 0 | J165: 0 | K165: 0 | L165: 0 | N165: =J165 -> 0 | O165: =K165 -> 0 | P165: =L165 -> 0 | Q165: =N165*'Product cost'!#REF! ->  | R165: =O165*'Product cost'!#REF! ->  | S165: =P165*'Product cost'!#REF! -> 
A166: KIT 8 | D166: Management of Miscarriage and complications of abortion
A167: Kit 8 | B167: Commodity Consumption | C167: Gentamicin inj 40 mg/ml 2 ml amp | D167: Medicines | I167: =IFERROR(((H167-G167)/G167),0) -> 0 | J167: =H167*(1+I167) -> 0 | K167: =J167*(1+I167) -> 0 | L167: =K167*(1+I167) -> 0 | M167: 100 | N167: =ROUNDUP(((J167)/$M167),0) -> 0 | O167: =ROUNDUP(((K167)/$M167),0) -> 0 | P167: =ROUNDUP(((L167)/$M167),0) -> 0 | Q167: =MAX(N167:N205)*'Product cost'!#REF! ->  | R167: =MAX(O167:O205)*'Product cost'!#REF! ->  | S167: =MAX(P167:P205)*'Product cost'!#REF! -> 
A168: Kit 8 | B168: Commodity Consumption | C168: Ampicillin pdr/inj 500mg vial, | I168: 0 | J168: 0 | K168: 0 | L168: 0 | M168: 1500 | N168: 0 | O168: 0 | P168: 0
A169: Kit 8 | B169: Commodity Consumption | C169: Misoprostol, tablet, 0.2 mg (200 mcg) | I169: 0 | J169: 0 | K169: 0 | L169: 0 | M169: 180 | N169: 0 | O169: 0 | P169: 0
A170: Kit 8 | B170: Commodity Consumption | C170: Sodium dichloroisocyanurate tablets, containing 1.67g NaDCC, box of 200 | I170: 0 | J170: 0 | K170: 0 | L170: 0 | M170: 400 | N170: 0 | O170: 0 | P170: 0
A171: Kit 8 | B171: Commodity Consumption | C171: Ibuprofen, tablets, 400 mg, 2 tablets per woman (1 prior to discharge, 1 to take home) | I171: 0 | J171: 0 | K171: 0 | L171: 0 | M171: 120 | N171: 0 | O171: 0 | P171: 0
A172: Kit 8 | B172: Commodity Consumption | C172: Oxytocin, injection, 10 IU/ml, 1-ml ampoule | I172: 0 | J172: 0 | K172: 0 | L172: 0 | M172: 100 | N172: 0 | O172: 0 | P172: 0
A173: Kit 8 | B173: Commodity Consumption | C173: Lidocaine hydrochloride, injection, 10 mg/ml (1%), 20-ml ampoule | I173: 0 | J173: 0 | K173: 0 | L173: 0 | M173: 50 | N173: 0 | O173: 0 | P173: 0
A174: Kit 8 | B174: Commodity Consumption | C174: Atropine sulfate, solution for injection, 1 mg/ml, 1-ml ampoule | I174: 0 | J174: 0 | K174: 0 | L174: 0 | M174: 30 | N174: 0 | O174: 0 | P174: 0
A175: Kit 8 | B175: Commodity Consumption | C175: Water for injection, 10-ml ampoule | I175: 0 | J175: 0 | K175: 0 | L175: 0 | M175: 10 | N175: 0 | O175: 0 | P175: 0
A176: Kit 8 | B176: Commodity Consumption | C176: Chlorhexidine gluconate, detergent solution, 4% (Hibiscrub), bottle, 500 ml | I176: 0 | J176: 0 | K176: 0 | L176: 0 | M176: 1 | N176: 0 | O176: 0 | P176: 0
A177: Kit 8 | B177: Commodity Consumption | C177: Polyvidone iodine, solution for cutaneous use, 10%, 1000-ml bottle | I177: 0 | J177: 0 | K177: 0 | L177: 0 | M177: 6 | N177: 0 | O177: 0 | P177: 0
A178: Kit 8 | B178: Commodity Consumption | C178: Gloves, surgical, size 8, sterile, single use, pair | D178: Medical devices, renewables | I178: 0 | J178: 0 | K178: 0 | L178: 0 | M178: 50 | N178: 0 | O178: 0 | P178: 0
A179: Kit 8 | B179: Commodity Consumption | C179: Gloves, surgical, size 7, sterile, single use, pair | I179: 0 | J179: 0 | K179: 0 | L179: 0 | M179: 50 | N179: 0 | O179: 0 | P179: 0
A180: Kit 8 | B180: Commodity Consumption | C180: Gloves, examination, medium, single use, box of 100 | I180: 0 | J180: 0 | K180: 0 | L180: 0 | M180: 1 | N180: 0 | O180: 0 | P180: 0
A181: Kit 8 | B181: Commodity Consumption | C181: Syringe, luer, 10 ml, sterile, single use | I181: 0 | J181: 0 | K181: 0 | L181: 0 | M181: 100 | N181: 0 | O181: 0 | P181: 0
A182: Kit 8 | B182: Commodity Consumption | C182: Syringe, luer, 2 ml, sterile, single use | I182: 0 | J182: 0 | K182: 0 | L182: 0 | M182: 200 | N182: 0 | O182: 0 | P182: 0
A183: Kit 8 | B183: Commodity Consumption | C183: Needle, luer, 21G (0.8 x 40 mm), sterile, single use | I183: 0 | J183: 0 | K183: 0 | L183: 0 | M183: 300 | N183: 0 | O183: 0 | P183: 0
A184: Kit 8 | B184: Commodity Consumption | C184: Compress, gauze, 10 x 10 cm, sterile, single use, pack of 5 | I184: 0 | J184: 0 | K184: 0 | L184: 0 | M184: 240 | N184: 0 | O184: 0 | P184: 0
A185: Kit 8 | B185: Commodity Consumption | C185: Bag (envelope), plastic, for drugs, approx. 10 x 15 cm, pack of 100 | I185: 0 | J185: 0 | K185: 0 | L185: 0 | M185: 1 | N185: 0 | O185: 0 | P185: 0
A186: Kit 8 | B186: Commodity Consumption | C186: Safety box, for used syringes and needles, 5 litres | I186: 0 | J186: 0 | K186: 0 | L186: 0 | M186: 3 | N186: 0 | O186: 0 | P186: 0
A187: Kit 8 | B187: Commodity Consumption | C187: Bio hazard bag 50 liters | D187: Medical devices, equipment | I187: 0 | J187: 0 | K187: 0 | L187: 0 | M187: 50 | N187: 0 | O187: 0 | P187: 0
A188: Kit 8 | B188: Commodity Consumption | C188: MVA plus with 2cc silicone | I188: 0 | J188: 0 | K188: 0 | L188: 0 | M188: 4 | N188: 0 | O188: 0 | P188: 0
A189: Kit 8 | B189: Commodity Consumption | C189: Accessory kit for MVA Plus, including (1) O-ring, (1) collarstop, (1) cap, (1) 2cc silicone | I189: 0 | J189: 0 | K189: 0 | L189: 0 | M189: 2 | N189: 0 | O189: 0 | P189: 0
A190: Kit 8 | B190: Commodity Consumption | C190: 2cc silicone packaged in bags of 10 | I190: 0 | J190: 0 | K190: 0 | L190: 0 | M190: 6 | N190: 0 | O190: 0 | P190: 0
A191: Kit 8 | B191: Commodity Consumption | C191: Cannula, Easygrip, 6 mm, integrated base | I191: 0 | J191: 0 | K191: 0 | L191: 0 | M191: 8 | N191: 0 | O191: 0 | P191: 0
A192: Kit 8 | B192: Commodity Consumption | C192: Cannula, Easygrip, 7 mm, integrated base | I192: 0 | J192: 0 | K192: 0 | L192: 0 | M192: 8 | N192: 0 | O192: 0 | P192: 0
A193: Kit 8 | B193: Commodity Consumption | C193: Cannula, Easygrip, 8 mm, integrated base | I193: 0 | J193: 0 | K193: 0 | L193: 0 | M193: 8 | N193: 0 | O193: 0 | P193: 0
A194: Kit 8 | B194: Commodity Consumption | C194: Cannula, Easygrip, 9 mm, integrated base | I194: 0 | J194: 0 | K194: 0 | L194: 0 | M194: 4 | N194: 0 | O194: 0 | P194: 0
A195: Kit 8 | B195: Commodity Consumption | C195: Cannula, Easygrip, 10 mm, integrated base | I195: 0 | J195: 0 | K195: 0 | L195: 0 | M195: 4 | N195: 0 | O195: 0 | P195: 0
A196: Kit 8 | B196: Commodity Consumption | C196: Cannula, Easygrip, 12 mm, integrated base | I196: 0 | J196: 0 | K196: 0 | L196: 0 | M196: 4 | N196: 0 | O196: 0 | P196: 0
A197: Kit 8 | B197: Commodity Consumption | C197: Dilators, Denniston, polymer, set of 5 | I197: 0 | J197: 0 | K197: 0 | L197: 0 | M197: 4 | N197: 0 | O197: 0 | P197: 0
A198: Kit 8 | B198: Commodity Consumption | C198: Basket, sterilizing, approx. 120 x 250 x 60 mm | I198: 0 | J198: 0 | K198: 0 | L198: 0 | M198: 1 | N198: 0 | O198: 0 | P198: 0
A199: Kit 8 | B199: Commodity Consumption | C199: Forceps, dressing, Cheron, 250 mm | I199: 0 | J199: 0 | K199: 0 | L199: 0 | M199: 1 | N199: 0 | O199: 0 | P199: 0
A200: Kit 8 | B200: Commodity Consumption | C200: Forceps, uterine, Museux, 240 mm, curved | I200: 0 | J200: 0 | K200: 0 | L200: 0 | M200: 1 | N200: 0 | O200: 0 | P200: 0
... 119 more rows

Sheet Logistics Data Summary (hidden)
A1: LOGISTICS DATA SUMMARY
A7: Kit | B7: Current Year | C7: Year 2 | D7: Year 3
A8: 1A | B8: =IF(('Logistics Data Entry'!N4=0),'Logistics Data Entry'!N5,'Logistics Data Entry'!N4) -> 0 | C8: =IF(('Logistics Data Entry'!O4=0),'Logistics Data Entry'!O5,'Logistics Data Entry'!O4) -> 0 | D8: =IF(('Logistics Data Entry'!P4=0),'Logistics Data Entry'!P5,'Logistics Data Entry'!P4) -> 0
A9: 1B | B9: =IF('Logistics Data Entry'!N7=0,'Logistics Data Entry'!N8,'Logistics Data Entry'!N7) -> 0 | C9: =IF('Logistics Data Entry'!O7=0,'Logistics Data Entry'!O8,'Logistics Data Entry'!O7) -> 0 | D9: =IF('Logistics Data Entry'!P7=0,'Logistics Data Entry'!P8,'Logistics Data Entry'!P7) -> 0
A10: 2A | B10: =IF(MAX('Logistics Data Entry'!N10:N17)=0,'Logistics Data Entry'!N18,MAX('Logistics Data Entry'!N10:N17)) -> 0 | C10: =IF(MAX('Logistics Data Entry'!O10:O17)=0,'Logistics Data Entry'!O18,MAX('Logistics Data Entry'!O10:O17)) -> 0 | D10: =IF(MAX('Logistics Data Entry'!P10:P17)=0,'Logistics Data Entry'!P18,MAX('Logistics Data Entry'!P10:P17)) -> 0
A11: Chlorhexidine for cord care (Bulk) 2A Complement | B11: =IF(('Logistics Data Entry'!N20=0),'Logistics Data Entry'!N21,'Logistics Data Entry'!N20) -> 0 | C11: =IF(('Logistics Data Entry'!O20=0),'Logistics Data Entry'!O21,'Logistics Data Entry'!O20) -> 0 | D11: =IF(('Logistics Data Entry'!P20=0),'Logistics Data Entry'!P21,'Logistics Data Entry'!P20) -> 0
A12: Misoprostol (Bulk) 2A Complement | B12: =IF('Logistics Data Entry'!N23=0,'Logistics Data Entry'!N24,'Logistics Data Entry'!N23) -> 0 | C12: =IF('Logistics Data Entry'!O23=0,'Logistics Data Entry'!O24,'Logistics Data Entry'!O23) -> 0 | D12: =IF('Logistics Data Entry'!P23=0,'Logistics Data Entry'!P24,'Logistics Data Entry'!P23) -> 0
A13: 2B | B13: =IF(MAX('Logistics Data Entry'!N26:N30)=0,('Logistics Data Entry'!N31),MAX('Logistics Data Entry'!N26:N30)) -> 0 | C13: =IF(MAX('Logistics Data Entry'!O26:O30)=0,('Logistics Data Entry'!O31),MAX('Logistics Data Entry'!O26:O30)) -> 0 | D13: =IF(MAX('Logistics Data Entry'!P26:P30)=0,('Logistics Data Entry'!P31),MAX('Logistics Data Entry'!P26:P30)) -> 0
A14: 3 | B14: =IF(MAX('Logistics Data Entry'!N33:N44)=0,'Logistics Data Entry'!N45,MAX('Logistics Data Entry'!N33:N44)) -> 0 | C14: =IF(MAX('Logistics Data Entry'!O33:O44)=0,'Logistics Data Entry'!O45,MAX('Logistics Data Entry'!O33:O44)) -> 0 | D14: =IF(MAX('Logistics Data Entry'!P33:P44)=0,'Logistics Data Entry'!P45,MAX('Logistics Data Entry'!P33:P44)) -> 0
A15: 4 | B15: =IF(MAX('Logistics Data Entry'!N47:N55)=0,'Logistics Data Entry'!N56,MAX('Logistics Data Entry'!N47:N55)) -> 0 | C15: =IF(MAX('Logistics Data Entry'!O47:O55)=0,'Logistics Data Entry'!O56,MAX('Logistics Data Entry'!O47:O55)) -> 0 | D15: =IF(MAX('Logistics Data Entry'!P47:P55)=0,'Logistics Data Entry'!P56,MAX('Logistics Data Entry'!P47:P55)) -> 0
A16: DMPA-SC Kit 4 Complement (Bulk) | B16: =IF('Logistics Data Entry'!N58=0,'Logistics Data Entry'!N59,'Logistics Data Entry'!N58) -> 0 | C16: =IF('Logistics Data Entry'!O58=0,'Logistics Data Entry'!O59,'Logistics Data Entry'!O58) -> 0 | D16: =IF('Logistics Data Entry'!P58=0,'Logistics Data Entry'!P59,'Logistics Data Entry'!P58) -> 0
A17: 5 | B17: =IF(MAX('Logistics Data Entry'!N61:N83)=0,'Logistics Data Entry'!N84,MAX('Logistics Data Entry'!N61:N83)) -> 0 | C17: =IF(MAX('Logistics Data Entry'!O61:O83)=0,'Logistics Data Entry'!O84,MAX('Logistics Data Entry'!O61:O83)) -> 0 | D17: =IF(MAX('Logistics Data Entry'!P61:P83)=0,'Logistics Data Entry'!P84,MAX('Logistics Data Entry'!P61:P83)) -> 0
A18: 6B | B18: =IF(MAX('Logistics Data Entry'!N86:N125)=0,'Logistics Data Entry'!N139,MAX('Logistics Data Entry'!N86:N125)) -> 0 | C18: =IF(MAX('Logistics Data Entry'!O86:O125)=0,'Logistics Data Entry'!O139,MAX('Logistics Data Entry'!O86:O125)) -> 0 | D18: =IF(MAX('Logistics Data Entry'!P86:P125)=0,'Logistics Data Entry'!P139,MAX('Logistics Data Entry'!P86:P125)) -> 0
A19: Misoprostol (Bulk) 6B Complement | B19: =IF('Logistics Data Entry'!N141=0,'Logistics Data Entry'!N142,'Logistics Data Entry'!N141) -> 0 | C19: =IF('Logistics Data Entry'!O141=0,'Logistics Data Entry'!O142,'Logistics Data Entry'!O141) -> 0 | D19: =IF('Logistics Data Entry'!P141=0,'Logistics Data Entry'!P142,'Logistics Data Entry'!P141) -> 0
A20: Oxytocin (Bulk) 6B Complement | B20: =IF('Logistics Data Entry'!N144=0,'Logistics Data Entry'!N145,'Logistics Data Entry'!N144) -> 0 | C20: =IF('Logistics Data Entry'!O144=0,'Logistics Data Entry'!O145,'Logistics Data Entry'!O144) -> 0 | D20: =IF('Logistics Data Entry'!P144=0,'Logistics Data Entry'!P145,'Logistics Data Entry'!P144) -> 0
A21: 7 | B21: =IF(MAX('Logistics Data Entry'!N147:N164)=0,'Logistics Data Entry'!N165,MAX('Logistics Data Entry'!N147:N164)) -> 0 | C21: =IF(MAX('Logistics Data Entry'!O147:O164)=0,'Logistics Data Entry'!O165,MAX('Logistics Data Entry'!O147:O164)) -> 0 | D21: =IF(MAX('Logistics Data Entry'!P147:P164)=0,'Logistics Data Entry'!P165,MAX('Logistics Data Entry'!P147:P164)) -> 0
A22: 8 | B22: =IF(MAX('Logistics Data Entry'!N167:N205)=0,'Logistics Data Entry'!N206,MAX('Logistics Data Entry'!N167:N205)) -> 0 | C22: =IF(MAX('Logistics Data Entry'!O167:O205)=0,'Logistics Data Entry'!O206,MAX('Logistics Data Entry'!O167:O205)) -> 0 | D22: =IF(MAX('Logistics Data Entry'!P167:P205)=0,'Logistics Data Entry'!P206,MAX('Logistics Data Entry'!P167:P205)) -> 0
A23: Misoprostol (Bulk) 8 Complement | B23: =IF('Logistics Data Entry'!N208=0,'Logistics Data Entry'!N209,'Logistics Data Entry'!N208) -> 0 | C23: =IF('Logistics Data Entry'!O208=0,'Logistics Data Entry'!O209,'Logistics Data Entry'!O208) -> 0 | D23: =IF('Logistics Data Entry'!P208=0,'Logistics Data Entry'!P209,'Logistics Data Entry'!P208) -> 0
A24: Mifepristone (Bulk) 8 Complement | B24: =IF('Logistics Data Entry'!N211=0,'Logistics Data Entry'!N212,'Logistics Data Entry'!N211) -> 0 | C24: =IF('Logistics Data Entry'!O211=0,'Logistics Data Entry'!O212,'Logistics Data Entry'!O211) -> 0 | D24: =IF('Logistics Data Entry'!P211=0,'Logistics Data Entry'!P212,'Logistics Data Entry'!P211) -> 0
A25: 9 | B25: =IF(MAX('Logistics Data Entry'!N214:N231)=0,'Logistics Data Entry'!N232,MAX('Logistics Data Entry'!N214:N231)) -> 0 | C25: =IF(MAX('Logistics Data Entry'!O214:O231)=0,'Logistics Data Entry'!O232,MAX('Logistics Data Entry'!O214:O231)) -> 0 | D25: =IF(MAX('Logistics Data Entry'!P214:P231)=0,'Logistics Data Entry'!P232,MAX('Logistics Data Entry'!P214:P231)) -> 0
A26: 11B | B26: =IF(MAX('Logistics Data Entry'!N234:N298)=0,'Logistics Data Entry'!N299,MAX('Logistics Data Entry'!N234:N298)) -> 0 | C26: =IF(MAX('Logistics Data Entry'!O234:O298)=0,'Logistics Data Entry'!O299,MAX('Logistics Data Entry'!O234:O298)) -> 0 | D26: =IF(MAX('Logistics Data Entry'!P234:P298)=0,'Logistics Data Entry'!P299,MAX('Logistics Data Entry'!P234:P298)) -> 0
A27: 12 | B27: =IF(MAX('Logistics Data Entry'!N301:N318)=0,'Logistics Data Entry'!N319,MAX('Logistics Data Entry'!N301:N318)) -> 0 | C27: =IF(MAX('Logistics Data Entry'!O301:O318)=0,'Logistics Data Entry'!O319,MAX('Logistics Data Entry'!O301:O318)) -> 0 | D27: =IF(MAX('Logistics Data Entry'!P301:P318)=0,'Logistics Data Entry'!P319,MAX('Logistics Data Entry'!P301:P318)) -> 0

Sheet Results Dashboard
Q7: Selected RH Kit Quantities and Costs for all Kits
Q9: Kit Type | S9: Next 3 Months | U9: 3 - 6 Months | W9: 6 - 9 Months | Y9: Notes
Q11: Kit 1A | T11: =S11*'Product cost'!$E$5 -> 0 | V11: =U11*'Product cost'!$E$5 -> 0 | X11: =W11*'Product cost'!$E$5 -> 0
Q13: Kit 1B | T13: =S13*'Product cost'!$E$6 -> 0 | V13: =U13*'Product cost'!$E$6 -> 0 | X13: =W13*'Product cost'!$E$6 -> 0
Q15: Kit 2A | T15: =S15*'Product cost'!$E$7 -> 0 | V15: =U15*'Product cost'!$E$7 -> 0 | X15: =W15*'Product cost'!$E$7 -> 0
Q17: Chlorhexidine 2A Comp | T17: =S17*'Product cost'!$E$8 -> 0 | V17: =U17*'Product cost'!$E$8 -> 0 | X17: =W17*'Product cost'!$E$8 -> 0
Q19: Misoprostol 2A Comp | T19: =S19*'Product cost'!$E$9 -> 0 | V19: =U19*'Product cost'!$E$9 -> 0 | X19: =W19*'Product cost'!$E$9 -> 0
Q21: Kit 2B | T21: =S21*'Product cost'!$E$10 -> 0 | V21: =U21*'Product cost'!$E$10 -> 0 | X21: =W21*'Product cost'!$E$10 -> 0
Q23: Kit 3 | T23: =S23*'Product cost'!$E$11 -> 0 | V23: =U23*'Product cost'!$E$11 -> 0 | X23: =W23*'Product cost'!$E$11 -> 0
Q25: Kit 4 | T25: =S25*'Product cost'!$E$12 -> 0 | V25: =U25*'Product cost'!$E$12 -> 0 | X25: =W25*'Product cost'!$E$12 -> 0
Q27: DMPA SC Kit 4 Comp | T27: =S27*'Product cost'!$E$13 -> 0 | V27: =U27*'Product cost'!$E$13 -> 0 | X27: =W27*'Product cost'!$E$13 -> 0
Q29: Kit 5 | T29: =S29*'Product cost'!$E$14 -> 0 | V29: =U29*'Product cost'!$E$14 -> 0 | X29: =W29*'Product cost'!$E$14 -> 0
Q31: Kit 6A | T31: =S31*'Product cost'!E15 -> 0 | V31: =U31*'Product cost'!G15 -> 0 | X31: =W31*'Product cost'!I15 -> 0
Q33: Anti-Shock Garment 6A Comp | T33: =S33*'Product cost'!$E$16 -> 0 | V33: =U33*'Product cost'!$E$16 -> 0 | X33: =W33*'Product cost'!$E$16 -> 0
Q35: Kit 6B | T35: =S35*'Product cost'!E17 -> 0 | V35: =U35*'Product cost'!G17 -> 0 | X35: =W35*'Product cost'!I17 -> 0
Q37: Misoprostol 6B Complement | T37: =S37*'Product cost'!$E$18 -> 0 | V37: =U37*'Product cost'!$E$18 -> 0 | X37: =W37*'Product cost'!$E$18 -> 0
Q39: Oxytocin 6B Comp | T39: =S39*'Product cost'!$E$19 -> 0 | V39: =U39*'Product cost'!$E$19 -> 0 | X39: =W39*'Product cost'!$E$19 -> 0
Q41: Kit 7 | T41: =S41*'Product cost'!$E$20 -> 0 | V41: =U41*'Product cost'!$E$20 -> 0 | X41: =W41*'Product cost'!$E$20 -> 0
Q43: Kit 8 | T43: =S43*'Product cost'!$E$21 -> 0 | V43: =U43*'Product cost'!$E$21 -> 0 | X43: =W43*'Product cost'!$E$21 -> 0
Q45: Mifepristone Kit 8 Comp | T45: =S45*'Product cost'!$E$22 -> 0 | V45: =U45*'Product cost'!$E$22 -> 0 | X45: =W45*'Product cost'!$E$22 -> 0
Q47: Misoprostol Kit 8 Comp | T47: =S47*'Product cost'!$E$23 -> 0 | V47: =U47*'Product cost'!$E$23 -> 0 | X47: =W47*'Product cost'!$E$23 -> 0
Q49: Kit 9 | T49: =S49*'Product cost'!$E$24 -> 0 | V49: =U49*'Product cost'!$E$24 -> 0 | X49: =W49*'Product cost'!$E$24 -> 0
Q51: Kit 10 | T51: =S51*'Product cost'!$E$25 -> 0 | V51: =U51*'Product cost'!$E$25 -> 0 | X51: =W51*'Product cost'!$E$25 -> 0
Q53: Kit 11A | T53: =S53*'Product cost'!$E$26 -> 0 | V53: =U53*'Product cost'!$E$26 -> 0 | X53: =W53*'Product cost'!$E$26 -> 0
Q55: Kit 11B | T55: =S55*'Product cost'!$E$27 -> 0 | V55: =U55*'Product cost'!$E$27 -> 0 | X55: =W55*'Product cost'!$E$27 -> 0
Q57: Kit 12 | T57: =S57*'Product cost'!$E$28 -> 0 | V57: =U57*'Product cost'!$E$28 -> 0 | X57: =W57*'Product cost'!$E$28 -> 0
Q59: TOTAL COST | S59: =SUM(T11:T58) -> 0 | U59: =SUM(V11:V58) -> 0 | W59: =SUM(X11:X58) -> 0

Sheet Advocacy Dashboard

Sheet Sample kits calculator (hidden)
A1: Key assumptions
A2: Population served by one community or primary health care facility | B2: =IF('Pop Data Entry'!G13=0, 'Pop Data Entry'!D13, 'Pop Data Entry'!G13) -> 8000
A3: Population served by one primary health care center | B3: =IF('Pop Data Entry'!G14=0, 'Pop Data Entry'!D14, 'Pop Data Entry'!G14) -> 50000
A4: Population served by one hospital or referral care facility | B4: =IF('Pop Data Entry'!G15=0, 'Pop Data Entry'!D15, 'Pop Data Entry'!G15) -> 30000
A6: Estimated Global population affected by humanitarian disasters | B6: =IF('Characteristics of Target Pop'!G8=0, 'Characteristics of Target Pop'!C8, 'Characteristics of Target Pop'!G8) -> 0
A7: Number of community and primary health care facilities to be equipped for RH response per 10,000 population | B7: =$B$6/B2 -> 0
A8: Number of health centers to be equipped for RH response per 30,000 population | B8: =$B$6/B3 -> 0
A9: Number of referral hospitals per 150,000 population | B9: =$B$6/B4 -> 0
A11: Inter-agency Reproductive Health Kits (for 3 months)
B12: Total Number of kits | C12: Number of boxes per Kit | D12: Number of boxes per kit NOT requiring cold chain | E12: Total Volume (m3) per Kit | F12: Volume per kit (m3) NOT requiring cold chain | G12: Total Weight (Kg) per Kit | H12: Weight (Kg) per kit NOT requiring cold chain | I12: Total number of boxes | J12: Total number of cold chain boxes | K12: Total Volume (m3) NOT requiring cold chain | L12: Total Volume (m3) requiring cold chain | M12: Total Weight (Kg) NON cold chain items | N12: Total weight (Kg) requiring cold chain storage | O12: Total Volume (m3) | P12: Total Weight (Kg)
A13: Block 1 (10,000 population)
A14: RH Kit 1A (Male Condoms) | B14: =$B$6/$B$2 -> 0 | C14: 4 | D14: 4 | E14: 0.29 | F14: 0.29 | G14: 62 | H14: 62 | I14: =B14*C14 -> 0 | J14: =B14*(C14-D14) -> 0 | K14: =B14*F14 -> 0 | L14: =B14*(E14-F14) -> 0 | M14: =B14*H14 -> 0 | N14: =B14* (G14-H14) -> 0 | O14: =SUM(K14,L14) -> 0 | P14: =SUM(M14,N14) -> 0
A15: RH Kit 1B (Female Condoms) | B15: =$B$6/$B$2 -> 0 | C15: 1 | D15: 1 | E15: 0.066 | F15: 0.066 | G15: 7 | H15: 7 | I15: 0 | J15: 0 | K15: =B15*F15 -> 0 | L15: =B15*(E15-F15) -> 0 | M15: =B15*H15 -> 0 | N15: =B15* (G15-H15) -> 0 | O15: =SUM(K15,L15) -> 0 | P15: =SUM(M15,N15) -> 0
A16: RH Kit 2A (Clean delivery subkit) | B16: 0 | C16: 4 | D16: 4 | E16: 0.316 | F16: 0.316 | G16: 92 | H16: 92 | I16: 0 | J16: 0 | K16: 0 | L16: 0 | M16: 0 | N16: 0 | O16: 0 | P16: 0
A17: RH Kit 2B (Clean delivery subkit) | B17: =$B$6/$B$2 -> 0 | C17: 1 | D17: 1 | E17: 0.038 | F17: 0.038 | G17: 10.25 | H17: 10.25 | I17: 0 | J17: 0 | K17: 0 | L17: 0 | M17: 0 | N17: 0 | O17: 0 | P17: 0
A18: RH Kit 3 (Rape Treatment) | B18: 0 | C18: 1 | D18: 1 | E18: 0.037 | F18: 0.037 | G18: 7 | H18: 7 | I18: =B18*C18 -> 0 | J18: 0 | K18: 0 | L18: 0 | M18: 0 | N18: 0 | O18: 0 | P18: 0
A19: RH Kit 4 (Oral and injectable contraception subkit) | B19: 0 | C19: 1 | D19: 1 | E19: 0.086 | F19: 0.086 | G19: 15 | H19: 15 | I19: 0 | J19: 0 | K19: 0 | L19: 0 | M19: 0 | N19: 0 | O19: 0 | P19: 0
A20: RH Kit 5 (Treatment of sexually transmitted infections) | B20: 0 | C20: 1 | D20: 1 | E20: 0.15 | F20: 0.15 | G20: 35 | H20: 35 | I20: 0 | J20: 0 | K20: 0 | L20: 0 | M20: 0 | N20: 0 | O20: 0 | P20: 0
A21: Block 2 (30,000 population)
A22: RH Kit 6A (Clean delivery assistance--reusable equipment) | B22: =$B$6/$B$3 -> 0 | C22: 2 | D22: 2 | E22: 0.236 | F22: 0.236 | G22: 31 | H22: 31 | I22: =B22*C22 -> 0 | J22: =B22*(C22-D22) -> 0 | K22: =B22*F22 -> 0 | L22: 0 | M22: 0 | N22: 0 | O22: =SUM(K22,L22) -> 0 | P22: 0
A23: RH Kit 6B (Clean delivery assistance--druge and disposable equipment) | B23: 0 | C23: 6 | D23: 5 | E23: 0.335 | F23: 0.325 | G23: 101.5 | H23: 101 | I23: 0 | J23: 0 | K23: 0 | L23: 0 | M23: 0 | N23: 0 | O23: 0 | P23: 0
A24: RH Kit 7 (Intra-uterine device subkit) | B24: 0 | C24: 1 | D24: 1 | E24: 0.086 | F24: 0.086 | G24: 14 | H24: 14 | I24: 0 | J24: 0 | K24: 0 | L24: 0 | M24: 0 | N24: 0 | O24: 0 | P24: 0
A25: RH Kit 8 (Management of miscarriage and complications of abortion) | B25: 0 | C25: 2 | D25: 1 | E25: 0.174 | F25: 0.15 | G25: 38 | H25: 36 | I25: 0 | J25: 0 | K25: 0 | L25: 0 | M25: 0 | N25: 0 | O25: 0 | P25: 0
A26: RH Kit 9 (Suture of tears for vaginal and cervical; vaginal examination) | B26: 0 | C26: 1 | D26: 1 | E26: 0.067 | F26: 0.067 | G26: 15 | H26: 15 | I26: 0 | J26: 0 | K26: 0 | L26: 0 | M26: 0 | N26: 0 | O26: 0 | P26: 0
A27: RH Kit 10 (Vacuum extraction delivery) | B27: 0 | C27: 1 | D27: 1 | E27: 0.03 | F27: 0.03 | G27: 3 | H27: 3 | I27: 0 | J27: 0 | K27: 0 | L27: 0 | M27: 0 | N27: 0 | O27: 0 | P27: 0
A28: Block 3 (150,000 population)
A29: RH Kit 11A (Referral level subkit, Part A: Reusable equipment) | B29: =$B$6/$B$4 -> 0 | C29: 1 | D29: 1 | E29: 0.086 | F29: 0.086 | G29: 20 | H29: 20 | I29: =B29*C29 -> 0 | J29: =B29*(C29-D29) -> 0 | K29: =B29*F29 -> 0 | L29: 0 | M29: 0 | N29: 0 | O29: =SUM(K29,L29) -> 0 | P29: 0
A30: RH Kit 11B (Referral level subkit, Part B: Drugs and disposable equipment) | B30: =$B$6/$B$4 -> 0 | C30: 35 | D30: 34 | E30: 3.13 | F30: 2.992 | G30: 1077 | H30: 1074 | I30: =B30*C30 -> 0 | J30: =B30*(C30-D30) -> 0 | K30: =B30*F30 -> 0 | L30: 0 | M30: 0 | N30: 0 | O30: =SUM(K30,L30) -> 0 | P30: 0
A31: RH Kit 12 (Blood transfusion) | B31: =$B$6/$B$4 -> 0 | C31: 2 | D31: 1 | E31: 0.156 | F31: 0.12 | G31: 18 | H31: 15 | I31: =B31*C31 -> 0 | J31: =B31*(C31-D31) -> 0 | K31: =B31*F31 -> 0 | L31: 0 | M31: 0 | N31: 0 | O31: =SUM(K31,L31) -> 0 | P31: 0

Sheet Commodity estimates
A1: KIT INFORMATION | G1: DOSAGE AND TREATMENT | J1: CLIENT LOAD PER HEALTH CONDITION | P1: KIT ESTIMATES | S1: COST ESTIMATE PER KIT
A2: KIT category | B2: Forecast | C2: Product(s) per kit | D2: Kit use | E2: Duration of kit use (in years) | F2: Formulation | G2: Dosage | H2: Treatment duration (days) | I2: Product quantity | J2: Client load Now - 3 Months | K2: Client load 3 - 6 Months | L2: Client load 6 - 9 Months | M2: Required items per kit (per WHO treatment plan | N2: Items per kit | O2: Target Pop per Item | P2: Kit Estimate Now - 3 Months | Q2: Kit Estimate 3 - 6 Months | R2: Kit Estimate 6 - 9 Months | S2: Product Cost Now - 3 Months | T2: Product Cost 3 - 6 Months | U2: Product Cost 6 - 9 Months
A3: KIT 1A | D3: Male Condoms
A4: KIT 1A | B4: Demographic | C4: Male condoms | E4: ='Pop Data Entry'!$D$19 -> 0.25 | F4: condom | G4: =12/30 -> 0.4 | H4: 90 | I4: =G4*H4 -> 36 | J4: =IF('Characteristics of Target Pop'!G46>0, 'Characteristics of Target Pop'!G46, 'Characteristics of Target Pop'!C46) -> 0 | K4: =IF('Characteristics of Target Pop'!H46>0, 'Characteristics of Target Pop'!H46, 'Characteristics of Target Pop'!D46) -> 0 | L4: =IF('Characteristics of Target Pop'!I46>0, 'Characteristics of Target Pop'!I46, 'Characteristics of Target Pop'!E46) -> 0 | M4: 17280 | N4: 17280 | O4: 1 | P4: =ROUNDUP(((J4*$I$4)/$N$4),0) -> 0 | Q4: =ROUNDUP(((K4*$I$4)/$N$4),0) -> 0 | R4: =ROUNDUP(((L4*$I$4)/$N$4),0) -> 0 | S4: =P4*'Product cost'!$E$5 -> 0 | T4: =Q4*'Product cost'!$E$5 -> 0 | U4: =R4*'Product cost'!$E$5 -> 0
A5: KIT 1A | B5: Logistics | P5: ='Logistics Data Summary'!B8 -> 0 | Q5: ='Logistics Data Summary'!C8 -> 0 | R5: ='Logistics Data Summary'!D8 -> 0 | S5: =P5*'Product cost'!$E$5 -> 0 | T5: =Q5*'Product cost'!$E$5 -> 0 | U5: =R5*'Product cost'!$E$5 -> 0
A6: KIT 1B (Complementary Kit) | D6: Female Condoms
A7: KIT 1B (Complementary Kit) | B7: Demographic | C7: Female condoms | E7: ='Pop Data Entry'!$D$19 -> 0.25 | F7: condom | G7: =6/30 -> 0.2 | H7: 90 | I7: =G7*H7 -> 18 | J7: =IF('Characteristics of Target Pop'!G48>0, 'Characteristics of Target Pop'!G48, 'Characteristics of Target Pop'!C48) -> 0 | K7: =IF('Characteristics of Target Pop'!H48>0, 'Characteristics of Target Pop'!H48, 'Characteristics of Target Pop'!D48) -> 0 | L7: =IF('Characteristics of Target Pop'!I48>0, 'Characteristics of Target Pop'!I48, 'Characteristics of Target Pop'!E48) -> 0 | M7: 540 | N7: 540 | O7: 1 | P7: =ROUNDUP(((J7*$I$7)/$N$7),0) -> 0 | Q7: =ROUNDUP(((K7*$I$7)/$N$7),0) -> 0 | R7: =ROUNDUP(((L7*$I$7)/$N$7),0) -> 0 | S7: =P7*'Product cost'!$E$6 -> 0 | T7: =Q7*'Product cost'!$E$6 -> 0 | U7: =R7*'Product cost'!$E$6 -> 0
A8: KIT 1B (Complementary Kit) | B8: Logistics | P8: ='Logistics Data Summary'!B9 -> 0 | Q8: ='Logistics Data Summary'!C9 -> 0 | R8: ='Logistics Data Summary'!D9 -> 0 | S8: =P8*'Product cost'!$E$6 -> 0 | T8: =Q8*'Product cost'!$E$6 -> 0 | U8: =R8*'Product cost'!$E$6 -> 0
A9: KIT 2A | D9: Clean Delivery
A10: Kit 2A | B10: Demographic | C10: Bag, plastic, approximately 18 x 28 cm, snap-lock fastening, for disposal of placenta | D10: Part A: Individual delivery | E10: ='Pop Data Entry'!$D$19 -> 0.25 | F10: bag | G10: 1 | H10: 1 | I10: =G10*H10 -> 1 | J10: =IF('Characteristics of Target Pop'!$G$14>0, 'Characteristics of Target Pop'!$G$14, 'Characteristics of Target Pop'!$C$14)*E10 -> 0 | K10: =IF('Characteristics of Target Pop'!$H$14>0, 'Characteristics of Target Pop'!$H$14, 'Characteristics of Target Pop'!$D$14)*E10 -> 0 | L10: =IF('Characteristics of Target Pop'!$I$14>0, 'Characteristics of Target Pop'!$I$14, 'Characteristics of Target Pop'!$E$14)*E10 -> 0 | M10: 200 | N10: =200*G10 -> 200 | O10: 1 | P10: =ROUNDUP(((J10*I10)/N10),0) -> 0 | Q10: =ROUNDUP(((K10*I10)/N10),0) -> 0 | R10: =ROUNDUP(((L10*I10)/N10),0) -> 0 | S10: =MAX(P10:P17)*'Product cost'!$E$7 -> 0 | T10: =MAX(Q10:Q17)*'Product cost'!$E$7 -> 0 | U10: =MAX(R10:R17)*'Product cost'!$E$7 -> 0
A11: Kit 2A | B11: Demographic | C11: Toilet soap, bar, approx.110 g, wrapped | E11: ='Pop Data Entry'!$D$19 -> 0.25 | F11: bar | G11: 1 | H11: 1 | I11: =G11*H11 -> 1 | J11: =IF('Characteristics of Target Pop'!$G$14>0, 'Characteristics of Target Pop'!$G$14, 'Characteristics of Target Pop'!$C$14)*E11 -> 0 | K11: =IF('Characteristics of Target Pop'!$H$14>0, 'Characteristics of Target Pop'!$H$14, 'Characteristics of Target Pop'!$D$14)*E11 -> 0 | L11: =IF('Characteristics of Target Pop'!$I$14>0, 'Characteristics of Target Pop'!$I$14, 'Characteristics of Target Pop'!$E$14)*E11 -> 0 | M11: 200 | N11: 200 | O11: 1 | P11: 0 | Q11: 0 | R11: 0
A12: Kit 2A | B12: Demographic | C12: Drawsheet, plastic, approximately 100 x 100 cm | E12: ='Pop Data Entry'!$D$19 -> 0.25 | F12: sheet | G12: 1 | H12: 1 | I12: 1 | J12: =IF('Characteristics of Target Pop'!$G$14>0, 'Characteristics of Target Pop'!$G$14, 'Characteristics of Target Pop'!$C$14)*E12 -> 0 | K12: =IF('Characteristics of Target Pop'!$H$14>0, 'Characteristics of Target Pop'!$H$14, 'Characteristics of Target Pop'!$D$14)*E12 -> 0 | L12: =IF('Characteristics of Target Pop'!$I$14>0, 'Characteristics of Target Pop'!$I$14, 'Characteristics of Target Pop'!$E$14)*E12 -> 0 | M12: 200 | N12: 200 | O12: 1 | P12: 0 | Q12: 0 | R12: 0
A13: Kit 2A | B13: Demographic | C13: Scissors, umbilical cord, round blades, b/b, sterile, disposable | E13: ='Pop Data Entry'!$D$19 -> 0.25 | F13: blade | G13: 1 | H13: 1 | I13: 1 | J13: =IF('Characteristics of Target Pop'!$G$14>0, 'Characteristics of Target Pop'!$G$14, 'Characteristics of Target Pop'!$C$14)*E13 -> 0 | K13: =IF('Characteristics of Target Pop'!$H$14>0, 'Characteristics of Target Pop'!$H$14, 'Characteristics of Target Pop'!$D$14)*E13 -> 0 | L13: =IF('Characteristics of Target Pop'!$I$14>0, 'Characteristics of Target Pop'!$I$14, 'Characteristics of Target Pop'!$E$14)*E13 -> 0 | M13: 200 | N13: 200 | O13: 1 | P13: 0 | Q13: 0 | R13: 0
A14: Kit 2A | B14: Demographic | C14: Tape, umbilical, 3 mm x 15 cm | E14: ='Pop Data Entry'!$D$19 -> 0.25 | F14: tape | G14: 3 | H14: 1 | I14: 3 | J14: =IF('Characteristics of Target Pop'!$G$14>0, 'Characteristics of Target Pop'!$G$14, 'Characteristics of Target Pop'!$C$14)*E14 -> 0 | K14: =IF('Characteristics of Target Pop'!$H$14>0, 'Characteristics of Target Pop'!$H$14, 'Characteristics of Target Pop'!$D$14)*E14 -> 0 | L14: =IF('Characteristics of Target Pop'!$I$14>0, 'Characteristics of Target Pop'!$I$14, 'Characteristics of Target Pop'!$E$14)*E14 -> 0 | M14: 600 | N14: 600 | O14: 1 | P14: 0 | Q14: 0 | R14: 0
A15: Kit 2A | B15: Demographic | C15: Cotton cloth/towel, ‘tetra’, approx. 90 g/m2, approx. 100 x 100 cm | E15: ='Pop Data Entry'!$D$19 -> 0.25 | F15: towel | G15: 2 | H15: 1 | I15: 2 | J15: =IF('Characteristics of Target Pop'!$G$14>0, 'Characteristics of Target Pop'!$G$14, 'Characteristics of Target Pop'!$C$14)*E15 -> 0 | K15: =IF('Characteristics of Target Pop'!$H$14>0, 'Characteristics of Target Pop'!$H$14, 'Characteristics of Target Pop'!$D$14)*E15 -> 0 | L15: =IF('Characteristics of Target Pop'!$I$14>0, 'Characteristics of Target Pop'!$I$14, 'Characteristics of Target Pop'!$E$14)*E15 -> 0 | M15: 400 | N15: 400 | O15: 1 | P15: 0 | Q15: 0 | R15: 0
A16: Kit 2A | B16: Demographic | C16: Gloves, examination, medium, single use, box of 100 | E16: ='Pop Data Entry'!$D$19 -> 0.25 | F16: gloves | G16: 2 | H16: 1 | I16: 2 | J16: =IF('Characteristics of Target Pop'!$G$14>0, 'Characteristics of Target Pop'!$G$14, 'Characteristics of Target Pop'!$C$14)*E16 -> 0 | K16: =IF('Characteristics of Target Pop'!$H$14>0, 'Characteristics of Target Pop'!$H$14, 'Characteristics of Target Pop'!$D$14)*E16 -> 0 | L16: =IF('Characteristics of Target Pop'!$I$14>0, 'Characteristics of Target Pop'!$I$14, 'Characteristics of Target Pop'!$E$14)*E16 -> 0 | M16: 400 | N16: 400 | O16: 1 | P16: 0 | Q16: 0 | R16: 0
A17: Kit 2A | B17: Demographic | C17: Pictorial instruction sheet | E17: ='Pop Data Entry'!$D$19 -> 0.25 | F17: sheet | G17: 1 | H17: 1 | I17: 1 | J17: =IF('Characteristics of Target Pop'!$G$14>0, 'Characteristics of Target Pop'!$G$14, 'Characteristics of Target Pop'!$C$14)*E17 -> 0 | K17: =IF('Characteristics of Target Pop'!$H$14>0, 'Characteristics of Target Pop'!$H$14, 'Characteristics of Target Pop'!$D$14)*E17 -> 0 | L17: =IF('Characteristics of Target Pop'!$I$14>0, 'Characteristics of Target Pop'!$I$14, 'Characteristics of Target Pop'!$E$14)*E17 -> 0 | M17: 200 | N17: 200 | O17: 1 | P17: 0 | Q17: 0 | R17: 0
A18: Kit 2A | B18: Logistics | P18: ='Logistics Data Summary'!B10 -> 0 | Q18: ='Logistics Data Summary'!C10 -> 0 | R18: ='Logistics Data Summary'!D10 -> 0 | S18: =P18*'Product cost'!$E$7 -> 0 | T18: =Q18*'Product cost'!$E$7 -> 0 | U18: =R18*'Product cost'!$E$7 -> 0
A19: Chlorhexidine for cord care (Bulk) 2A Complement | D19: Complement to Kit 2A
A20: Chlorhexidine for cord care (Bulk) 2A Complement | B20: Demographic | C20: Chlorhexidine Di-gluconate 7.1%, gel, tube, 10g | E20: 0.25 | F20: tube | G20: 1 | H20: 1 | I20: 1 | J20: =IF('Characteristics of Target Pop'!$G$14>0, 'Characteristics of Target Pop'!$G$14, 'Characteristics of Target Pop'!$C$14)*E20 -> 0 | K20: =IF('Characteristics of Target Pop'!$H$14>0, 'Characteristics of Target Pop'!$H$14, 'Characteristics of Target Pop'!$D$14)*E20 -> 0 | L20: =IF('Characteristics of Target Pop'!$I$14>0, 'Characteristics of Target Pop'!$I$14, 'Characteristics of Target Pop'!$E$14)*E20 -> 0 | N20: 200 | O20: 1 | P20: =ROUNDUP(((J20*I20)/N20),0) -> 0 | Q20: =ROUNDUP(((K20*I20)/N20),0) -> 0 | R20: =ROUNDUP(((L20*I20)/N20),0) -> 0 | S20: =P20*'Product cost'!$E$8 -> 0 | T20: =Q20*'Product cost'!$E$8 -> 0 | U20: =R20*'Product cost'!$E$8 -> 0
A21: Chlorhexidine for cord care (Bulk) 2A Complement | B21: Logistics | P21: ='Logistics Data Summary'!B11 -> 0 | Q21: ='Logistics Data Summary'!C11 -> 0 | R21: ='Logistics Data Summary'!D11 -> 0 | S21: =P21*'Product cost'!$E$8 -> 0 | T21: =Q21*'Product cost'!$E$8 -> 0 | U21: =R21*'Product cost'!$E$8 -> 0
A22: Misoprostol (Bulk) 2A Complement | D22: Complement to Kit 2A
A23: Misoprostol (Bulk) 2A Complement | B23: Demographic | C23: Misoprostol, tablet, 0.2 mg (200 mcg) | E23: 0.25 | I23: 3 | J23: =IF('Characteristics of Target Pop'!$G$14>0, 'Characteristics of Target Pop'!$G$14, 'Characteristics of Target Pop'!$C$14)*E23 -> 0 | K23: =IF('Characteristics of Target Pop'!$H$14>0, 'Characteristics of Target Pop'!$H$14, 'Characteristics of Target Pop'!$D$14)*E23 -> 0 | L23: =IF('Characteristics of Target Pop'!$I$14>0, 'Characteristics of Target Pop'!$I$14, 'Characteristics of Target Pop'!$E$14)*E23 -> 0 | N23: 600 | O23: 1 | P23: =ROUNDUP(((J23*I23)/N23),0) -> 0 | Q23: =ROUNDUP(((K23*I23)/N23),0) -> 0 | R23: =ROUNDUP(((L23*I23)/N23),0) -> 0 | S23: =P23*'Product cost'!$E$9 -> 0 | T23: =Q23*'Product cost'!$E$9 -> 0 | U23: =R23*'Product cost'!$E$9 -> 0
A24: Misoprostol (Bulk) 2A Complement | B24: Logistics | P24: ='Logistics Data Summary'!B12 -> 0 | Q24: ='Logistics Data Summary'!C12 -> 0 | R24: ='Logistics Data Summary'!D12 -> 0 | S24: =P24*'Product cost'!$E$9 -> 0 | T24: =Q24*'Product cost'!$E$9 -> 0 | U24: =R24*'Product cost'!$E$9 -> 0
A25: KIT 2B | D25: Clean Delivery
A26: Kit 2B | B26: Demographic | C26: Bag, shoulder, UNFPA logo, vinyl, approx. 360 x 230 x 610 mm | D26: Part B: For use by birth attendants | E26: ='Pop Data Entry'!$D$19 -> 0.25 | F26: bag | G26: 5 | H26: 1 | I26: 5 | J26: =IF('Characteristics of Target Pop'!$G$8>0,'Characteristics of Target Pop'!$G$8,'Characteristics of Target Pop'!$C$8)/10000*5 -> 0 | K26: =IF('Characteristics of Target Pop'!$H$8>0,'Characteristics of Target Pop'!$H$8,'Characteristics of Target Pop'!$D$8)/10000*5 -> 0 | L26: =IF('Characteristics of Target Pop'!$I$8>0,'Characteristics of Target Pop'!$I$8,'Characteristics of Target Pop'!$E$8)/10000*5 -> 0 | M26: 5 | N26: 5 | O26: 1 | P26: =ROUNDUP((J26/$N$26),0) -> 0 | Q26: =ROUNDUP((K26/N26),0) -> 0 | R26: =ROUNDUP((L26/$N$26),0) -> 0 | S26: =MAX(P26:P30)*'Product cost'!$E$10 -> 0 | T26: =MAX(Q26:Q30)*'Product cost'!$E$10 -> 0 | U26: =MAX(R26:R30)*'Product cost'!$E$10 -> 0
A27: Kit 2B | B27: Demographic | C27: Gloves, examination, medium, single use, box of 100 | E27: ='Pop Data Entry'!$D$19 -> 0.25 | F27: gloves | G27: 5 | H27: 1 | I27: 5 | J27: =IF('Characteristics of Target Pop'!$G$8>0,'Characteristics of Target Pop'!$G$8,'Characteristics of Target Pop'!$C$8)/10000*5 -> 0 | K27: =IF('Characteristics of Target Pop'!$H$8>0,'Characteristics of Target Pop'!$H$8,'Characteristics of Target Pop'!$D$8)/10000*5 -> 0 | L27: =IF('Characteristics of Target Pop'!$I$8>0,'Characteristics of Target Pop'!$I$8,'Characteristics of Target Pop'!$E$8)/10000*5 -> 0 | M27: 5 | N27: 5 | O27: 1 | P27: =ROUNDUP((J27/N27),0) -> 0 | Q27: =ROUNDUP((K27/N27),0) -> 0 | R27: =ROUNDUP((L27/$N$26),0) -> 0
A28: Kit 2B | B28: Demographic | C28: Flashlight, LED, re-chargeable | E28: ='Pop Data Entry'!$D$19 -> 0.25 | F28: flashlight | G28: 5 | H28: 1 | I28: 5 | J28: =IF('Characteristics of Target Pop'!$G$8>0,'Characteristics of Target Pop'!$G$8,'Characteristics of Target Pop'!$C$8)/10000*5 -> 0 | K28: =IF('Characteristics of Target Pop'!$H$8>0,'Characteristics of Target Pop'!$H$8,'Characteristics of Target Pop'!$D$8)/10000*5 -> 0 | L28: =IF('Characteristics of Target Pop'!$I$8>0,'Characteristics of Target Pop'!$I$8,'Characteristics of Target Pop'!$E$8)/10000*5 -> 0 | M28: 5 | N28: 5 | O28: 1 | P28: =ROUNDUP((J28/N28),0) -> 0 | Q28: =ROUNDUP((K28/N28),0) -> 0 | R28: =ROUNDUP((L28/$N$26),0) -> 0
A29: Kit 2B | B29: Demographic | C29: Apron, protective, plastic, reusable | E29: ='Pop Data Entry'!$D$19 -> 0.25 | F29: apron | G29: 5 | H29: 1 | I29: 5 | J29: =IF('Characteristics of Target Pop'!$G$8>0,'Characteristics of Target Pop'!$G$8,'Characteristics of Target Pop'!$C$8)/10000*5 -> 0 | K29: =IF('Characteristics of Target Pop'!$H$8>0,'Characteristics of Target Pop'!$H$8,'Characteristics of Target Pop'!$D$8)/10000*5 -> 0 | L29: =IF('Characteristics of Target Pop'!$I$8>0,'Characteristics of Target Pop'!$I$8,'Characteristics of Target Pop'!$E$8)/10000*5 -> 0 | M29: 5 | N29: 5 | O29: 1 | P29: =ROUNDUP((J29/N29),0) -> 0 | Q29: =ROUNDUP((K29/N29),0) -> 0 | R29: =ROUNDUP((L29/$N$26),0) -> 0
A30: Kit 2B | B30: Demographic | C30: Poncho, wet-weather | E30: ='Pop Data Entry'!$D$19 -> 0.25 | F30: poncho | G30: 5 | H30: 1 | I30: 5 | J30: =IF('Characteristics of Target Pop'!$G$8>0,'Characteristics of Target Pop'!$G$8,'Characteristics of Target Pop'!$C$8)/10000*5 -> 0 | K30: =IF('Characteristics of Target Pop'!$H$8>0,'Characteristics of Target Pop'!$H$8,'Characteristics of Target Pop'!$D$8)/10000*5 -> 0 | L30: =IF('Characteristics of Target Pop'!$I$8>0,'Characteristics of Target Pop'!$I$8,'Characteristics of Target Pop'!$E$8)/10000*5 -> 0 | M30: 5 | N30: 5 | O30: 1 | P30: =ROUNDUP((J30/N30),0) -> 0 | Q30: =ROUNDUP((K30/N30),0) -> 0 | R30: =ROUNDUP((L30/$N$26),0) -> 0
A31: Kit 2B | B31: Logistics | P31: ='Logistics Data Summary'!B13 -> 0 | Q31: ='Logistics Data Summary'!C13 -> 0 | R31: ='Logistics Data Summary'!D13 -> 0 | S31: =P31*'Product cost'!$E$10 -> 0 | T31: =Q31*'Product cost'!$E$10 -> 0 | U31: =R31*'Product cost'!$E$10 -> 0
A32: KIT 3 | D32: Post Rape Treatment
A33: Kit 3 | B33: Demographic | C33: Levonorgestrel, tablet, 1.5 mg, (treatment: single dose) | E33: ='Pop Data Entry'!$D$19 -> 0.25 | F33: tablet | G33: 1 | H33: 1 | I33: 1 | J33: =IF('Characteristics of Target Pop'!$G$54>0, 'Characteristics of Target Pop'!$G$54, 'Characteristics of Target Pop'!$C$54)+IF('Characteristics of Target Pop'!$G$55>0,'Characteristics of Target Pop'!$G$55,'Characteristics of Target Pop'!$C$55)/2 -> 0 | K33: =IF('Characteristics of Target Pop'!$H$54>0, 'Characteristics of Target Pop'!$H$54, 'Characteristics of Target Pop'!$D$54)+IF('Characteristics of Target Pop'!$H$55>0,'Characteristics of Target Pop'!$H$55,'Characteristics of Target Pop'!$D$55)/2 -> 0 | L33: =IF('Characteristics of Target Pop'!$I$54>0, 'Characteristics of Target Pop'!$I$54, 'Characteristics of Target Pop'!$E$54)+IF('Characteristics of Target Pop'!$I$55>0,'Characteristics of Target Pop'!$I$55,'Characteristics of Target Pop'!$E$55)/2 -> 0 | M33: 55 | N33: 55 | O33: 1 | P33: =ROUNDUP(((J33*$I$33)/$N$33),0) -> 0 | Q33: =ROUNDUP(((K33*I33)/N33),0) -> 0 | R33: =ROUNDUP(((L33*I33)/N33),0) -> 0 | S33: =MAX(P33:P44)*'Product cost'!$E$11 -> 0 | T33: =MAX(Q33:Q44)*'Product cost'!$E$11 -> 0 | U33: =MAX(R33:R44)*'Product cost'!$E$11 -> 0
A34: Kit 3 | B34: Demographic | C34: Azithromycin, capsule, 250 mg | E34: ='Pop Data Entry'!$D$19 -> 0.25 | F34: tablet | G34: 4 | H34: 1 | I34: =G34*H34 -> 4 | J34: =IF('Characteristics of Target Pop'!$G$54>0, 'Characteristics of Target Pop'!$G$54, 'Characteristics of Target Pop'!$C$54)+IF('Characteristics of Target Pop'!$G$55>0,'Characteristics of Target Pop'!$G$55,'Characteristics of Target Pop'!$C$55)/2 -> 0 | K34: =IF('Characteristics of Target Pop'!$H$54>0, 'Characteristics of Target Pop'!$H$54, 'Characteristics of Target Pop'!$D$54)+IF('Characteristics of Target Pop'!$H$55>0,'Characteristics of Target Pop'!$H$55,'Characteristics of Target Pop'!$D$55)/2 -> 0 | L34: =IF('Characteristics of Target Pop'!$I$54>0, 'Characteristics of Target Pop'!$I$54, 'Characteristics of Target Pop'!$E$54)+IF('Characteristics of Target Pop'!$I$55>0,'Characteristics of Target Pop'!$I$55,'Characteristics of Target Pop'!$E$55)/2 -> 0 | M34: 220 | N34: 220 | O34: 1 | P34: =ROUNDUP(((J34*I34)/N34),0) -> 0 | Q34: =ROUNDUP(((K34*I34)/N34),0) -> 0 | R34: =ROUNDUP(((L34*I34)/N34),0) -> 0
A35: Kit 3 | B35: Demographic | C35: Azithromycin, oral suspension, 200 mg per 5 ml, bottle 15 ml | E35: ='Pop Data Entry'!$D$19 -> 0.25 | F35: suspension | G35: 1 | H35: 1 | I35: =G35*H35 -> 1 | J35: =IF('Characteristics of Target Pop'!$G$55>0,'Characteristics of Target Pop'!$G$55,'Characteristics of Target Pop'!$C$55)/2 -> 0 | K35: =IF('Characteristics of Target Pop'!$H$55>0,'Characteristics of Target Pop'!$H$55,'Characteristics of Target Pop'!$D$55)/2 -> 0 | L35: =IF('Characteristics of Target Pop'!$I$55>0,'Characteristics of Target Pop'!$I$55,'Characteristics of Target Pop'!$E$55)/2 -> 0 | M35: 5 | N35: 5 | O35: 1 | P35: 0 | Q35: 0 | R35: 0
A36: Kit 3 | B36: Demographic | C36: Cefixime 200mg tablets | E36: ='Pop Data Entry'!$D$19 -> 0.25 | F36: tablet | G36: 2 | H36: 1 | I36: =(G36*H36) -> 2 | J36: =IF('Characteristics of Target Pop'!$G$54>0, 'Characteristics of Target Pop'!$G$54, 'Characteristics of Target Pop'!$C$54)+IF('Characteristics of Target Pop'!$G$55>0,'Characteristics of Target Pop'!$G$55,'Characteristics of Target Pop'!$C$55)/2 -> 0 | K36: =IF('Characteristics of Target Pop'!$H$54>0, 'Characteristics of Target Pop'!$H$54, 'Characteristics of Target Pop'!$D$54)+IF('Characteristics of Target Pop'!$H$55>0,'Characteristics of Target Pop'!$H$55,'Characteristics of Target Pop'!$D$55)/2 -> 0 | L36: =IF('Characteristics of Target Pop'!$I$54>0, 'Characteristics of Target Pop'!$I$54, 'Characteristics of Target Pop'!$E$54)+IF('Characteristics of Target Pop'!$I$55>0,'Characteristics of Target Pop'!$I$55,'Characteristics of Target Pop'!$E$55)/2 -> 0 | M36: 110 | N36: 110 | O36: 1 | P36: 0 | Q36: 0 | R36: 0
A37: Kit 3 | B37: Demographic | C37: Cefixime (as trihydrate), dry syrup for oral suspension, 100 mg/5 ml, bottle 30 ml | E37: ='Pop Data Entry'!$D$19 -> 0.25 | F37: syrup | G37: 2 | H37: 1 | I37: =G37*H37 -> 2 | J37: =IF('Characteristics of Target Pop'!$G$55>0,'Characteristics of Target Pop'!$G$55,'Characteristics of Target Pop'!$C$55)/2 -> 0 | K37: =IF('Characteristics of Target Pop'!$H$55>0,'Characteristics of Target Pop'!$H$55,'Characteristics of Target Pop'!$D$55)/2 -> 0 | L37: =IF('Characteristics of Target Pop'!$I$55>0,'Characteristics of Target Pop'!$I$55,'Characteristics of Target Pop'!$E$55)/2 -> 0 | M37: 10 | N37: 10 | O37: 1 | P37: 0 | Q37: 0 | R37: 0
A38: Kit 3 | B38: Demographic | C38: Tenofovir (TDF) + lamivudine (3TC), tablets 300+300 mg (adults: 1 tab/day for 28 days) | G38: 1 | H38: 28 | I38: =H38*G38 -> 28 | J38: =IF('Characteristics of Target Pop'!G56>0,'Characteristics of Target Pop'!G56,'Characteristics of Target Pop'!C56) -> 0 | K38: =IF('Characteristics of Target Pop'!H56>0,'Characteristics of Target Pop'!H56,'Characteristics of Target Pop'!D56) -> 0 | L38: =IF('Characteristics of Target Pop'!I56>0,'Characteristics of Target Pop'!I56,'Characteristics of Target Pop'!E56) -> 0 | N38: 900 | O38: 1 | P38: 0 | Q38: 0 | R38: 0
A39: Kit 3 | B39: Demographic | C39: Atazanavir (ATV) + ritonavir ®, tablets 300+100mg (adults: 1 tab/day for 28 days) | G39: 1 | H39: 28 | I39: =H39*G39 -> 28 | J39: =IF('Characteristics of Target Pop'!G56>0,'Characteristics of Target Pop'!G56,'Characteristics of Target Pop'!C56) -> 0 | K39: =IF('Characteristics of Target Pop'!H56>0,'Characteristics of Target Pop'!H56,'Characteristics of Target Pop'!D56) -> 0 | L39: =IF('Characteristics of Target Pop'!I56>0,'Characteristics of Target Pop'!I56,'Characteristics of Target Pop'!E56) -> 0 | N39: 900 | O39: 1 | P39: 0 | Q39: 0 | R39: 0
A40: Kit 3 | B40: Demographic | C40: Zidovudine (AZT) + lamivudine (3TC), tablets 60+30 mg (children) | G40: 6 | H40: 28 | I40: =H40*G40 -> 168 | J40: =IF('Characteristics of Target Pop'!$G$57>0,'Characteristics of Target Pop'!$G$57,'Characteristics of Target Pop'!$C$57) -> 0 | K40: =IF('Characteristics of Target Pop'!$H$57>0,'Characteristics of Target Pop'!$H$57,'Characteristics of Target Pop'!$D$57) -> 0 | L40: =IF('Characteristics of Target Pop'!$I$57>0,'Characteristics of Target Pop'!$I$57,'Characteristics of Target Pop'!$E$57) -> 0 | N40: 1440 | O40: 1 | P40: =ROUNDUP(((J40*I40)/N40),0) -> 0 | Q40: =ROUNDUP(((K40*I40)/N40),0) -> 0 | R40: =ROUNDUP(((L40*I40)/N40),0) -> 0
A41: Kit 3 | B41: Demographic | C41: Lopinavir (LPV) + ritonavir ®, tablets 200+50 mg (children) | G41: 1 | H41: 28 | I41: =H41*G41 -> 28 | J41: =IF('Characteristics of Target Pop'!$G$57>0,'Characteristics of Target Pop'!$G$57,'Characteristics of Target Pop'!$C$57) -> 0 | K41: =IF('Characteristics of Target Pop'!$H$57>0,'Characteristics of Target Pop'!$H$57,'Characteristics of Target Pop'!$D$57) -> 0 | L41: =IF('Characteristics of Target Pop'!$I$57>0,'Characteristics of Target Pop'!$I$57,'Characteristics of Target Pop'!$E$57) -> 0 | N41: 240 | O41: 1 | P41: =ROUNDUP(((J41*I41)/N41),0) -> 0 | Q41: =ROUNDUP(((K41*I41)/N41),0) -> 0 | R41: =ROUNDUP(((L41*I41)/N41),0) -> 0
A42: Kit 3 | B42: Demographic | C42: Lopinavir (LPV) + ritonavir ®, tablets 100+25 mg (children) | G42: 1 | H42: 22 | I42: =H42*G42 -> 22 | J42: =IF('Characteristics of Target Pop'!$G$57>0,'Characteristics of Target Pop'!$G$57,'Characteristics of Target Pop'!$C$57) -> 0 | K42: =IF('Characteristics of Target Pop'!$H$57>0,'Characteristics of Target Pop'!$H$57,'Characteristics of Target Pop'!$D$57) -> 0 | L42: =IF('Characteristics of Target Pop'!$I$57>0,'Characteristics of Target Pop'!$I$57,'Characteristics of Target Pop'!$E$57) -> 0 | N42: 180 | O42: 1 | P42: =ROUNDUP(((J42*I42)/N42),0) -> 0 | Q42: =ROUNDUP(((K42*I42)/N42),0) -> 0 | R42: =ROUNDUP(((L42*I42)/N42),0) -> 0
A43: Kit 3 | B43: Demographic | C43: Pregnancy test, temperature stable | E43: ='Pop Data Entry'!$D$19 -> 0.25 | F43: tablet | G43: 1 | H43: 1 | I43: =G43*H43 -> 1 | J43: =IF('Characteristics of Target Pop'!G54>0,'Characteristics of Target Pop'!G54,'Characteristics of Target Pop'!C54)*0.5 -> 0 | K43: =IF('Characteristics of Target Pop'!H54>0,'Characteristics of Target Pop'!H54,'Characteristics of Target Pop'!D54)*0.5 -> 0 | L43: =IF('Characteristics of Target Pop'!I54>0,'Characteristics of Target Pop'!I54,'Characteristics of Target Pop'!E54)*0.5 -> 0 | M43: 25 | N43: 25 | O43: 1 | P43: 0 | Q43: 0 | R43: 0
A44: Kit 3 | B44: Demographic | C44: Bag (envelope), plastic, for drugs, approx. 10 x 15 cm, pack of 100 | E44: ='Pop Data Entry'!$D$19 -> 0.25 | F44: bag | G44: 2 | H44: 1 | I44: =G44*H44 -> 2 | J44: =IF('Characteristics of Target Pop'!G54>0,'Characteristics of Target Pop'!G54,'Characteristics of Target Pop'!C54) -> 0 | K44: =IF('Characteristics of Target Pop'!H54>0,'Characteristics of Target Pop'!H54,'Characteristics of Target Pop'!D54) -> 0 | L44: =IF('Characteristics of Target Pop'!I54>0,'Characteristics of Target Pop'!I54,'Characteristics of Target Pop'!E54) -> 0 | M44: 100 | N44: 100 | O44: 1 | P44: 0 | Q44: 0 | R44: 0
A45: Kit 3 | B45: Logistics | P45: ='Logistics Data Summary'!B14 -> 0 | Q45: ='Logistics Data Summary'!C14 -> 0 | R45: ='Logistics Data Summary'!D14 -> 0 | S45: =P45*'Product cost'!$E$11 -> 0 | T45: =Q45*'Product cost'!$E$11 -> 0 | U45: =R45*'Product cost'!$E$11 -> 0
A46: KIT 4 | D46: Oral and Injectable contraception
A47: Kit 4 | B47: Demographic | C47: Ethinylestradiol 0.03 mg, plus levonorgestrel, 0.15 mg, combined tablet, 1 strip for 1 cycle (113 women x 3 cycles + 10% wastage) | D47: Medicines | E47: ='Pop Data Entry'!$D$19 -> 0.25 | F47: strip | G47: 1 | H47: 3 | I47: =(G47*H47)*1.1049 -> 3.3147 | J47: =IF('Characteristics of Target Pop'!$G$49>0, 'Characteristics of Target Pop'!$G$49, 'Characteristics of Target Pop'!$C$49) -> 0 | K47: =IF('Characteristics of Target Pop'!$H$49>0, 'Characteristics of Target Pop'!$H$49, 'Characteristics of Target Pop'!$D$49) -> 0 | L47: =IF('Characteristics of Target Pop'!$I$49>0, 'Characteristics of Target Pop'!$I$49, 'Characteristics of Target Pop'!$E$49) -> 0 | M47: 337.5 | N47: 375 | O47: 1 | P47: =ROUNDUP(((J47*$I$47)/$N$47),0) -> 0 | Q47: =ROUNDUP(((K47*I47)/N47),0) -> 0 | R47: =ROUNDUP(((L47*I47)/N47),0) -> 0 | S47: =MAX(P47:P55)*'Product cost'!$E$12 -> 0 | T47: =MAX(Q47:Q55)*'Product cost'!$E$12 -> 0 | U47: =MAX(R47:R55)*'Product cost'!$E$12 -> 0
A48: Kit 4 | B48: Demographic | C48: Levonorgestrel, tablet, 1.5 mg, (treatment: single dose) | E48: ='Pop Data Entry'!$D$19 -> 0.25 | F48: tablet | G48: 1 | H48: 1 | I48: =G48*H48 -> 1 | J48: =IF('Characteristics of Target Pop'!G52>0,'Characteristics of Target Pop'!G52,'Characteristics of Target Pop'!C52)*3 -> 0 | K48: =IF('Characteristics of Target Pop'!H52>0,'Characteristics of Target Pop'!H52,'Characteristics of Target Pop'!D52)*3 -> 0 | L48: =IF('Characteristics of Target Pop'!I52>0,'Characteristics of Target Pop'!I52,'Characteristics of Target Pop'!E52)*3 -> 0 | M48: 59.99999963 | N48: 60 | O48: 1 | P48: =ROUNDUP(((J48*I48)/N48),0) -> 0 | Q48: =ROUNDUP(((K48*I48)/N48),0) -> 0 | R48: =ROUNDUP(((L48*I48)/N48),0) -> 0
A49: Kit 4 | B49: Demographic | C49: Levonorgestrel, tablet, 0.03 mg, 1 strip for 1 cycle (20 women x 3 cycles) | E49: ='Pop Data Entry'!$D$19 -> 0.25 | F49: strip | G49: 1 | H49: 3 | I49: =G49*H49 -> 3 | J49: =IF('Characteristics of Target Pop'!G51 >0, 'Characteristics of Target Pop'!G51, 'Characteristics of Target Pop'!C51) -> 0 | K49: =IF('Characteristics of Target Pop'!H51 >0, 'Characteristics of Target Pop'!H51, 'Characteristics of Target Pop'!D51) -> 0 | L49: =IF('Characteristics of Target Pop'!I51 >0, 'Characteristics of Target Pop'!I51, 'Characteristics of Target Pop'!E51) -> 0 | M49: 60 | N49: 60 | O49: 1 | P49: 0 | Q49: 0 | R49: 0
A50: Kit 4 | B50: Demographic | C50: Medroxyprogesterone acetate, depot injection, 150 mg/ml, 1-ml vial | E50: ='Pop Data Entry'!$D$19 -> 0.25 | F50: amp | G50: 1 | H50: 1 | I50: =(G50*H50)*1.42783728732 -> 1.427837287 | J50: =IF('Characteristics of Target Pop'!$G$50>0, 'Characteristics of Target Pop'!$G$50, 'Characteristics of Target Pop'!$C$50) -> 0 | K50: =IF('Characteristics of Target Pop'!$H$50>0, 'Characteristics of Target Pop'!$H$50, 'Characteristics of Target Pop'!$D$50) -> 0 | L50: =IF('Characteristics of Target Pop'!$I$50>0, 'Characteristics of Target Pop'!$I$50, 'Characteristics of Target Pop'!$E$50) -> 0 | M50: 209.625 | N50: 300 | O50: 1 | P50: 0 | Q50: 0 | R50: 0
A51: Kit 4 | B51: Demographic | C51: Chlorhexidine gluconate, concentrated solution, 5%, bottle, 1000 ml | E51: ='Pop Data Entry'!$D$19 -> 0.25 | G51: 3 | H51: 1 | I51: =G51*H51 -> 3 | J51: =IF('Characteristics of Target Pop'!$G$8>0, 'Characteristics of Target Pop'!$G$8, 'Characteristics of Target Pop'!$C$8) -> 0 | K51: =IF('Characteristics of Target Pop'!$H$8>0, 'Characteristics of Target Pop'!$H$8, 'Characteristics of Target Pop'!$D$8) -> 0 | L51: =IF('Characteristics of Target Pop'!$I$8>0, 'Characteristics of Target Pop'!$I$8, 'Characteristics of Target Pop'!$E$8) -> 0 | M51: 3 | N51: 3 | O51: 10000 | P51: =ROUNDUP((((J51*I51)/N51)/10000),0) -> 0 | Q51: =ROUNDUP((((K51*I51)/N51)/10000),0) -> 0 | R51: =ROUNDUP((((L51*I51)/N51)/10000),0) -> 0
A52: Kit 4 | B52: Demographic | C52: Syringe, luer, 2 ml, sterile, single use | D52: Medical device | E52: ='Pop Data Entry'!$D$19 -> 0.25 | G52: 1 | H52: 1 | I52: =(G52*H52)*1.43 -> 1.43 | J52: =IF('Characteristics of Target Pop'!$G$50>0, 'Characteristics of Target Pop'!$G$50, 'Characteristics of Target Pop'!$C$50) -> 0 | K52: =IF('Characteristics of Target Pop'!$H$50>0, 'Characteristics of Target Pop'!$H$50, 'Characteristics of Target Pop'!$D$50) -> 0 | L52: =IF('Characteristics of Target Pop'!$I$50>0, 'Characteristics of Target Pop'!$I$50, 'Characteristics of Target Pop'!$E$50) -> 0 | M52: 209.625 | N52: 300 | O52: 1 | P52: 0 | Q52: 0 | R52: 0
A53: Kit 4 | B53: Demographic | C53: Needle, luer, 21G (0.8 x 40 mm), sterile, single use | E53: ='Pop Data Entry'!$D$19 -> 0.25 | G53: 2 | H53: 1 | I53: =(G53*H53)*1.43 -> 2.86 | J53: =IF('Characteristics of Target Pop'!$G$50>0, 'Characteristics of Target Pop'!$G$50, 'Characteristics of Target Pop'!$C$50) -> 0 | K53: =IF('Characteristics of Target Pop'!$H$50>0, 'Characteristics of Target Pop'!$H$50, 'Characteristics of Target Pop'!$D$50) -> 0 | L53: =IF('Characteristics of Target Pop'!$I$50>0, 'Characteristics of Target Pop'!$I$50, 'Characteristics of Target Pop'!$E$50) -> 0 | M53: 419.25 | N53: 600 | O53: 1 | P53: 0 | Q53: 0 | R53: 0
A54: Kit 4 | B54: Demographic | C54: Cotton wool, 500-g roll, non-sterile | E54: ='Pop Data Entry'!$D$19 -> 0.25 | G54: 4 | H54: 1 | I54: =G54*H54 -> 4 | J54: =IF('Characteristics of Target Pop'!$G$8>0, 'Characteristics of Target Pop'!$G$8, 'Characteristics of Target Pop'!$C$8) -> 0 | K54: =IF('Characteristics of Target Pop'!$H$8>0, 'Characteristics of Target Pop'!$H$8, 'Characteristics of Target Pop'!$D$8) -> 0 | L54: =IF('Characteristics of Target Pop'!$I$8>0, 'Characteristics of Target Pop'!$I$8, 'Characteristics of Target Pop'!$E$8) -> 0 | M54: 4 | N54: 4 | O54: 10000 | P54: =ROUNDUP((((J54*I54)/N54)/10000),0) -> 0 | Q54: =ROUNDUP((((K54*I54)/N54)/10000),0) -> 0 | R54: =ROUNDUP((((L54*I54)/N54)/10000),0) -> 0
A55: Kit 4 | B55: Demographic | C55: Safety box, for used syringes and needles, 5 litres | E55: ='Pop Data Entry'!$D$19 -> 0.25 | G55: 3 | H55: 1 | I55: =G55*H55 -> 3 | J55: =IF('Characteristics of Target Pop'!$G$8>0, 'Characteristics of Target Pop'!$G$8, 'Characteristics of Target Pop'!$C$8) -> 0 | K55: =IF('Characteristics of Target Pop'!$H$8>0, 'Characteristics of Target Pop'!$H$8, 'Characteristics of Target Pop'!$D$8) -> 0 | L55: =IF('Characteristics of Target Pop'!$I$8>0, 'Characteristics of Target Pop'!$I$8, 'Characteristics of Target Pop'!$E$8) -> 0 | M55: 3 | N55: 3 | O55: 10000 | P55: =ROUNDUP((((J55*I55)/N55)/10000),0) -> 0 | Q55: =ROUNDUP((((K55*I55)/N55)/10000),0) -> 0 | R55: =ROUNDUP((((L55*I55)/N55)/10000),0) -> 0
A56: Kit 4 | B56: Logistics | P56: ='Logistics Data Summary'!B15 -> 0 | Q56: ='Logistics Data Summary'!C15 -> 0 | R56: ='Logistics Data Summary'!D15 -> 0 | S56: =P56*'Product cost'!$E$12 -> 0 | T56: =Q56*'Product cost'!$E$12 -> 0 | U56: =R56*'Product cost'!$E$12 -> 0
A57: DMPA-SC Kit 4 Complement (Bulk) | D57: Complement to Kit 4
A58: DMPA-SC Kit 4 Complement (Bulk) | B58: Demographic | C58: Depot-Medroxyprogesterone Acetate (DMPA-SC) (Sayana© Press) | E58: 0.25 | G58: 1 | H58: 1 | I58: 1 | J58: =IF('Characteristics of Target Pop'!$G$50>0, 'Characteristics of Target Pop'!$G$50, 'Characteristics of Target Pop'!$C$50) -> 0 | K58: =IF('Characteristics of Target Pop'!$H$50>0, 'Characteristics of Target Pop'!$H$50, 'Characteristics of Target Pop'!$D$50) -> 0 | L58: =IF('Characteristics of Target Pop'!$I$50>0, 'Characteristics of Target Pop'!$I$50, 'Characteristics of Target Pop'!$E$50) -> 0 | N58: 300 | O58: 1 | P58: =ROUNDUP(((J58*I58)/N58),0) -> 0 | Q58: =ROUNDUP(((K58*I58)/N58),0) -> 0 | R58: =ROUNDUP(((L58*I58)/N58),0) -> 0 | S58: =P58*'Product cost'!$E$13 -> 0 | T58: =Q58*'Product cost'!$E$13 -> 0 | U58: =R58*'Product cost'!$E$13 -> 0
A59: DMPA-SC Kit 4 Complement (Bulk) | B59: Logistics | P59: ='Logistics Data Summary'!B16 -> 0 | Q59: ='Logistics Data Summary'!C16 -> 0 | R59: ='Logistics Data Summary'!D16 -> 0 | S59: =P59*'Product cost'!$E$13 -> 0 | T59: =Q59*'Product cost'!$E$13 -> 0 | U59: =R59*'Product cost'!$E$13 -> 0
A60: KIT 5 | D60: Sexually Transmitted Infections
A61: KIT 5 | B61: Demographic | C61: Benzathine benzyl penicillin, powder for solution for injection, vial (equivalent to 2.4 million units of benzyl penicillin) | D61: Genital Ulcer Syndrome | E61: ='Pop Data Entry'!$D$19 -> 0.25 | G61: 1 | H61: 1 | I61: =G61*H61 -> 1 | J61: =IF('Characteristics of Target Pop'!G43>0,'Characteristics of Target Pop'!G43,'Characteristics of Target Pop'!C43)+IF('Characteristics of Target Pop'!G42>0,'Characteristics of Target Pop'!G42,'Characteristics of Target Pop'!C42) -> 0 | K61: =IF('Characteristics of Target Pop'!H43>0,'Characteristics of Target Pop'!H43,'Characteristics of Target Pop'!D43)+IF('Characteristics of Target Pop'!H42>0,'Characteristics of Target Pop'!H42,'Characteristics of Target Pop'!D42) -> 0 | L61: =IF('Characteristics of Target Pop'!I43>0,'Characteristics of Target Pop'!I43,'Characteristics of Target Pop'!E43)+IF('Characteristics of Target Pop'!I42>0,'Characteristics of Target Pop'!I42,'Characteristics of Target Pop'!E42) -> 0 | M61: 65 | N61: 65 | O61: 1 | P61: =ROUNDUP(((J61*$I$61)/$N$61),0) -> 0 | Q61: =ROUNDUP(((K61*I61)/N61),0) -> 0 | R61: =ROUNDUP(((L61*I61)/N61),0) -> 0 | S61: =MAX(P61:P83)*'Product cost'!$E$14 -> 0 | T61: =MAX(Q61:Q83)*'Product cost'!$E$14 -> 0 | U61: =MAX(R61:R83)*'Product cost'!$E$14 -> 0
A62: KIT 5 | B62: Demographic | C62: Benzathine benzyl penicillin, powder for solution for injection, vial (equivalent to 1.2 million units of benzyl penicillin) | E62: ='Pop Data Entry'!$D$19 -> 0.25 | G62: 1 | H62: 1 | I62: =G62*H62 -> 1 | J62: =IF('Characteristics of Target Pop'!$G$41>0,'Characteristics of Target Pop'!$G$41,'Characteristics of Target Pop'!$C$41) -> 0 | K62: =IF('Characteristics of Target Pop'!$H$41>0,'Characteristics of Target Pop'!$H$41,'Characteristics of Target Pop'!$D$41) -> 0 | L62: =IF('Characteristics of Target Pop'!$I$41>0,'Characteristics of Target Pop'!$I$41,'Characteristics of Target Pop'!$E$41) -> 0 | M62: 10 | N62: 10 | O62: 1 | P62: =ROUNDUP(((J62*I62)/N62),0) -> 0 | Q62: =ROUNDUP(((K62*I62)/N62),0) -> 0 | R62: =ROUNDUP(((L62*I62)/N62),0) -> 0
A63: KIT 5 | B63: Demographic | C63: Water for injection, 10-ml ampoule | E63: ='Pop Data Entry'!$D$19 -> 0.25 | G63: 1 | H63: 1 | I63: =G63*H63 -> 1 | J63: =IF('Characteristics of Target Pop'!$G$43>0,'Characteristics of Target Pop'!$G$43,'Characteristics of Target Pop'!$C$43)+IF('Characteristics of Target Pop'!$G$42>0,'Characteristics of Target Pop'!$G$42,'Characteristics of Target Pop'!$C$42)+IF('Characteristics of Target Pop'!$G$41>0,'Characteristics of Target Pop'!$G$41,'Characteristics of Target Pop'!$C$41) -> 0 | K63: =IF('Characteristics of Target Pop'!$H$43>0,'Characteristics of Target Pop'!$H$43,'Characteristics of Target Pop'!$D$43)+IF('Characteristics of Target Pop'!$H$42>0,'Characteristics of Target Pop'!$H$42,'Characteristics of Target Pop'!$D$42)+IF('Characteristics of Target Pop'!$H$41>0,'Characteristics of Target Pop'!$H$41,'Characteristics of Target Pop'!$D$41) -> 0 | L63: =IF('Characteristics of Target Pop'!$I$43>0,'Characteristics of Target Pop'!$I$43,'Characteristics of Target Pop'!$E$43)+IF('Characteristics of Target Pop'!$I$42>0,'Characteristics of Target Pop'!$I$42,'Characteristics of Target Pop'!$E$42)+IF('Characteristics of Target Pop'!$I$41>0,'Characteristics of Target Pop'!$I$41,'Characteristics of Target Pop'!$E$41) -> 0 | M63: 75 | N63: 75 | O63: 1 | P63: 0 | Q63: =ROUNDUP(((K63*I63)/N63),0) -> 0 | R63: 0
A64: KIT 5 | B64: Demographic | C64: Azithromycin, capsule, 250 mg | E64: ='Pop Data Entry'!$D$19 -> 0.25 | G64: 4 | H64: 1 | I64: =G64*H64 -> 4 | J64: =(IF('Characteristics of Target Pop'!G43>0,'Characteristics of Target Pop'!G43,'Characteristics of Target Pop'!C43)+IF('Characteristics of Target Pop'!G42>0,'Characteristics of Target Pop'!G42,'Characteristics of Target Pop'!C42))*0.922224 -> 0 | K64: =(IF('Characteristics of Target Pop'!H43>0,'Characteristics of Target Pop'!H43,'Characteristics of Target Pop'!D43)+IF('Characteristics of Target Pop'!H42>0,'Characteristics of Target Pop'!H42,'Characteristics of Target Pop'!D42))*0.922224 -> 0 | L64: =(IF('Characteristics of Target Pop'!I43>0,'Characteristics of Target Pop'!I43,'Characteristics of Target Pop'!E43)+IF('Characteristics of Target Pop'!I42>0,'Characteristics of Target Pop'!I42,'Characteristics of Target Pop'!E42))*0.922224 -> 0 | M64: 239.77824 | N64: 240 | O64: 1 | P64: 0 | Q64: 0 | R64: 0
A65: KIT 5 | B65: Demographic | C65: Azithromycin, oral suspension, 200 mg per 5 ml, bottle 15 ml | E65: ='Pop Data Entry'!$D$19 -> 0.25 | G65: 1 | H65: 1 | I65: 1 | J65: =IF('Characteristics of Target Pop'!G41>0,'Characteristics of Target Pop'!G41,'Characteristics of Target Pop'!C41) -> 0 | K65: =IF('Characteristics of Target Pop'!H41>0,'Characteristics of Target Pop'!H41,'Characteristics of Target Pop'!D41) -> 0 | L65: =IF('Characteristics of Target Pop'!I41>0,'Characteristics of Target Pop'!I41,'Characteristics of Target Pop'!E41) -> 0 | M65: 10 | N65: 10 | O65: 1 | P65: 0 | Q65: 0 | R65: 0
A66: KIT 5 | B66: Demographic | C66: Chlorhexidine gluconate, concentrated solution, 5%, bottle, 1000 ml | E66: ='Pop Data Entry'!$D$19 -> 0.25 | G66: 3 | H66: 1 | I66: 3 | J66: =IF('Characteristics of Target Pop'!$G$8>0, 'Characteristics of Target Pop'!$G$8, 'Characteristics of Target Pop'!$C$8) -> 0 | K66: =IF('Characteristics of Target Pop'!$H$8>0, 'Characteristics of Target Pop'!$H$8, 'Characteristics of Target Pop'!$D$8) -> 0 | L66: =IF('Characteristics of Target Pop'!$I$8>0, 'Characteristics of Target Pop'!$I$8, 'Characteristics of Target Pop'!$E$8) -> 0 | M66: 3 | N66: 3 | O66: 10000 | P66: =ROUNDUP((((J66*I66)/N66)/10000),0) -> 0 | Q66: =ROUNDUP((((K66*I66)/N66)/10000),0) -> 0 | R66: =ROUNDUP((((L66*I66)/N66)/10000),0) -> 0
A67: KIT 5 | B67: Demographic | C67: Cefixime 200mg tablets | D67: Urethral Discharge Syndrome | E67: ='Pop Data Entry'!$D$19 -> 0.25 | G67: 2 | H67: 1 | I67: 2 | J67: =(IF('Characteristics of Target Pop'!$G$44>0,'Characteristics of Target Pop'!$G$44,'Characteristics of Target Pop'!$C$44)+IF('Characteristics of Target Pop'!$G$42>0,'Characteristics of Target Pop'!$G$42,'Characteristics of Target Pop'!$C$42))*0.963 -> 0 | K67: =(IF('Characteristics of Target Pop'!H44>0,'Characteristics of Target Pop'!H44,'Characteristics of Target Pop'!D44)+IF('Characteristics of Target Pop'!H42>0,'Characteristics of Target Pop'!H42,'Characteristics of Target Pop'!D42))*0.963 -> 0 | L67: =(IF('Characteristics of Target Pop'!I44>0,'Characteristics of Target Pop'!I44,'Characteristics of Target Pop'!E44)+IF('Characteristics of Target Pop'!I42>0,'Characteristics of Target Pop'!I42,'Characteristics of Target Pop'!E42))*0.963 -> 0 | M67: 269.64 | N67: 270 | O67: 1 | P67: 0 | Q67: 0 | R67: 0
A68: KIT 5 | B68: Demographic | C68: Cefixime (as trihydrate), dry syrup for oral suspension, 100 mg/5 ml, bottle 30 ml | E68: ='Pop Data Entry'!$D$19 -> 0.25 | G68: 2 | H68: 1 | I68: 2 | J68: =IF('Characteristics of Target Pop'!$G$41>0,'Characteristics of Target Pop'!$G$41,'Characteristics of Target Pop'!$C$41) -> 0 | K68: =IF('Characteristics of Target Pop'!$H$41>0,'Characteristics of Target Pop'!$H$41,'Characteristics of Target Pop'!$D$41) -> 0 | L68: =IF('Characteristics of Target Pop'!$I$41>0,'Characteristics of Target Pop'!$I$41,'Characteristics of Target Pop'!$E$41) -> 0 | M68: 20 | N68: 20 | O68: 1 | P68: 0 | Q68: 0 | R68: 0
A69: KIT 5 | B69: Demographic | C69: Azithromycin, capsule, 250 mg | E69: ='Pop Data Entry'!$D$19 -> 0.25 | G69: 4 | H69: 1 | I69: 4 | J69: =(IF('Characteristics of Target Pop'!$G$44>0,'Characteristics of Target Pop'!$G$44,'Characteristics of Target Pop'!$C$44)+IF('Characteristics of Target Pop'!$G$42>0,'Characteristics of Target Pop'!$G$42,'Characteristics of Target Pop'!$C$42))*0.963 -> 0 | K69: =(IF('Characteristics of Target Pop'!$H$44>0,'Characteristics of Target Pop'!$H$44,'Characteristics of Target Pop'!$D$44)+IF('Characteristics of Target Pop'!$H$42>0,'Characteristics of Target Pop'!$H$42,'Characteristics of Target Pop'!$D$42))*0.963 -> 0 | L69: =(IF('Characteristics of Target Pop'!$I$44>0,'Characteristics of Target Pop'!$I$44,'Characteristics of Target Pop'!$E$44)+IF('Characteristics of Target Pop'!$I$42>0,'Characteristics of Target Pop'!$I$42,'Characteristics of Target Pop'!$E$42))*0.963 -> 0 | M69: 539.28 | N69: 540 | O69: 1 | P69: 0 | Q69: 0 | R69: 0
A70: KIT 5 | B70: Demographic | C70: Azithromycin, oral suspension, 200 mg per 5 ml, bottle 15 ml | E70: ='Pop Data Entry'!$D$19 -> 0.25 | G70: 1 | H70: 1 | I70: 1 | J70: =IF('Characteristics of Target Pop'!$G$41>0,'Characteristics of Target Pop'!$G$41,'Characteristics of Target Pop'!$C$41) -> 0 | K70: =IF('Characteristics of Target Pop'!$H$41>0,'Characteristics of Target Pop'!$H$41,'Characteristics of Target Pop'!$D$41) -> 0 | L70: =IF('Characteristics of Target Pop'!$I$41>0,'Characteristics of Target Pop'!$I$41,'Characteristics of Target Pop'!$E$41) -> 0 | M70: 10 | N70: 10 | O70: 1 | P70: 0 | Q70: 0 | R70: 0
A71: KIT 5 | B71: Demographic | C71: Metronidazole, tablet, 250 mg (single dose of 8 tablets, or 2 tablets twice a day for 7 days) | D71: Vagina discharge syndrome | E71: ='Pop Data Entry'!$D$19 -> 0.25 | G71: 4 | H71: 7 | I71: =(G71*H71)*0.793 -> 22.204 | J71: =IF('Characteristics of Target Pop'!G45>0,'Characteristics of Target Pop'!G45,'Characteristics of Target Pop'!C45)+IF('Characteristics of Target Pop'!G42>0,'Characteristics of Target Pop'!G42,'Characteristics of Target Pop'!C42) -> 0 | K71: =IF('Characteristics of Target Pop'!H45>0,'Characteristics of Target Pop'!H45,'Characteristics of Target Pop'!D45)+IF('Characteristics of Target Pop'!H42>0,'Characteristics of Target Pop'!H42,'Characteristics of Target Pop'!D42) -> 0 | L71: =IF('Characteristics of Target Pop'!I45>0,'Characteristics of Target Pop'!I45,'Characteristics of Target Pop'!E45)+IF('Characteristics of Target Pop'!I42>0,'Characteristics of Target Pop'!I42,'Characteristics of Target Pop'!E42) -> 0 | M71: 1998.36 | N71: 2000 | O71: 1 | P71: 0 | Q71: 0 | R71: 0
A72: KIT 5 | B72: Demographic | C72: Clotrimazole, vaginal tablet, 500 mg (single dose) | E72: ='Pop Data Entry'!$D$19 -> 0.25 | G72: 1 | H72: 1 | I72: =G72*H72 -> 1 | J72: =IF('Characteristics of Target Pop'!G45>0,'Characteristics of Target Pop'!G45,'Characteristics of Target Pop'!C45)+IF('Characteristics of Target Pop'!G42>0,'Characteristics of Target Pop'!G42,'Characteristics of Target Pop'!C42)+IF('Characteristics of Target Pop'!G41>0,'Characteristics of Target Pop'!G41,'Characteristics of Target Pop'!C41) -> 0 | K72: =IF('Characteristics of Target Pop'!H45>0,'Characteristics of Target Pop'!H45,'Characteristics of Target Pop'!D45)+IF('Characteristics of Target Pop'!H42>0,'Characteristics of Target Pop'!H42,'Characteristics of Target Pop'!D42)+IF('Characteristics of Target Pop'!H41>0,'Characteristics of Target Pop'!H41,'Characteristics of Target Pop'!D41) -> 0 | L72: =IF('Characteristics of Target Pop'!I45>0,'Characteristics of Target Pop'!I45,'Characteristics of Target Pop'!E45)+IF('Characteristics of Target Pop'!I42>0,'Characteristics of Target Pop'!I42,'Characteristics of Target Pop'!E42)+IF('Characteristics of Target Pop'!I41>0,'Characteristics of Target Pop'!I41,'Characteristics of Target Pop'!E41) -> 0 | M72: 100 | N72: 100 | O72: 1 | P72: 0 | Q72: 0 | R72: 0
A73: KIT 5 | B73: Demographic | C73: Cefixime 200mg tablets | E73: ='Pop Data Entry'!$D$19 -> 0.25 | G73: 2 | H73: 1 | I73: 2 | J73: =IF('Characteristics of Target Pop'!G45>0,'Characteristics of Target Pop'!G45,'Characteristics of Target Pop'!C45)+IF('Characteristics of Target Pop'!G42>0,'Characteristics of Target Pop'!G42,'Characteristics of Target Pop'!C42)+IF('Characteristics of Target Pop'!G41>0,'Characteristics of Target Pop'!G41,'Characteristics of Target Pop'!C41) -> 0 | K73: =IF('Characteristics of Target Pop'!H45>0,'Characteristics of Target Pop'!H45,'Characteristics of Target Pop'!D45)+IF('Characteristics of Target Pop'!H42>0,'Characteristics of Target Pop'!H42,'Characteristics of Target Pop'!D42)+IF('Characteristics of Target Pop'!H41>0,'Characteristics of Target Pop'!H41,'Characteristics of Target Pop'!D41) -> 0 | L73: =IF('Characteristics of Target Pop'!I45>0,'Characteristics of Target Pop'!I45,'Characteristics of Target Pop'!E45)+IF('Characteristics of Target Pop'!I42>0,'Characteristics of Target Pop'!I42,'Characteristics of Target Pop'!E42)+IF('Characteristics of Target Pop'!I41>0,'Characteristics of Target Pop'!I41,'Characteristics of Target Pop'!E41) -> 0 | M73: 200 | N73: 200 | O73: 1 | P73: 0 | Q73: 0 | R73: 0
A74: KIT 5 | B74: Demographic | C74: Cefixime (as trihydrate), dry syrup for oral suspension, 100 mg/5 ml, bottle 30 ml | E74: ='Pop Data Entry'!$D$19 -> 0.25 | G74: 1 | H74: 1 | I74: 1 | J74: =IF('Characteristics of Target Pop'!$G$41>0,'Characteristics of Target Pop'!$G$41,'Characteristics of Target Pop'!$C$41) -> 0 | K74: =IF('Characteristics of Target Pop'!$H$41>0,'Characteristics of Target Pop'!$H$41,'Characteristics of Target Pop'!$D$41) -> 0 | L74: =IF('Characteristics of Target Pop'!$I$41>0,'Characteristics of Target Pop'!$I$41,'Characteristics of Target Pop'!$E$41) -> 0 | M74: 10 | N74: 10 | O74: 1 | P74: 0 | Q74: 0 | R74: 0
A75: KIT 5 | B75: Demographic | C75: Azithromycin, capsule, 250 mg | E75: ='Pop Data Entry'!$D$19 -> 0.25 | G75: 4 | H75: 1 | I75: 4 | J75: =(IF('Characteristics of Target Pop'!G45>0,'Characteristics of Target Pop'!G45,'Characteristics of Target Pop'!C45)+IF('Characteristics of Target Pop'!G42>0,'Characteristics of Target Pop'!G42,'Characteristics of Target Pop'!C42))*0.94444 -> 0 | K75: =(IF('Characteristics of Target Pop'!H45>0,'Characteristics of Target Pop'!H45,'Characteristics of Target Pop'!D45)+IF('Characteristics of Target Pop'!H42>0,'Characteristics of Target Pop'!H42,'Characteristics of Target Pop'!D42))*0.94444 -> 0 | L75: =(IF('Characteristics of Target Pop'!I45>0,'Characteristics of Target Pop'!I45,'Characteristics of Target Pop'!E45)+IF('Characteristics of Target Pop'!I42>0,'Characteristics of Target Pop'!I42,'Characteristics of Target Pop'!E42))*0.94444 -> 0 | M75: 339.9984 | N75: 340 | O75: 1 | P75: 0 | Q75: 0 | R75: 0
A76: KIT 5 | B76: Demographic | C76: Azithromycin, oral suspension, 200 mg per 5 ml, bottle 15 ml | E76: ='Pop Data Entry'!$D$19 -> 0.25 | G76: 1 | H76: 1 | I76: 1 | J76: =IF('Characteristics of Target Pop'!$G$41>0,'Characteristics of Target Pop'!$G$41,'Characteristics of Target Pop'!$C$41) -> 0 | K76: =IF('Characteristics of Target Pop'!$H$41>0,'Characteristics of Target Pop'!$H$41,'Characteristics of Target Pop'!$D$41) -> 0 | L76: =IF('Characteristics of Target Pop'!$I$41>0,'Characteristics of Target Pop'!$I$41,'Characteristics of Target Pop'!$E$41) -> 0 | M76: 10 | N76: 10 | O76: 1 | P76: 0 | Q76: 0 | R76: 0
A77: KIT 5 | B77: Demographic | C77: Male condoms | D77: Condoms | E77: ='Pop Data Entry'!$D$19 -> 0.25 | G77: 20 | H77: 1 | I77: 20 | J77: =IF('Characteristics of Target Pop'!$G$39>0, 'Characteristics of Target Pop'!$G$39, 'Characteristics of Target Pop'!$C$39)*0.576 -> 0 | K77: =IF('Characteristics of Target Pop'!$H$39>0, 'Characteristics of Target Pop'!$H$39, 'Characteristics of Target Pop'!$D$39)*0.576 -> 0 | L77: =IF('Characteristics of Target Pop'!$I$39>0, 'Characteristics of Target Pop'!$I$39, 'Characteristics of Target Pop'!$E$39)*0.576 -> 0 | M77: 2880 | N77: 2880 | O77: 1 | P77: 0 | Q77: 0 | R77: 0
A78: KIT 5 | B78: Demographic | C78: Female condoms | E78: ='Pop Data Entry'!$D$19 -> 0.25 | G78: 3 | H78: 1 | I78: 3 | J78: =IF('Characteristics of Target Pop'!$G$39>0, 'Characteristics of Target Pop'!$G$39, 'Characteristics of Target Pop'!$C$39)*0.12 -> 0 | K78: =IF('Characteristics of Target Pop'!$H$39>0, 'Characteristics of Target Pop'!$H$39, 'Characteristics of Target Pop'!$D$39)*0.12 -> 0 | L78: =IF('Characteristics of Target Pop'!$I$39>0, 'Characteristics of Target Pop'!$I$39, 'Characteristics of Target Pop'!$E$39)*0.12 -> 0 | M78: 90 | N78: 90 | O78: 1 | P78: 0 | Q78: 0 | R78: 0
A79: KIT 5 | B79: Demographic | C79: Syringe, luer, 5 ml, sterile, single use | D79: Medical devices, renewable | E79: ='Pop Data Entry'!$D$19 -> 0.25 | G79: 1 | H79: 1 | I79: 1 | J79: =IF('Characteristics of Target Pop'!$G$43>0,'Characteristics of Target Pop'!$G$43,'Characteristics of Target Pop'!$C$43)+IF('Characteristics of Target Pop'!$G$42>0,'Characteristics of Target Pop'!$G$42,'Characteristics of Target Pop'!$C$42)+IF('Characteristics of Target Pop'!$G$41>0,'Characteristics of Target Pop'!$G$41,'Characteristics of Target Pop'!$C$41) -> 0 | K79: =IF('Characteristics of Target Pop'!$H$43>0,'Characteristics of Target Pop'!$H$43,'Characteristics of Target Pop'!$D$43)+IF('Characteristics of Target Pop'!$H$42>0,'Characteristics of Target Pop'!$H$42,'Characteristics of Target Pop'!$D$42)+IF('Characteristics of Target Pop'!$H$41>0,'Characteristics of Target Pop'!$H$41,'Characteristics of Target Pop'!$D$41) -> 0 | L79: =IF('Characteristics of Target Pop'!$I$43>0,'Characteristics of Target Pop'!$I$43,'Characteristics of Target Pop'!$E$43)+IF('Characteristics of Target Pop'!$I$42>0,'Characteristics of Target Pop'!$I$42,'Characteristics of Target Pop'!$E$42)+IF('Characteristics of Target Pop'!$I$41>0,'Characteristics of Target Pop'!$I$41,'Characteristics of Target Pop'!$E$41) -> 0 | M79: 75 | N79: 75 | O79: 1 | P79: 0 | Q79: 0 | R79: 0
A80: KIT 5 | B80: Demographic | C80: Needle, luer, 21G (0.8 x 40 mm), sterile, single use | E80: ='Pop Data Entry'!$D$19 -> 0.25 | G80: 2 | H80: 1 | I80: 2 | J80: =IF('Characteristics of Target Pop'!$G$43>0,'Characteristics of Target Pop'!$G$43,'Characteristics of Target Pop'!$C$43)+IF('Characteristics of Target Pop'!$G$42>0,'Characteristics of Target Pop'!$G$42,'Characteristics of Target Pop'!$C$42)+IF('Characteristics of Target Pop'!$G$41>0,'Characteristics of Target Pop'!$G$41,'Characteristics of Target Pop'!$C$41) -> 0 | K80: =IF('Characteristics of Target Pop'!$H$43>0,'Characteristics of Target Pop'!$H$43,'Characteristics of Target Pop'!$D$43)+IF('Characteristics of Target Pop'!$H$42>0,'Characteristics of Target Pop'!$H$42,'Characteristics of Target Pop'!$D$42)+IF('Characteristics of Target Pop'!$H$41>0,'Characteristics of Target Pop'!$H$41,'Characteristics of Target Pop'!$D$41) -> 0 | L80: =IF('Characteristics of Target Pop'!$I$43>0,'Characteristics of Target Pop'!$I$43,'Characteristics of Target Pop'!$E$43)+IF('Characteristics of Target Pop'!$I$42>0,'Characteristics of Target Pop'!$I$42,'Characteristics of Target Pop'!$E$42)+IF('Characteristics of Target Pop'!$I$41>0,'Characteristics of Target Pop'!$I$41,'Characteristics of Target Pop'!$E$41) -> 0 | M80: 150 | N80: 150 | O80: 1 | P80: 0 | Q80: 0 | R80: 0
A81: KIT 5 | B81: Demographic | C81: Cotton wool, 500-g roll, non-sterile | E81: ='Pop Data Entry'!$D$19 -> 0.25 | G81: 3 | H81: 1 | I81: =G81*H81 -> 3 | J81: =IF('Characteristics of Target Pop'!$G$8>0, 'Characteristics of Target Pop'!$G$8, 'Characteristics of Target Pop'!$C$8) -> 0 | K81: =IF('Characteristics of Target Pop'!$H$8>0, 'Characteristics of Target Pop'!$H$8, 'Characteristics of Target Pop'!$D$8) -> 0 | L81: =IF('Characteristics of Target Pop'!$I$8>0, 'Characteristics of Target Pop'!$I$8, 'Characteristics of Target Pop'!$E$8) -> 0 | M81: 3 | N81: 3 | O81: 10000 | P81: =ROUNDUP((((J81*I81)/N81)/10000),0) -> 0 | Q81: =ROUNDUP((((K81*I81)/N81)/10000),0) -> 0 | R81: =ROUNDUP((((L81*I81)/N81)/10000),0) -> 0
A82: KIT 5 | B82: Demographic | C82: Safety box, for used syringes and needles, 5 litres | E82: ='Pop Data Entry'!$D$19 -> 0.25 | G82: 4 | H82: 1 | I82: =G82*H82 -> 4 | J82: =IF('Characteristics of Target Pop'!$G$8>0, 'Characteristics of Target Pop'!$G$8, 'Characteristics of Target Pop'!$C$8) -> 0 | K82: =IF('Characteristics of Target Pop'!$H$8>0, 'Characteristics of Target Pop'!$H$8, 'Characteristics of Target Pop'!$D$8) -> 0 | L82: =IF('Characteristics of Target Pop'!$I$8>0, 'Characteristics of Target Pop'!$I$8, 'Characteristics of Target Pop'!$E$8) -> 0 | M82: 4 | N82: 4 | O82: 10000 | P82: =ROUNDUP((((J82*I82)/N82)/10000),0) -> 0 | Q82: =ROUNDUP((((K82*I82)/N82)/10000),0) -> 0 | R82: =ROUNDUP((((L82*I82)/N82)/10000),0) -> 0
A83: KIT 5 | B83: Demographic | C83: Bag (envelope), plastic, for drugs, approx. 10 x 15 cm, pack of 100 | E83: ='Pop Data Entry'!$D$19 -> 0.25 | G83: 4 | H83: 1 | I83: =G83*H83 -> 4 | J83: =IF('Characteristics of Target Pop'!$G$39>0, 'Characteristics of Target Pop'!$G$39, 'Characteristics of Target Pop'!$C$39) -> 0 | K83: =IF('Characteristics of Target Pop'!$H$39>0, 'Characteristics of Target Pop'!$H$39, 'Characteristics of Target Pop'!$D$39) -> 0 | L83: =IF('Characteristics of Target Pop'!$I$39>0, 'Characteristics of Target Pop'!$I$39, 'Characteristics of Target Pop'!$E$39) -> 0 | M83: 1000 | N83: =10*100 -> 1000 | O83: 1 | P83: 0 | Q83: 0 | R83: 0
A84: KIT 5 | B84: Logistics | P84: ='Logistics Data Summary'!B17 -> 0 | Q84: ='Logistics Data Summary'!C17 -> 0 | R84: ='Logistics Data Summary'!D17 -> 0 | S84: =P84*'Product cost'!$E$14 -> 0 | T84: =Q84*'Product cost'!$E$14 -> 0 | U84: =R84*'Product cost'!$E$14 -> 0
A85: KIT 6A | D85: Clinical Delivery Assistance - Reusable Equipment
A86: Kit 6A | B86: Demographic | C86: Sphygmomanometer, adult, aneroid | D86: Medical devices, equipment | G86: 1 | H86: 1 | I86: =G86*H86 -> 1 | J86: =IF('Characteristics of Target Pop'!$G$8>0, 'Characteristics of Target Pop'!$G$8, 'Characteristics of Target Pop'!$C$8) -> 0 | K86: =IF('Characteristics of Target Pop'!$H$8>0, 'Characteristics of Target Pop'!$H$8, 'Characteristics of Target Pop'!$D$8) -> 0 | L86: =IF('Characteristics of Target Pop'!$I$8>0, 'Characteristics of Target Pop'!$I$8, 'Characteristics of Target Pop'!$E$8) -> 0 | M86: 1 | N86: 1 | O86: 30000 | P86: =ROUNDUP((((J86*$I$86)/$N$86)/30000),0) -> 0 | Q86: =ROUNDUP((((K86*I86)/N86)/30000),0) -> 0 | R86: =ROUNDUP((((L86*I86)/N86)/30000),0) -> 0 | S86: =MAX(P86:P113)*'Product cost'!$E$15 -> 0 | T86: =MAX(Q86:Q113)*'Product cost'!$E$15 -> 0 | U86: =MAX(R86:R113)*'Product cost'!$E$15 -> 0
A87: Kit 6A | B87: Demographic | C87: Stethoscope, binaural, complete | G87: 1 | H87: 1 | I87: =G87*H87 -> 1 | J87: =IF('Characteristics of Target Pop'!$G$8>0, 'Characteristics of Target Pop'!$G$8, 'Characteristics of Target Pop'!$C$8) -> 0 | K87: =IF('Characteristics of Target Pop'!$H$8>0, 'Characteristics of Target Pop'!$H$8, 'Characteristics of Target Pop'!$D$8) -> 0 | L87: =IF('Characteristics of Target Pop'!$I$8>0, 'Characteristics of Target Pop'!$I$8, 'Characteristics of Target Pop'!$E$8) -> 0 | M87: 1 | N87: 1 | O87: 30000 | P87: =ROUNDUP((((J87*I87)/N87)/30000),0) -> 0 | Q87: =ROUNDUP((((K87*I87)/N87)/30000),0) -> 0 | R87: =ROUNDUP((((L87*I87)/N87)/30000),0) -> 0
A88: Kit 6A | B88: Demographic | C88: Stethoscope, fetal, monaural | G88: 2 | H88: 1 | I88: 2 | J88: =IF('Characteristics of Target Pop'!$G$8>0, 'Characteristics of Target Pop'!$G$8, 'Characteristics of Target Pop'!$C$8) -> 0 | K88: =IF('Characteristics of Target Pop'!$H$8>0, 'Characteristics of Target Pop'!$H$8, 'Characteristics of Target Pop'!$D$8) -> 0 | L88: =IF('Characteristics of Target Pop'!$I$8>0, 'Characteristics of Target Pop'!$I$8, 'Characteristics of Target Pop'!$E$8) -> 0 | M88: 2 | N88: 2 | O88: 30000 | P88: =ROUNDUP((((J88*I88)/N88)/30000),0) -> 0 | Q88: 0 | R88: 0
A89: Kit 6A | B89: Demographic | C89: Basin, kidney, stainless steel, approx. 825 ml | G89: 2 | H89: 1 | I89: 2 | J89: =IF('Characteristics of Target Pop'!$G$8>0, 'Characteristics of Target Pop'!$G$8, 'Characteristics of Target Pop'!$C$8) -> 0 | K89: =IF('Characteristics of Target Pop'!$H$8>0, 'Characteristics of Target Pop'!$H$8, 'Characteristics of Target Pop'!$D$8) -> 0 | L89: =IF('Characteristics of Target Pop'!$I$8>0, 'Characteristics of Target Pop'!$I$8, 'Characteristics of Target Pop'!$E$8) -> 0 | M89: 2 | N89: 2 | O89: 30000 | P89: =ROUNDUP((((J89*I89)/N89)/30000),0) -> 0 | Q89: 0 | R89: 0
A90: Kit 6A | B90: Demographic | C90: Thermometer, clinical, digital, 32–43 °C | G90: 4 | H90: 1 | I90: 4 | J90: =IF('Characteristics of Target Pop'!$G$8>0, 'Characteristics of Target Pop'!$G$8, 'Characteristics of Target Pop'!$C$8) -> 0 | K90: =IF('Characteristics of Target Pop'!$H$8>0, 'Characteristics of Target Pop'!$H$8, 'Characteristics of Target Pop'!$D$8) -> 0 | L90: =IF('Characteristics of Target Pop'!$I$8>0, 'Characteristics of Target Pop'!$I$8, 'Characteristics of Target Pop'!$E$8) -> 0 | M90: 4 | N90: 4 | O90: 30000 | P90: 0 | Q90: 0 | R90: 0
A91: Kit 6A | B91: Demographic | C91: Brush, hand, scrubbing, plastic | G91: 2 | H91: 1 | I91: 2 | J91: =IF('Characteristics of Target Pop'!$G$8>0, 'Characteristics of Target Pop'!$G$8, 'Characteristics of Target Pop'!$C$8) -> 0 | K91: =IF('Characteristics of Target Pop'!$H$8>0, 'Characteristics of Target Pop'!$H$8, 'Characteristics of Target Pop'!$D$8) -> 0 | L91: =IF('Characteristics of Target Pop'!$I$8>0, 'Characteristics of Target Pop'!$I$8, 'Characteristics of Target Pop'!$E$8) -> 0 | M91: 2 | N91: 2 | O91: 30000 | P91: 0 | Q91: 0 | R91: 0
A92: Kit 6A | B92: Demographic | C92: Tourniquet, rubber, approx. 75 cm | G92: 2 | H92: 1 | I92: 2 | J92: =IF('Characteristics of Target Pop'!$G$8>0, 'Characteristics of Target Pop'!$G$8, 'Characteristics of Target Pop'!$C$8) -> 0 | K92: =IF('Characteristics of Target Pop'!$H$8>0, 'Characteristics of Target Pop'!$H$8, 'Characteristics of Target Pop'!$D$8) -> 0 | L92: =IF('Characteristics of Target Pop'!$I$8>0, 'Characteristics of Target Pop'!$I$8, 'Characteristics of Target Pop'!$E$8) -> 0 | M92: 2 | N92: 2 | O92: 30000 | P92: 0 | Q92: 0 | R92: 0
A93: Kit 6A | B93: Demographic | C93: Resuscitator, hand-operated, infant/child, set | G93: 1 | H93: 1 | I93: 1 | J93: =IF('Characteristics of Target Pop'!$G$8>0, 'Characteristics of Target Pop'!$G$8, 'Characteristics of Target Pop'!$C$8) -> 0 | K93: =IF('Characteristics of Target Pop'!$H$8>0, 'Characteristics of Target Pop'!$H$8, 'Characteristics of Target Pop'!$D$8) -> 0 | L93: =IF('Characteristics of Target Pop'!$I$8>0, 'Characteristics of Target Pop'!$I$8, 'Characteristics of Target Pop'!$E$8) -> 0 | M93: 1 | N93: 1 | O93: 30000 | P93: 0 | Q93: 0 | R93: 0
A94: Kit 6A | B94: Demographic | C94: Tray, instruments, stainless steel, approx. 225 x 125 x 50 mm, with cover | G94: 1 | H94: 1 | I94: 1 | J94: =IF('Characteristics of Target Pop'!$G$8>0, 'Characteristics of Target Pop'!$G$8, 'Characteristics of Target Pop'!$C$8) -> 0 | K94: =IF('Characteristics of Target Pop'!$H$8>0, 'Characteristics of Target Pop'!$H$8, 'Characteristics of Target Pop'!$D$8) -> 0 | L94: =IF('Characteristics of Target Pop'!$I$8>0, 'Characteristics of Target Pop'!$I$8, 'Characteristics of Target Pop'!$E$8) -> 0 | M94: 1 | N94: 1 | O94: 30000 | P94: 0 | Q94: 0 | R94: 0
A95: Kit 6A | B95: Demographic | C95: Scale, infant, springtype,5kg x 25g | G95: 1 | H95: 1 | I95: 1 | J95: =IF('Characteristics of Target Pop'!$G$8>0, 'Characteristics of Target Pop'!$G$8, 'Characteristics of Target Pop'!$C$8) -> 0 | K95: =IF('Characteristics of Target Pop'!$H$8>0, 'Characteristics of Target Pop'!$H$8, 'Characteristics of Target Pop'!$D$8) -> 0 | L95: =IF('Characteristics of Target Pop'!$I$8>0, 'Characteristics of Target Pop'!$I$8, 'Characteristics of Target Pop'!$E$8) -> 0 | N95: 1 | O95: 30000 | P95: =ROUNDUP((((J95*I95)/N95)/30000),0) -> 0 | Q95: =ROUNDUP((((K95*I95)/N95)/30000),0) -> 0 | R95: =ROUNDUP((((L95*I95)/N95)/30000),0) -> 0
A96: Kit 6A | B96: Demographic | C96: Sling for use with infant scale* | G96: 5 | H96: 1 | I96: 5 | J96: =IF('Characteristics of Target Pop'!$G$8>0, 'Characteristics of Target Pop'!$G$8, 'Characteristics of Target Pop'!$C$8) -> 0 | K96: =IF('Characteristics of Target Pop'!$H$8>0, 'Characteristics of Target Pop'!$H$8, 'Characteristics of Target Pop'!$D$8) -> 0 | L96: =IF('Characteristics of Target Pop'!$I$8>0, 'Characteristics of Target Pop'!$I$8, 'Characteristics of Target Pop'!$E$8) -> 0 | N96: 5 | O96: 30000 | P96: =ROUNDUP((((J96*I96)/N96)/30000),0) -> 0 | Q96: =ROUNDUP((((K96*I96)/N96)/30000),0) -> 0 | R96: =ROUNDUP((((L96*I96)/N96)/30000),0) -> 0
A97: Kit 6A | B97: Demographic | C97: Hourglass | G97: 3 | H97: 1 | I97: 3 | J97: =IF('Characteristics of Target Pop'!$G$8>0, 'Characteristics of Target Pop'!$G$8, 'Characteristics of Target Pop'!$C$8) -> 0 | K97: =IF('Characteristics of Target Pop'!$H$8>0, 'Characteristics of Target Pop'!$H$8, 'Characteristics of Target Pop'!$D$8) -> 0 | L97: =IF('Characteristics of Target Pop'!$I$8>0, 'Characteristics of Target Pop'!$I$8, 'Characteristics of Target Pop'!$E$8) -> 0 | N97: 3 | O97: 30000 | P97: =ROUNDUP((((J97*I97)/N97)/30000),0) -> 0 | Q97: =ROUNDUP((((K97*I97)/N97)/30000),0) -> 0 | R97: =ROUNDUP((((L97*I97)/N97)/30000),0) -> 0
A98: Kit 6A | B98: Demographic | C98: Scissors, Mayo, 140 mm, curved, b/b (for cutting cord) | D98: Delivery set | G98: 2 | H98: 1 | I98: 2 | J98: =IF('Characteristics of Target Pop'!$G$8>0, 'Characteristics of Target Pop'!$G$8, 'Characteristics of Target Pop'!$C$8) -> 0 | K98: =IF('Characteristics of Target Pop'!$H$8>0, 'Characteristics of Target Pop'!$H$8, 'Characteristics of Target Pop'!$D$8) -> 0 | L98: =IF('Characteristics of Target Pop'!$I$8>0, 'Characteristics of Target Pop'!$I$8, 'Characteristics of Target Pop'!$E$8) -> 0 | M98: 2 | N98: 2 | O98: 30000 | P98: =ROUNDUP((((J98*I98)/N98)/30000),0) -> 0 | Q98: =ROUNDUP((((K98*I98)/N98)/30000),0) -> 0 | R98: =ROUNDUP((((L98*I98)/N98)/30000),0) -> 0
A99: Kit 6A | B99: Demographic | C99: Scissors, gynecological, 200 mm, curved, b/b | G99: 2 | H99: 1 | I99: 2 | J99: =IF('Characteristics of Target Pop'!$G$8>0, 'Characteristics of Target Pop'!$G$8, 'Characteristics of Target Pop'!$C$8) -> 0 | K99: =IF('Characteristics of Target Pop'!$H$8>0, 'Characteristics of Target Pop'!$H$8, 'Characteristics of Target Pop'!$D$8) -> 0 | L99: =IF('Characteristics of Target Pop'!$I$8>0, 'Characteristics of Target Pop'!$I$8, 'Characteristics of Target Pop'!$E$8) -> 0 | M99: 2 | N99: 2 | O99: 30000 | P99: 0 | Q99: 0 | R99: 0
A100: Kit 6A | B100: Demographic | C100: Forceps, artery, Kocher, 140 mm, straight | G100: 4 | H100: 1 | I100: 4 | J100: =IF('Characteristics of Target Pop'!$G$8>0, 'Characteristics of Target Pop'!$G$8, 'Characteristics of Target Pop'!$C$8) -> 0 | K100: =IF('Characteristics of Target Pop'!$H$8>0, 'Characteristics of Target Pop'!$H$8, 'Characteristics of Target Pop'!$D$8) -> 0 | L100: =IF('Characteristics of Target Pop'!$I$8>0, 'Characteristics of Target Pop'!$I$8, 'Characteristics of Target Pop'!$E$8) -> 0 | M100: 4 | N100: 4 | O100: 30000 | P100: 0 | Q100: 0 | R100: 0
A101: Kit 6A | B101: Demographic | C101: Scissors, Deaver, 140 mm, curved, s/b | D101: Suture set | G101: 2 | H101: 1 | I101: 2 | J101: =IF('Characteristics of Target Pop'!$G$8>0, 'Characteristics of Target Pop'!$G$8, 'Characteristics of Target Pop'!$C$8) -> 0 | K101: =IF('Characteristics of Target Pop'!$H$8>0, 'Characteristics of Target Pop'!$H$8, 'Characteristics of Target Pop'!$D$8) -> 0 | L101: =IF('Characteristics of Target Pop'!$I$8>0, 'Characteristics of Target Pop'!$I$8, 'Characteristics of Target Pop'!$E$8) -> 0 | M101: 2 | N101: 2 | O101: 30000 | P101: =ROUNDUP((((J101*I101)/N101)/30000),0) -> 0 | Q101: 0 | R101: 0
A102: Kit 6A | B102: Demographic | C102: Needle holder, Mayo-Hegar, 180 mm, straight | G102: 2 | H102: 1 | I102: 2 | J102: =IF('Characteristics of Target Pop'!$G$8>0, 'Characteristics of Target Pop'!$G$8, 'Characteristics of Target Pop'!$C$8) -> 0 | K102: =IF('Characteristics of Target Pop'!$H$8>0, 'Characteristics of Target Pop'!$H$8, 'Characteristics of Target Pop'!$D$8) -> 0 | L102: =IF('Characteristics of Target Pop'!$I$8>0, 'Characteristics of Target Pop'!$I$8, 'Characteristics of Target Pop'!$E$8) -> 0 | M102: 2 | N102: 2 | O102: 30000 | P102: 0 | Q102: 0 | R102: 0
A103: Kit 6A | B103: Demographic | C103: Forceps, tissue, standard, 145 mm, straight | G103: 2 | H103: 1 | I103: 2 | J103: =IF('Characteristics of Target Pop'!$G$8>0, 'Characteristics of Target Pop'!$G$8, 'Characteristics of Target Pop'!$C$8) -> 0 | K103: =IF('Characteristics of Target Pop'!$H$8>0, 'Characteristics of Target Pop'!$H$8, 'Characteristics of Target Pop'!$D$8) -> 0 | L103: =IF('Characteristics of Target Pop'!$I$8>0, 'Characteristics of Target Pop'!$I$8, 'Characteristics of Target Pop'!$E$8) -> 0 | M103: 2 | N103: 2 | O103: 30000 | P103: 0 | Q103: 0 | R103: 0
A104: Kit 6A | B104: Demographic | C104: Forceps, artery, Kocher, 140 mm, straight | G104: 2 | H104: 1 | I104: 2 | J104: =IF('Characteristics of Target Pop'!$G$8>0, 'Characteristics of Target Pop'!$G$8, 'Characteristics of Target Pop'!$C$8) -> 0 | K104: =IF('Characteristics of Target Pop'!$H$8>0, 'Characteristics of Target Pop'!$H$8, 'Characteristics of Target Pop'!$D$8) -> 0 | L104: =IF('Characteristics of Target Pop'!$I$8>0, 'Characteristics of Target Pop'!$I$8, 'Characteristics of Target Pop'!$E$8) -> 0 | M104: 2 | N104: 2 | O104: 30000 | P104: 0 | Q104: 0 | R104: 0
A105: Kit 6A | B105: Demographic | C105: Stove, kerosene, single burner, pressure | D105: Sterilization kit | G105: 1 | H105: 1 | I105: 1 | J105: =IF('Characteristics of Target Pop'!$G$8>0, 'Characteristics of Target Pop'!$G$8, 'Characteristics of Target Pop'!$C$8) -> 0 | K105: =IF('Characteristics of Target Pop'!$H$8>0, 'Characteristics of Target Pop'!$H$8, 'Characteristics of Target Pop'!$D$8) -> 0 | L105: =IF('Characteristics of Target Pop'!$I$8>0, 'Characteristics of Target Pop'!$I$8, 'Characteristics of Target Pop'!$E$8) -> 0 | M105: 1 | N105: 1 | O105: 30000 | P105: 0 | Q105: 0 | R105: 0
A106: Kit 6A | B106: Demographic | C106: Sterilizer, steam, approx. 39 litres, w/access | G106: 1 | H106: 1 | I106: 1 | J106: =IF('Characteristics of Target Pop'!$G$8>0, 'Characteristics of Target Pop'!$G$8, 'Characteristics of Target Pop'!$C$8) -> 0 | K106: =IF('Characteristics of Target Pop'!$H$8>0, 'Characteristics of Target Pop'!$H$8, 'Characteristics of Target Pop'!$D$8) -> 0 | L106: =IF('Characteristics of Target Pop'!$I$8>0, 'Characteristics of Target Pop'!$I$8, 'Characteristics of Target Pop'!$E$8) -> 0 | M106: 1 | N106: 1 | O106: 30000 | P106: 0 | Q106: 0 | R106: 0
A107: Kit 6A | B107: Demographic | C107: Timer, 60 minutes | G107: 1 | H107: 1 | I107: 1 | J107: =IF('Characteristics of Target Pop'!$G$8>0, 'Characteristics of Target Pop'!$G$8, 'Characteristics of Target Pop'!$C$8) -> 0 | K107: =IF('Characteristics of Target Pop'!$H$8>0, 'Characteristics of Target Pop'!$H$8, 'Characteristics of Target Pop'!$D$8) -> 0 | L107: =IF('Characteristics of Target Pop'!$I$8>0, 'Characteristics of Target Pop'!$I$8, 'Characteristics of Target Pop'!$E$8) -> 0 | M107: 1 | N107: 1 | O107: 30000 | P107: 0 | Q107: 0 | R107: 0
A108: Kit 6A | B108: Demographic | C108: Drum, sterilizing, approx. 165 mm diameter | G108: 2 | H108: 1 | I108: 2 | J108: =IF('Characteristics of Target Pop'!$G$8>0, 'Characteristics of Target Pop'!$G$8, 'Characteristics of Target Pop'!$C$8) -> 0 | K108: =IF('Characteristics of Target Pop'!$H$8>0, 'Characteristics of Target Pop'!$H$8, 'Characteristics of Target Pop'!$D$8) -> 0 | L108: =IF('Characteristics of Target Pop'!$I$8>0, 'Characteristics of Target Pop'!$I$8, 'Characteristics of Target Pop'!$E$8) -> 0 | M108: 2 | N108: 2 | O108: 30000 | P108: 0 | Q108: 0 | R108: 0
A109: Kit 6A | B109: Demographic | C109: Drum, sterilizing, approx. 260 mm diameter | G109: 2 | H109: 1 | I109: =G109*H109 -> 2 | J109: =IF('Characteristics of Target Pop'!$G$8>0, 'Characteristics of Target Pop'!$G$8, 'Characteristics of Target Pop'!$C$8) -> 0 | K109: =IF('Characteristics of Target Pop'!$H$8>0, 'Characteristics of Target Pop'!$H$8, 'Characteristics of Target Pop'!$D$8) -> 0 | L109: =IF('Characteristics of Target Pop'!$I$8>0, 'Characteristics of Target Pop'!$I$8, 'Characteristics of Target Pop'!$E$8) -> 0 | M109: 2 | N109: 2 | O109: 30000 | P109: 0 | Q109: 0 | R109: 0
A110: Kit 6A | B110: Demographic | C110: Drum, sterilizing, approx. 290 mm diameter | G110: 2 | H110: 1 | I110: 2 | J110: =IF('Characteristics of Target Pop'!$G$8>0, 'Characteristics of Target Pop'!$G$8, 'Characteristics of Target Pop'!$C$8) -> 0 | K110: =IF('Characteristics of Target Pop'!$H$8>0, 'Characteristics of Target Pop'!$H$8, 'Characteristics of Target Pop'!$D$8) -> 0 | L110: =IF('Characteristics of Target Pop'!$I$8>0, 'Characteristics of Target Pop'!$I$8, 'Characteristics of Target Pop'!$E$8) -> 0 | M110: 2 | N110: 2 | O110: 30000 | P110: 0 | Q110: 0 | R110: 0
A111: Kit 6A | B111: Demographic | C111: Forceps, artery, Kocher, 140 mm, straight | G111: 1 | H111: 1 | I111: 1 | J111: =IF('Characteristics of Target Pop'!$G$8>0, 'Characteristics of Target Pop'!$G$8, 'Characteristics of Target Pop'!$C$8) -> 0 | K111: =IF('Characteristics of Target Pop'!$H$8>0, 'Characteristics of Target Pop'!$H$8, 'Characteristics of Target Pop'!$D$8) -> 0 | L111: =IF('Characteristics of Target Pop'!$I$8>0, 'Characteristics of Target Pop'!$I$8, 'Characteristics of Target Pop'!$E$8) -> 0 | M111: 1 | N111: 1 | O111: 30000 | P111: 0 | Q111: 0 | R111: 0
A112: Kit 6A | B112: Demographic | C112: Flashlight, frontal, LED, battery-operated | D112: Lighting | G112: 1 | H112: 1 | I112: 1 | J112: =IF('Characteristics of Target Pop'!$G$8>0, 'Characteristics of Target Pop'!$G$8, 'Characteristics of Target Pop'!$C$8) -> 0 | K112: =IF('Characteristics of Target Pop'!$H$8>0, 'Characteristics of Target Pop'!$H$8, 'Characteristics of Target Pop'!$D$8) -> 0 | L112: =IF('Characteristics of Target Pop'!$I$8>0, 'Characteristics of Target Pop'!$I$8, 'Characteristics of Target Pop'!$E$8) -> 0 | M112: 1 | N112: 1 | O112: 30000 | P112: 0 | Q112: 0 | R112: 0
A113: Kit 6A | B113: Demographic | C113: Kerosene storm-lamp + extra socks | G113: 1 | H113: 1 | I113: 1 | J113: =IF('Characteristics of Target Pop'!$G$8>0, 'Characteristics of Target Pop'!$G$8, 'Characteristics of Target Pop'!$C$8) -> 0 | K113: =IF('Characteristics of Target Pop'!$H$8>0, 'Characteristics of Target Pop'!$H$8, 'Characteristics of Target Pop'!$D$8) -> 0 | L113: =IF('Characteristics of Target Pop'!$I$8>0, 'Characteristics of Target Pop'!$I$8, 'Characteristics of Target Pop'!$E$8) -> 0 | M113: 1 | N113: 1 | O113: 30000 | P113: 0 | Q113: 0 | R113: 0
A114: Non-Pneumatic Anti-Shock Garment 6A Complement | D114: Complement to Kit 6A
A115: Non-Pneumatic Anti-Shock Garment 6A Complement | B115: Demographic | C115: Non-Pneumatic Anti-Shock Garment | G115: 1 | H115: 1 | I115: 1 | J115: =IF('Characteristics of Target Pop'!$G$8>0, 'Characteristics of Target Pop'!$G$8, 'Characteristics of Target Pop'!$C$8) -> 0 | K115: =IF('Characteristics of Target Pop'!$H$8>0, 'Characteristics of Target Pop'!$H$8, 'Characteristics of Target Pop'!$D$8) -> 0 | L115: =IF('Characteristics of Target Pop'!$I$8>0, 'Characteristics of Target Pop'!$I$8, 'Characteristics of Target Pop'!$E$8) -> 0 | N115: 1 | O115: 30000 | P115: =ROUNDUP((((J115*I115)/N115)/30000),0) -> 0 | Q115: =ROUNDUP((((K115*I115)/N115)/30000),0) -> 0 | R115: =ROUNDUP((((L115*I115)/N115)/30000),0) -> 0 | S115: =P115*'Product cost'!$E$16 -> 0 | T115: =Q115*'Product cost'!$E$16 -> 0 | U115: =R115*'Product cost'!$E$16 -> 0
A116: KIT 6B | D116: Part B: Drugs and disposable equipment
A117: KIT 6B | B117: Demographic | C117: Ampicillin pdr/inj 500mg vial, | D117: Medicines | G117: 6 | H117: 7 | I117: 4.444444444 | J117: =IF('Characteristics of Target Pop'!$G$25>0, 'Characteristics of Target Pop'!$G$25,'Characteristics of Target Pop'!$C$25)*3 -> 0 | K117: =IF('Characteristics of Target Pop'!$H$25>0, 'Characteristics of Target Pop'!$H$25,'Characteristics of Target Pop'!$D$25)*3 -> 0 | L117: =IF('Characteristics of Target Pop'!$I$25>0, 'Characteristics of Target Pop'!$I$25,'Characteristics of Target Pop'!$E$25)*3 -> 0 | M117: 1890 | N117: 200 | O117: 1 | P117: =ROUNDUP(((J117*$I$117)/$N$117),0) -> 0 | Q117: =ROUNDUP(((K117*I117)/N117),0) -> 0 | R117: =ROUNDUP(((L117*I117)/N117),0) -> 0 | S117: =MAX(P117:P168)*'Product cost'!$E$17 -> 0 | T117: =MAX(Q117:Q168)*'Product cost'!$E$17 -> 0 | U117: =MAX(R117:R168)*'Product cost'!$E$17 -> 0
A118: KIT 6B | B118: Demographic | C118: Gentamicin (as sulfate), solution for injection, 40 mg/ml, 2-ml vial | G118: 6 | H118: 7 | I118: 2.222222222 | J118: =IF('Characteristics of Target Pop'!$G$25>0, 'Characteristics of Target Pop'!$G$25,'Characteristics of Target Pop'!$C$25)*3 -> 0 | K118: =IF('Characteristics of Target Pop'!$H$25>0, 'Characteristics of Target Pop'!$H$25,'Characteristics of Target Pop'!$D$25)*3 -> 0 | L118: =IF('Characteristics of Target Pop'!$I$25>0, 'Characteristics of Target Pop'!$I$25,'Characteristics of Target Pop'!$E$25)*3 -> 0 | N118: 100 | O118: 1 | P118: =ROUNDUP(((J118*$I$117)/$N$117),0) -> 0 | Q118: =ROUNDUP(((K118*I118)/N118),0) -> 0 | R118: =ROUNDUP(((L118*I118)/N118),0) -> 0
A119: KIT 6B | B119: Demographic | C119: Clindamycin, injection: 600mg (as phosphate) (adult) | G119: 6 | H119: 7 | I119: 2.777777778 | J119: =IF('Characteristics of Target Pop'!$G$25>0, 'Characteristics of Target Pop'!$G$25,'Characteristics of Target Pop'!$C$25)*3 -> 0 | K119: =IF('Characteristics of Target Pop'!$H$25>0, 'Characteristics of Target Pop'!$H$25,'Characteristics of Target Pop'!$D$25)*3 -> 0 | L119: =IF('Characteristics of Target Pop'!$I$25>0, 'Characteristics of Target Pop'!$I$25,'Characteristics of Target Pop'!$E$25)*3 -> 0 | N119: 125 | O119: 1 | P119: =ROUNDUP(((J119*$I$117)/$N$117),0) -> 0 | Q119: =ROUNDUP(((K119*I119)/N119),0) -> 0 | R119: =ROUNDUP(((L119*I119)/N119),0) -> 0
A120: KIT 6B | B120: Demographic | C120: Amoxicillin 125mg/5ml powder for oral suspension, bottle (pediatric) | G120: 6 | H120: 7 | I120: 0.1111111111 | J120: =IF('Characteristics of Target Pop'!$G$25>0, 'Characteristics of Target Pop'!$G$25,'Characteristics of Target Pop'!$C$25)*3 -> 0 | K120: =IF('Characteristics of Target Pop'!$H$25>0, 'Characteristics of Target Pop'!$H$25,'Characteristics of Target Pop'!$D$25)*3 -> 0 | L120: =IF('Characteristics of Target Pop'!$I$25>0, 'Characteristics of Target Pop'!$I$25,'Characteristics of Target Pop'!$E$25)*3 -> 0 | N120: 5 | O120: 1 | P120: =ROUNDUP(((J120*$I$117)/$N$117),0) -> 0 | Q120: =ROUNDUP(((K120*I120)/N120),0) -> 0 | R120: =ROUNDUP(((L120*I120)/N120),0) -> 0
A121: KIT 6B | B121: Demographic | C121: Misoprostol, tablet, 0.2 mg (200 mcg) | G121: 6 | H121: 7 | I121: 1.333333333 | J121: =IF('Characteristics of Target Pop'!$G$25>0, 'Characteristics of Target Pop'!$G$25,'Characteristics of Target Pop'!$C$25)*3 -> 0 | K121: =IF('Characteristics of Target Pop'!$H$25>0, 'Characteristics of Target Pop'!$H$25,'Characteristics of Target Pop'!$D$25)*3 -> 0 | L121: =IF('Characteristics of Target Pop'!$I$25>0, 'Characteristics of Target Pop'!$I$25,'Characteristics of Target Pop'!$E$25)*3 -> 0 | M121: 1890 | N121: 60 | O121: 1 | P121: =ROUNDUP(((J121*I121)/N121),0) -> 0 | Q121: =ROUNDUP(((K121*I121)/N121),0) -> 0 | R121: =ROUNDUP(((L121*I121)/N121),0) -> 0
A122: KIT 6B | B122: Demographic | C122: Ferrous sulfate + folic acid, tablet, 200 mg + 0.4 mg, box of 1000 | G122: 1 | H122: 180 | I122: =(G122*H122)*0.617 -> 111.06 | J122: =IF('Characteristics of Target Pop'!$G$25>0, 'Characteristics of Target Pop'!$G$25,'Characteristics of Target Pop'!$C$25)*3 -> 0 | K122: =IF('Characteristics of Target Pop'!$H$25>0, 'Characteristics of Target Pop'!$H$25,'Characteristics of Target Pop'!$D$25)*3 -> 0 | L122: =IF('Characteristics of Target Pop'!$I$25>0, 'Characteristics of Target Pop'!$I$25,'Characteristics of Target Pop'!$E$25)*3 -> 0 | M122: 8100 | N122: 5000 | O122: 1 | P122: 0 | Q122: 0 | R122: 0
A123: KIT 6B | B123: Demographic | C123: Tetracycline hydrochloride, eye ointment, 1%, tube 5 g | G123: 1 | H123: 0.4 | I123: =G123*H123 -> 0.4 | J123: =(IF('Characteristics of Target Pop'!G23>0, 'Characteristics of Target Pop'!G23, 'Characteristics of Target Pop'!C23)*'Characteristics of Target Pop'!$B$45)*3.32 -> 0 | K123: =(IF('Characteristics of Target Pop'!H23>0, 'Characteristics of Target Pop'!H23, 'Characteristics of Target Pop'!D23)*'Characteristics of Target Pop'!$B$45)*3.32 -> 0 | L123: =(IF('Characteristics of Target Pop'!I23>0, 'Characteristics of Target Pop'!I23, 'Characteristics of Target Pop'!E23)*'Characteristics of Target Pop'!$B$45)*3.32 -> 0 | M123: 15 | N123: 6 | O123: 1 | P123: 0 | Q123: 0 | R123: 0
A124: KIT 6B | B124: Demographic | C124: Lidocaine hydrochloride, injection, 10 mg/ml (1%), 20-ml ampoule | G124: 20 | H124: 1 | I124: 20 | J124: =IF('Characteristics of Target Pop'!$G$8>0, 'Characteristics of Target Pop'!$G$8, 'Characteristics of Target Pop'!$C$8) -> 0 | K124: =IF('Characteristics of Target Pop'!$H$8>0, 'Characteristics of Target Pop'!$H$8, 'Characteristics of Target Pop'!$D$8) -> 0 | L124: =IF('Characteristics of Target Pop'!$I$8>0, 'Characteristics of Target Pop'!$I$8, 'Characteristics of Target Pop'!$E$8) -> 0 | M124: 20 | N124: 20 | O124: 30000 | P124: =ROUNDUP((((J124*I124)/N124)/30000),0) -> 0 | Q124: =ROUNDUP((((K124*I124)/N124)/30000),0) -> 0 | R124: =ROUNDUP((((L124*I124)/N124)/30000),0) -> 0
A125: KIT 6B | B125: Demographic | C125: Oxytocin, injection, 10 IU/ml, 1-ml ampoule | G125: 1 | H125: 1 | I125: =(G125*H125)*1.11 -> 1.11 | J125: =IF('Characteristics of Target Pop'!$G$25>0, 'Characteristics of Target Pop'!$G$25,'Characteristics of Target Pop'!$C$25)*3 -> 0 | K125: =IF('Characteristics of Target Pop'!$H$25>0, 'Characteristics of Target Pop'!$H$25,'Characteristics of Target Pop'!$D$25)*3 -> 0 | L125: =IF('Characteristics of Target Pop'!$I$25>0, 'Characteristics of Target Pop'!$I$25,'Characteristics of Target Pop'!$E$25)*3 -> 0 | M125: 45 | N125: 100 | O125: 1 | P125: 0 | Q125: 0 | R125: 0
A126: KIT 6B | B126: Demographic | C126: Compound Sodium Lactate, solution for infusion, 1000ml bag, with giving set | G126: 1 | H126: 1 | I126: =30/45 -> 0.6666666667 | J126: =IF('Characteristics of Target Pop'!$G$25>0, 'Characteristics of Target Pop'!$G$25,'Characteristics of Target Pop'!$C$25)*3 -> 0 | K126: =IF('Characteristics of Target Pop'!$H$29>0, 'Characteristics of Target Pop'!$H$29, 'Characteristics of Target Pop'!$D$29)*3 -> 0 | L126: =IF('Characteristics of Target Pop'!$I$29>0, 'Characteristics of Target Pop'!$I$29, 'Characteristics of Target Pop'!$E$29)*3 -> 0 | M126: 15 | N126: 30 | O126: 1 | P126: 0 | Q126: 0 | R126: 0
A127: KIT 6B | B127: Demographic | C127: Glucose, solution for infusion, 5% (iso-osmotic), 1-litre bottle + infusion-giving set, sterile, single use | G127: 1 | H127: 1 | I127: =(G127*H127)*1.33 -> 1.33 | J127: =IF('Characteristics of Target Pop'!$G$29>0, 'Characteristics of Target Pop'!$G$29, 'Characteristics of Target Pop'!$C$29)*3 -> 0 | K127: =IF('Characteristics of Target Pop'!$H$29>0, 'Characteristics of Target Pop'!$H$29, 'Characteristics of Target Pop'!$D$29)*3 -> 0 | L127: =IF('Characteristics of Target Pop'!$I$29>0, 'Characteristics of Target Pop'!$I$29, 'Characteristics of Target Pop'!$E$29)*3 -> 0 | M127: 15 | N127: 50 | O127: 1 | P127: 0 | Q127: 0 | R127: 0
A128: KIT 6B | B128: Demographic | C128: Hydralazine hydrochloride, powder for injection, 20 mg in ampoule | G128: 1 | H128: 1 | I128: =(G128*H128)*1.33 -> 1.33 | J128: =IF('Characteristics of Target Pop'!$G$29>0, 'Characteristics of Target Pop'!$G$29, 'Characteristics of Target Pop'!$C$29)*3 -> 0 | K128: =IF('Characteristics of Target Pop'!$H$29>0, 'Characteristics of Target Pop'!$H$29, 'Characteristics of Target Pop'!$D$29)*3 -> 0 | L128: =IF('Characteristics of Target Pop'!$I$29>0, 'Characteristics of Target Pop'!$I$29, 'Characteristics of Target Pop'!$E$29)*3 -> 0 | M128: 15 | N128: 60 | O128: 1 | P128: 0 | Q128: 0 | R128: 0
A129: KIT 6B | B129: Demographic | C129: Magnesium sulfate, solution for injection, 500 mg/ml, 10-ml ampoule | G129: 1 | H129: 0.666 | I129: 0.666 | J129: =IF('Characteristics of Target Pop'!$G$29>0, 'Characteristics of Target Pop'!$G$29, 'Characteristics of Target Pop'!$C$29)*3 -> 0 | K129: =IF('Characteristics of Target Pop'!$H$29>0, 'Characteristics of Target Pop'!$H$29, 'Characteristics of Target Pop'!$D$29)*3 -> 0 | L129: =IF('Characteristics of Target Pop'!$I$29>0, 'Characteristics of Target Pop'!$I$29, 'Characteristics of Target Pop'!$E$29)*3 -> 0 | M129: 15 | N129: 10 | O129: 1 | P129: 0 | Q129: 0 | R129: 0
A130: KIT 6B | B130: Demographic | C130: Calcium gluconate (monohydrate), solution for injection, 100 mg/ml, 10-ml ampoule | G130: 1 | H130: 0.333 | I130: 0.333 | J130: =IF('Characteristics of Target Pop'!$G$29>0, 'Characteristics of Target Pop'!$G$29, 'Characteristics of Target Pop'!$C$29)*3 -> 0 | K130: =IF('Characteristics of Target Pop'!$H$29>0, 'Characteristics of Target Pop'!$H$29, 'Characteristics of Target Pop'!$D$29)*3 -> 0 | L130: =IF('Characteristics of Target Pop'!$I$29>0, 'Characteristics of Target Pop'!$I$29, 'Characteristics of Target Pop'!$E$29)*3 -> 0 | M130: 15 | N130: 5 | O130: 1 | P130: =ROUNDUP(((J130*I130)/N130),0) -> 0 | Q130: =ROUNDUP(((K130*I130)/N130),0) -> 0 | R130: =ROUNDUP(((L130*I130)/N130),0) -> 0
A131: KIT 6B | B131: Demographic | C131: Paracetamol 500 mg tabs | I131: 40 | J131: =IF('Characteristics of Target Pop'!$G$29>0, 'Characteristics of Target Pop'!$G$29, 'Characteristics of Target Pop'!$C$29)*3 -> 0 | K131: =IF('Characteristics of Target Pop'!$H$29>0, 'Characteristics of Target Pop'!$H$29, 'Characteristics of Target Pop'!$D$29)*3 -> 0 | L131: =IF('Characteristics of Target Pop'!$I$29>0, 'Characteristics of Target Pop'!$I$29, 'Characteristics of Target Pop'!$E$29)*3 -> 0 | N131: 600 | O131: 1 | P131: =ROUNDUP(((J131*I131)/N131),0) -> 0 | Q131: =ROUNDUP(((K131*I131)/N131),0) -> 0 | R131: =ROUNDUP(((L131*I131)/N131),0) -> 0
A132: KIT 6B | B132: Demographic | C132: Vitamin K, inj, 1mg/0.2 ml vial | I132: 3.333333333 | J132: =IF('Characteristics of Target Pop'!$G$29>0, 'Characteristics of Target Pop'!$G$29, 'Characteristics of Target Pop'!$C$29)*3 -> 0 | K132: =IF('Characteristics of Target Pop'!$H$29>0, 'Characteristics of Target Pop'!$H$29, 'Characteristics of Target Pop'!$D$29)*3 -> 0 | L132: =IF('Characteristics of Target Pop'!$I$29>0, 'Characteristics of Target Pop'!$I$29, 'Characteristics of Target Pop'!$E$29)*3 -> 0 | N132: 50 | O132: 1 | P132: =ROUNDUP(((J132*I132)/N132),0) -> 0 | Q132: =ROUNDUP(((K132*I132)/N132),0) -> 0 | R132: =ROUNDUP(((L132*I132)/N132),0) -> 0
A133: KIT 6B | B133: Demographic | C133: Sodium chloride, injectable 0,9% 10ml | I133: 6.666666667 | J133: =IF('Characteristics of Target Pop'!$G$29>0, 'Characteristics of Target Pop'!$G$29, 'Characteristics of Target Pop'!$C$29)*3 -> 0 | K133: =IF('Characteristics of Target Pop'!$H$29>0, 'Characteristics of Target Pop'!$H$29, 'Characteristics of Target Pop'!$D$29)*3 -> 0 | L133: =IF('Characteristics of Target Pop'!$I$29>0, 'Characteristics of Target Pop'!$I$29, 'Characteristics of Target Pop'!$E$29)*3 -> 0 | N133: 100 | O133: 1 | P133: =ROUNDUP(((J133*I133)/N133),0) -> 0 | Q133: =ROUNDUP(((K133*I133)/N133),0) -> 0 | R133: =ROUNDUP(((L133*I133)/N133),0) -> 0
A134: KIT 6B | B134: Demographic | C134: Water for injection, 10-ml ampoule | G134: 1 | H134: 1 | I134: =(G134*H134)*1.33 -> 1.33 | J134: =IF('Characteristics of Target Pop'!$G$29>0, 'Characteristics of Target Pop'!$G$29, 'Characteristics of Target Pop'!$C$29)*3 -> 0 | K134: =IF('Characteristics of Target Pop'!$H$29>0, 'Characteristics of Target Pop'!$H$29, 'Characteristics of Target Pop'!$D$29)*3 -> 0 | L134: =IF('Characteristics of Target Pop'!$I$29>0, 'Characteristics of Target Pop'!$I$29, 'Characteristics of Target Pop'!$E$29)*3 -> 0 | M134: 15 | N134: 20 | O134: 1 | P134: 0 | Q134: 0 | R134: 0
A135: KIT 6B | B135: Demographic | C135: Chlorhexidine gluconate, concentrated solution, 5%, bottle, 1000 ml | G135: 12 | H135: 1 | I135: 3.333333333e-05 | J135: =IF('Characteristics of Target Pop'!$G$8>0, 'Characteristics of Target Pop'!$G$8, 'Characteristics of Target Pop'!$C$8) -> 0 | K135: =IF('Characteristics of Target Pop'!$H$8>0, 'Characteristics of Target Pop'!$H$8, 'Characteristics of Target Pop'!$D$8) -> 0 | L135: =IF('Characteristics of Target Pop'!$I$8>0, 'Characteristics of Target Pop'!$I$8, 'Characteristics of Target Pop'!$E$8) -> 0 | M135: 12 | N135: 1 | O135: 30000 | P135: =ROUNDUP((((J135*I135)/N135)/30000),0) -> 0 | Q135: =ROUNDUP((((K135*I135)/N135)/30000),0) -> 0 | R135: =ROUNDUP((((L135*I135)/N135)/30000),0) -> 0
A136: KIT 6B | B136: Demographic | C136: Chlorhexidine gluconate, detergent solution, 4% (Hibiscrub), bottle, 500 ml | I136: 3.333333333e-05 | J136: =IF('Characteristics of Target Pop'!$G$8>0, 'Characteristics of Target Pop'!$G$8, 'Characteristics of Target Pop'!$C$8) -> 0 | K136: =IF('Characteristics of Target Pop'!$H$8>0, 'Characteristics of Target Pop'!$H$8, 'Characteristics of Target Pop'!$D$8) -> 0 | L136: =IF('Characteristics of Target Pop'!$I$8>0, 'Characteristics of Target Pop'!$I$8, 'Characteristics of Target Pop'!$E$8) -> 0 | N136: 1 | O136: 30000 | P136: =ROUNDUP((((J136*I136)/N136)/30000),0) -> 0 | Q136: =ROUNDUP((((K136*I136)/N136)/30000),0) -> 0 | R136: =ROUNDUP((((L136*I136)/N136)/30000),0) -> 0
A137: KIT 6B | B137: Demographic | C137: Polyvidone iodine, solution for cutaneous use, 10%, 1000-ml bottle | I137: 0.0001666666667 | J137: =IF('Characteristics of Target Pop'!$G$8>0, 'Characteristics of Target Pop'!$G$8, 'Characteristics of Target Pop'!$C$8) -> 0 | K137: =IF('Characteristics of Target Pop'!$H$8>0, 'Characteristics of Target Pop'!$H$8, 'Characteristics of Target Pop'!$D$8) -> 0 | L137: =IF('Characteristics of Target Pop'!$I$8>0, 'Characteristics of Target Pop'!$I$8, 'Characteristics of Target Pop'!$E$8) -> 0 | N137: 5 | O137: 30000 | P137: =ROUNDUP((((J137*I137)/N137)/30000),0) -> 0 | Q137: =ROUNDUP((((K137*I137)/N137)/30000),0) -> 0 | R137: =ROUNDUP((((L137*I137)/N137)/30000),0) -> 0
A138: KIT 6B | B138: Demographic | C138: Clamp, umbilical, cord, sterile, single use | D138: Medical devices, renewable | G138: 100 | H138: 1 | I138: 100 | J138: =IF('Characteristics of Target Pop'!$G$8>0, 'Characteristics of Target Pop'!$G$8, 'Characteristics of Target Pop'!$C$8) -> 0 | K138: =IF('Characteristics of Target Pop'!$H$8>0, 'Characteristics of Target Pop'!$H$8, 'Characteristics of Target Pop'!$D$8) -> 0 | L138: =IF('Characteristics of Target Pop'!$I$8>0, 'Characteristics of Target Pop'!$I$8, 'Characteristics of Target Pop'!$E$8) -> 0 | M138: 100 | N138: 100 | O138: 30000 | P138: =ROUNDUP((((J138*$I$138)/$N$138)/30000),0) -> 0 | Q138: =ROUNDUP((((K138*I138)/N138)/30000),0) -> 0 | R138: =ROUNDUP((((L138*I138)/N138)/30000),0) -> 0
A139: KIT 6B | B139: Demographic | C139: Cannula, intravenous, short, 20G, sterile, single use | G139: 25 | H139: 1 | I139: 25 | J139: =IF('Characteristics of Target Pop'!$G$8>0, 'Characteristics of Target Pop'!$G$8, 'Characteristics of Target Pop'!$C$8) -> 0 | K139: =IF('Characteristics of Target Pop'!$H$8>0, 'Characteristics of Target Pop'!$H$8, 'Characteristics of Target Pop'!$D$8) -> 0 | L139: =IF('Characteristics of Target Pop'!$I$8>0, 'Characteristics of Target Pop'!$I$8, 'Characteristics of Target Pop'!$E$8) -> 0 | M139: 25 | N139: 100 | O139: 30000 | P139: =ROUNDUP((((J139*I139)/N139)/30000),0) -> 0 | Q139: =ROUNDUP((((K139*I139)/N139)/30000),0) -> 0 | R139: =ROUNDUP((((L139*I139)/N139)/30000),0) -> 0
A140: KIT 6B | B140: Demographic | C140: Syringe, luer, 20 ml, sterile, single use | I140: 2.222222222 | J140: =IF('Characteristics of Target Pop'!$G$25>0, 'Characteristics of Target Pop'!$G$25,'Characteristics of Target Pop'!$C$25)*3 -> 0 | K140: =IF('Characteristics of Target Pop'!$H$25>0, 'Characteristics of Target Pop'!$H$25,'Characteristics of Target Pop'!$D$25)*3 -> 0 | L140: =IF('Characteristics of Target Pop'!$I$25>0, 'Characteristics of Target Pop'!$I$25,'Characteristics of Target Pop'!$E$25)*3 -> 0 | N140: 100 | O140: 1 | P140: =ROUNDUP(((J140*I140)/N140),0) -> 0 | Q140: =ROUNDUP(((K140*I140)/N140),0) -> 0 | R140: =ROUNDUP(((L140*I140)/N140),0) -> 0
A141: KIT 6B | B141: Demographic | C141: Syringe, luer, 10 ml, sterile, single use | G141: 1 | H141: 1 | I141: 4.444444444 | J141: =IF('Characteristics of Target Pop'!$G$25>0, 'Characteristics of Target Pop'!$G$25,'Characteristics of Target Pop'!$C$25)*3 -> 0 | K141: =IF('Characteristics of Target Pop'!$H$25>0, 'Characteristics of Target Pop'!$H$25,'Characteristics of Target Pop'!$D$25)*3 -> 0 | L141: =IF('Characteristics of Target Pop'!$I$25>0, 'Characteristics of Target Pop'!$I$25,'Characteristics of Target Pop'!$E$25)*3 -> 0 | M141: 45 | N141: 200 | O141: 1 | P141: 0 | Q141: 0 | R141: 0
A142: KIT 6B | B142: Demographic | C142: Syringe, luer, 5 ml, sterile, single use | I142: 4.444444444 | J142: =IF('Characteristics of Target Pop'!$G$25>0, 'Characteristics of Target Pop'!$G$25,'Characteristics of Target Pop'!$C$25)*3 -> 0 | K142: =IF('Characteristics of Target Pop'!$H$25>0, 'Characteristics of Target Pop'!$H$25,'Characteristics of Target Pop'!$D$25)*3 -> 0 | L142: =IF('Characteristics of Target Pop'!$I$25>0, 'Characteristics of Target Pop'!$I$25,'Characteristics of Target Pop'!$E$25)*3 -> 0 | N142: 200 | O142: 1 | P142: 0 | Q142: 0 | R142: 0
A143: KIT 6B | B143: Demographic | C143: Syringe, luer, 2 ml, sterile, single use | G143: 2 | H143: 1 | I143: 8.888888889 | J143: =IF('Characteristics of Target Pop'!$G$25>0, 'Characteristics of Target Pop'!$G$25,'Characteristics of Target Pop'!$C$25)*3 -> 0 | K143: =IF('Characteristics of Target Pop'!$H$25>0, 'Characteristics of Target Pop'!$H$25,'Characteristics of Target Pop'!$D$25)*3 -> 0 | L143: =IF('Characteristics of Target Pop'!$I$25>0, 'Characteristics of Target Pop'!$I$25,'Characteristics of Target Pop'!$E$25)*3 -> 0 | M143: 90 | N143: 400 | O143: 1 | P143: 0 | Q143: 0 | R143: 0
A144: KIT 6B | B144: Demographic | C144: Syringe, luer, 1 ml, sterile, single use | I144: 4.444444444 | J144: =IF('Characteristics of Target Pop'!$G$25>0, 'Characteristics of Target Pop'!$G$25,'Characteristics of Target Pop'!$C$25)*3 -> 0 | K144: =IF('Characteristics of Target Pop'!$H$25>0, 'Characteristics of Target Pop'!$H$25,'Characteristics of Target Pop'!$D$25)*3 -> 0 | L144: =IF('Characteristics of Target Pop'!$I$25>0, 'Characteristics of Target Pop'!$I$25,'Characteristics of Target Pop'!$E$25)*3 -> 0 | N144: 200 | O144: 1 | P144: 0 | Q144: 0 | R144: 0
A145: KIT 6B | B145: Demographic | C145: Needle, luer, 21G (0.8 x 40 mm), sterile, single use | G145: 4 | H145: 1 | I145: 26.66666667 | J145: =IF('Characteristics of Target Pop'!$G$25>0, 'Characteristics of Target Pop'!$G$25,'Characteristics of Target Pop'!$C$25)*3 -> 0 | K145: =IF('Characteristics of Target Pop'!$H$25>0, 'Characteristics of Target Pop'!$H$25,'Characteristics of Target Pop'!$D$25)*3 -> 0 | L145: =IF('Characteristics of Target Pop'!$I$25>0, 'Characteristics of Target Pop'!$I$25,'Characteristics of Target Pop'!$E$25)*3 -> 0 | M145: 180 | N145: 1200 | O145: 1 | P145: 0 | Q145: 0 | R145: 0
A146: KIT 6B | B146: Demographic | C146: Needle, luer 25G, sterile single use | I146: 6.666666667 | J146: =IF('Characteristics of Target Pop'!$G$25>0, 'Characteristics of Target Pop'!$G$25,'Characteristics of Target Pop'!$C$25)*3 -> 0 | K146: =IF('Characteristics of Target Pop'!$H$25>0, 'Characteristics of Target Pop'!$H$25,'Characteristics of Target Pop'!$D$25)*3 -> 0 | L146: =IF('Characteristics of Target Pop'!$I$25>0, 'Characteristics of Target Pop'!$I$25,'Characteristics of Target Pop'!$E$25)*3 -> 0 | N146: 300 | O146: 1 | P146: 0 | Q146: 0 | R146: 0
A147: KIT 6B | B147: Demographic | C147: Syringe, feeding, catheter tip, 50/60 ml, sterile, single use | G147: 10 | H147: 1 | I147: 10 | J147: =IF('Characteristics of Target Pop'!$G$8>0, 'Characteristics of Target Pop'!$G$8, 'Characteristics of Target Pop'!$C$8) -> 0 | K147: =IF('Characteristics of Target Pop'!$H$8>0, 'Characteristics of Target Pop'!$H$8, 'Characteristics of Target Pop'!$D$8) -> 0 | L147: =IF('Characteristics of Target Pop'!$I$8>0, 'Characteristics of Target Pop'!$I$8, 'Characteristics of Target Pop'!$E$8) -> 0 | M147: 10 | N147: 10 | O147: 30000 | P147: 0 | Q147: 0 | R147: 0
A148: KIT 6B | B148: Demographic | C148: Gloves, surgical, size 8, sterile, single use, pair | G148: 30 | H148: 1 | I148: =G148*H148 -> 30 | J148: =IF('Characteristics of Target Pop'!$G$8>0, 'Characteristics of Target Pop'!$G$8, 'Characteristics of Target Pop'!$C$8) -> 0 | K148: =IF('Characteristics of Target Pop'!$H$8>0, 'Characteristics of Target Pop'!$H$8, 'Characteristics of Target Pop'!$D$8) -> 0 | L148: =IF('Characteristics of Target Pop'!$I$8>0, 'Characteristics of Target Pop'!$I$8, 'Characteristics of Target Pop'!$E$8) -> 0 | M148: 30 | N148: 30 | O148: 30000 | P148: 0 | Q148: 0 | R148: 0
A149: KIT 6B | B149: Demographic | C149: Gloves, surgical, size 7, sterile, single use, pair | G149: 30 | H149: 1 | I149: 30 | J149: =IF('Characteristics of Target Pop'!$G$8>0, 'Characteristics of Target Pop'!$G$8, 'Characteristics of Target Pop'!$C$8) -> 0 | K149: =IF('Characteristics of Target Pop'!$H$8>0, 'Characteristics of Target Pop'!$H$8, 'Characteristics of Target Pop'!$D$8) -> 0 | L149: =IF('Characteristics of Target Pop'!$I$8>0, 'Characteristics of Target Pop'!$I$8, 'Characteristics of Target Pop'!$E$8) -> 0 | M149: 30 | N149: 30 | O149: 30000 | P149: 0 | Q149: 0 | R149: 0
A150: KIT 6B | B150: Demographic | C150: Gloves, gynecological, medium, sterile, single use, pair | G150: 5 | H150: 1 | I150: 5 | J150: =IF('Characteristics of Target Pop'!$G$8>0, 'Characteristics of Target Pop'!$G$8, 'Characteristics of Target Pop'!$C$8) -> 0 | K150: =IF('Characteristics of Target Pop'!$H$8>0, 'Characteristics of Target Pop'!$H$8, 'Characteristics of Target Pop'!$D$8) -> 0 | L150: =IF('Characteristics of Target Pop'!$I$8>0, 'Characteristics of Target Pop'!$I$8, 'Characteristics of Target Pop'!$E$8) -> 0 | M150: 5 | N150: 5 | O150: 30000 | P150: 0 | Q150: 0 | R150: 0
A151: KIT 6B | B151: Demographic | C151: Gloves, examination, medium, single use, box of 100 | G151: 3 | H151: 1 | I151: 3 | J151: =IF('Characteristics of Target Pop'!$G$8>0, 'Characteristics of Target Pop'!$G$8, 'Characteristics of Target Pop'!$C$8) -> 0 | K151: =IF('Characteristics of Target Pop'!$H$8>0, 'Characteristics of Target Pop'!$H$8, 'Characteristics of Target Pop'!$D$8) -> 0 | L151: =IF('Characteristics of Target Pop'!$I$8>0, 'Characteristics of Target Pop'!$I$8, 'Characteristics of Target Pop'!$E$8) -> 0 | M151: 3 | N151: 3 | O151: 30000 | P151: 0 | Q151: 0 | R151: 0
A152: KIT 6B | B152: Demographic | C152: Suture, synthetic, absorbable, DEC3(2/0), needle 3/8 30 mm, round, sterile, single use, box of 12 | G152: 3 | H152: 1 | I152: 3 | J152: =IF('Characteristics of Target Pop'!$G$8>0, 'Characteristics of Target Pop'!$G$8, 'Characteristics of Target Pop'!$C$8) -> 0 | K152: =IF('Characteristics of Target Pop'!$H$8>0, 'Characteristics of Target Pop'!$H$8, 'Characteristics of Target Pop'!$D$8) -> 0 | L152: =IF('Characteristics of Target Pop'!$I$8>0, 'Characteristics of Target Pop'!$I$8, 'Characteristics of Target Pop'!$E$8) -> 0 | M152: 3 | N152: 3 | O152: 30000 | P152: 0 | Q152: 0 | R152: 0
A153: KIT 6B | B153: Demographic | C153: Extractor, mucus, 20 ml, sterile, single use | G153: 50 | H153: 1 | I153: 50 | J153: =IF('Characteristics of Target Pop'!$G$8>0, 'Characteristics of Target Pop'!$G$8, 'Characteristics of Target Pop'!$C$8) -> 0 | K153: =IF('Characteristics of Target Pop'!$H$8>0, 'Characteristics of Target Pop'!$H$8, 'Characteristics of Target Pop'!$D$8) -> 0 | L153: =IF('Characteristics of Target Pop'!$I$8>0, 'Characteristics of Target Pop'!$I$8, 'Characteristics of Target Pop'!$E$8) -> 0 | M153: 50 | N153: 50 | O153: 30000 | P153: 0 | Q153: 0 | R153: 0
A154: KIT 6B | B154: Demographic | C154: Tube, suction, CH10, 50 cm long, conical tip, sterile, single use | G154: 10 | H154: 1 | I154: 10 | J154: =IF('Characteristics of Target Pop'!$G$8>0, 'Characteristics of Target Pop'!$G$8, 'Characteristics of Target Pop'!$C$8) -> 0 | K154: =IF('Characteristics of Target Pop'!$H$8>0, 'Characteristics of Target Pop'!$H$8, 'Characteristics of Target Pop'!$D$8) -> 0 | L154: =IF('Characteristics of Target Pop'!$I$8>0, 'Characteristics of Target Pop'!$I$8, 'Characteristics of Target Pop'!$E$8) -> 0 | M154: 10 | N154: 10 | O154: 30000 | P154: 0 | Q154: 0 | R154: 0
A155: KIT 6B | B155: Demographic | C155: Tube, suction, CH14, 50 cm long, conical tip, sterile, single use | G155: 10 | H155: 1 | I155: 10 | J155: =IF('Characteristics of Target Pop'!$G$8>0, 'Characteristics of Target Pop'!$G$8, 'Characteristics of Target Pop'!$C$8) -> 0 | K155: =IF('Characteristics of Target Pop'!$H$8>0, 'Characteristics of Target Pop'!$H$8, 'Characteristics of Target Pop'!$D$8) -> 0 | L155: =IF('Characteristics of Target Pop'!$I$8>0, 'Characteristics of Target Pop'!$I$8, 'Characteristics of Target Pop'!$E$8) -> 0 | M155: 10 | N155: 10 | O155: 30000 | P155: 0 | Q155: 0 | R155: 0
A156: KIT 6B | B156: Demographic | C156: Catheter, urethral, CH12, sterile, single use | G156: 20 | H156: 1 | I156: 20 | J156: =IF('Characteristics of Target Pop'!$G$8>0, 'Characteristics of Target Pop'!$G$8, 'Characteristics of Target Pop'!$C$8) -> 0 | K156: =IF('Characteristics of Target Pop'!$H$8>0, 'Characteristics of Target Pop'!$H$8, 'Characteristics of Target Pop'!$D$8) -> 0 | L156: =IF('Characteristics of Target Pop'!$I$8>0, 'Characteristics of Target Pop'!$I$8, 'Characteristics of Target Pop'!$E$8) -> 0 | M156: 20 | N156: 20 | O156: 30000 | P156: 0 | Q156: 0 | R156: 0
A157: KIT 6B | B157: Demographic | C157: Compress, gauze, 10 x 10 cm, sterile, single use, pack of 5 | G157: 50 | H157: 1 | I157: 50 | J157: =IF('Characteristics of Target Pop'!$G$8>0, 'Characteristics of Target Pop'!$G$8, 'Characteristics of Target Pop'!$C$8) -> 0 | K157: =IF('Characteristics of Target Pop'!$H$8>0, 'Characteristics of Target Pop'!$H$8, 'Characteristics of Target Pop'!$D$8) -> 0 | L157: =IF('Characteristics of Target Pop'!$I$8>0, 'Characteristics of Target Pop'!$I$8, 'Characteristics of Target Pop'!$E$8) -> 0 | M157: 50 | N157: 50 | O157: 30000 | P157: 0 | Q157: 0 | R157: 0
A158: KIT 6B | B158: Demographic | C158: Cotton wool, 500-g roll, non-sterile | G158: 3 | H158: 1 | I158: 3 | J158: =IF('Characteristics of Target Pop'!$G$8>0, 'Characteristics of Target Pop'!$G$8, 'Characteristics of Target Pop'!$C$8) -> 0 | K158: =IF('Characteristics of Target Pop'!$H$8>0, 'Characteristics of Target Pop'!$H$8, 'Characteristics of Target Pop'!$D$8) -> 0 | L158: =IF('Characteristics of Target Pop'!$I$8>0, 'Characteristics of Target Pop'!$I$8, 'Characteristics of Target Pop'!$E$8) -> 0 | M158: 3 | N158: 3 | O158: 30000 | P158: 0 | Q158: 0 | R158: 0
A159: KIT 6B | B159: Demographic | C159: Tape, adhesive, zinc oxide, 2.5 cm x 5m | G159: 5 | H159: 1 | I159: 5 | J159: =IF('Characteristics of Target Pop'!$G$8>0, 'Characteristics of Target Pop'!$G$8, 'Characteristics of Target Pop'!$C$8) -> 0 | K159: =IF('Characteristics of Target Pop'!$H$8>0, 'Characteristics of Target Pop'!$H$8, 'Characteristics of Target Pop'!$D$8) -> 0 | L159: =IF('Characteristics of Target Pop'!$I$8>0, 'Characteristics of Target Pop'!$I$8, 'Characteristics of Target Pop'!$E$8) -> 0 | M159: 5 | N159: 5 | O159: 30000 | P159: 0 | Q159: 0 | R159: 0
A160: KIT 6B | B160: Demographic | C160: Toilet soap, bar, approx.110 g, wrapped | G160: 30 | H160: 1 | I160: 30 | J160: =IF('Characteristics of Target Pop'!$G$8>0, 'Characteristics of Target Pop'!$G$8, 'Characteristics of Target Pop'!$C$8) -> 0 | K160: =IF('Characteristics of Target Pop'!$H$8>0, 'Characteristics of Target Pop'!$H$8, 'Characteristics of Target Pop'!$D$8) -> 0 | L160: =IF('Characteristics of Target Pop'!$I$8>0, 'Characteristics of Target Pop'!$I$8, 'Characteristics of Target Pop'!$E$8) -> 0 | M160: 30 | N160: 30 | O160: 30000 | P160: 0 | Q160: 0 | R160: 0
A161: KIT 6B | B161: Demographic | C161: Safety box, for used syringes and needles, 5 litres | G161: 6 | H161: 1 | I161: 6 | J161: =IF('Characteristics of Target Pop'!$G$8>0, 'Characteristics of Target Pop'!$G$8, 'Characteristics of Target Pop'!$C$8) -> 0 | K161: =IF('Characteristics of Target Pop'!$H$8>0, 'Characteristics of Target Pop'!$H$8, 'Characteristics of Target Pop'!$D$8) -> 0 | L161: =IF('Characteristics of Target Pop'!$I$8>0, 'Characteristics of Target Pop'!$I$8, 'Characteristics of Target Pop'!$E$8) -> 0 | M161: 6 | N161: 18 | O161: 30000 | P161: 0 | Q161: 0 | R161: 0
A162: KIT 6B | B162: Demographic | C162: Glasses, safety, regular size, disposable | G162: 2 | H162: 1 | I162: 2 | J162: =IF('Characteristics of Target Pop'!$G$8>0, 'Characteristics of Target Pop'!$G$8, 'Characteristics of Target Pop'!$C$8) -> 0 | K162: =IF('Characteristics of Target Pop'!$H$8>0, 'Characteristics of Target Pop'!$H$8, 'Characteristics of Target Pop'!$D$8) -> 0 | L162: =IF('Characteristics of Target Pop'!$I$8>0, 'Characteristics of Target Pop'!$I$8, 'Characteristics of Target Pop'!$E$8) -> 0 | M162: 2 | N162: 2 | O162: 30000 | P162: 0 | Q162: 0 | R162: 0
A163: KIT 6B | B163: Demographic | C163: Bag (envelope), plastic, for drugs, approx. 10 x 15 cm, pack of 100 | G163: 10 | H163: 1 | I163: 10 | J163: =IF('Characteristics of Target Pop'!$G$8>0, 'Characteristics of Target Pop'!$G$8, 'Characteristics of Target Pop'!$C$8) -> 0 | K163: =IF('Characteristics of Target Pop'!$H$8>0, 'Characteristics of Target Pop'!$H$8, 'Characteristics of Target Pop'!$D$8) -> 0 | L163: =IF('Characteristics of Target Pop'!$I$8>0, 'Characteristics of Target Pop'!$I$8, 'Characteristics of Target Pop'!$E$8) -> 0 | M163: 10 | N163: 10 | O163: 30000 | P163: 0 | Q163: 0 | R163: 0
A164: KIT 6B | B164: Demographic | C164: Apron, protective, plastic, reusable | G164: 2 | H164: 1 | I164: 2 | J164: =IF('Characteristics of Target Pop'!$G$8>0, 'Characteristics of Target Pop'!$G$8, 'Characteristics of Target Pop'!$C$8) -> 0 | K164: =IF('Characteristics of Target Pop'!$H$8>0, 'Characteristics of Target Pop'!$H$8, 'Characteristics of Target Pop'!$D$8) -> 0 | L164: =IF('Characteristics of Target Pop'!$I$8>0, 'Characteristics of Target Pop'!$I$8, 'Characteristics of Target Pop'!$E$8) -> 0 | M164: 2 | N164: 2 | O164: 30000 | P164: 0 | Q164: 0 | R164: 0
A165: KIT 6B | B165: Demographic | C165: Drawsheet, plastic, approx. 90 x 180 cm | G165: 2 | H165: 1 | I165: 2 | J165: =IF('Characteristics of Target Pop'!$G$8>0, 'Characteristics of Target Pop'!$G$8, 'Characteristics of Target Pop'!$C$8) -> 0 | K165: =IF('Characteristics of Target Pop'!$H$8>0, 'Characteristics of Target Pop'!$H$8, 'Characteristics of Target Pop'!$D$8) -> 0 | L165: =IF('Characteristics of Target Pop'!$I$8>0, 'Characteristics of Target Pop'!$I$8, 'Characteristics of Target Pop'!$E$8) -> 0 | M165: 2 | N165: 2 | O165: 30000 | P165: 0 | Q165: 0 | R165: 0
A166: KIT 6B | B166: Demographic | C166: Urinary protein test strips, box of 50 | G166: 3 | H166: 1 | I166: =G166*H166 -> 3 | J166: =IF('Characteristics of Target Pop'!$G$8>0, 'Characteristics of Target Pop'!$G$8, 'Characteristics of Target Pop'!$C$8) -> 0 | K166: =IF('Characteristics of Target Pop'!$H$8>0, 'Characteristics of Target Pop'!$H$8, 'Characteristics of Target Pop'!$D$8) -> 0 | L166: =IF('Characteristics of Target Pop'!$I$8>0, 'Characteristics of Target Pop'!$I$8, 'Characteristics of Target Pop'!$E$8) -> 0 | M166: 3 | N166: 3 | O166: 30000 | P166: 0 | Q166: 0 | R166: 0
A167: KIT 6B | B167: Demographic | C167: Indicator, TST (Time, Steam, Temperature) control spot | G167: 300 | H167: 1 | I167: 300 | J167: =IF('Characteristics of Target Pop'!$G$8>0, 'Characteristics of Target Pop'!$G$8, 'Characteristics of Target Pop'!$C$8) -> 0 | K167: =IF('Characteristics of Target Pop'!$H$8>0, 'Characteristics of Target Pop'!$H$8, 'Characteristics of Target Pop'!$D$8) -> 0 | L167: =IF('Characteristics of Target Pop'!$I$8>0, 'Characteristics of Target Pop'!$I$8, 'Characteristics of Target Pop'!$E$8) -> 0 | M167: 300 | N167: 300 | O167: 30000 | P167: 0 | Q167: 0 | R167: 0
A168: KIT 6B | B168: Demographic | C168: Battery, dry cell, alkaline, AAA, 1.5V, for frontal flashlight | G168: 10 | H168: 1 | I168: 10 | J168: =IF('Characteristics of Target Pop'!$G$8>0, 'Characteristics of Target Pop'!$G$8, 'Characteristics of Target Pop'!$C$8) -> 0 | K168: =IF('Characteristics of Target Pop'!$H$8>0, 'Characteristics of Target Pop'!$H$8, 'Characteristics of Target Pop'!$D$8) -> 0 | L168: =IF('Characteristics of Target Pop'!$I$8>0, 'Characteristics of Target Pop'!$I$8, 'Characteristics of Target Pop'!$E$8) -> 0 | M168: 10 | N168: 10 | O168: 30000 | P168: 0 | Q168: 0 | R168: 0
A169: KIT 6B | B169: Demographic | C169: Bio hazard bag 50 liters | G169: 50 | H169: 1 | I169: 50 | J169: =IF('Characteristics of Target Pop'!$G$8>0, 'Characteristics of Target Pop'!$G$8, 'Characteristics of Target Pop'!$C$8) -> 0 | K169: =IF('Characteristics of Target Pop'!$H$8>0, 'Characteristics of Target Pop'!$H$8, 'Characteristics of Target Pop'!$D$8) -> 0 | L169: =IF('Characteristics of Target Pop'!$I$8>0, 'Characteristics of Target Pop'!$I$8, 'Characteristics of Target Pop'!$E$8) -> 0 | N169: 50 | O169: 30000 | P169: 0 | Q169: 0 | R169: 0
A170: KIT 6B | B170: Logistics | P170: ='Logistics Data Summary'!B18 -> 0 | Q170: ='Logistics Data Summary'!C18 -> 0 | R170: ='Logistics Data Summary'!D18 -> 0 | S170: =P170*'Product cost'!$E$17 -> 0 | T170: =Q170*'Product cost'!$E$17 -> 0 | U170: =R170*'Product cost'!$E$17 -> 0
A171: Misoprostol (Bulk) 6B Complement | D171: Complement to Kit 6B
A172: Misoprostol (Bulk) 6B Complement | B172: Demographic | C172: Misoprostol, tablet, 0.2 mg (200 mcg) | D172: Medicines | G172: 1 | H172: 1 | I172: 1 | J172: =IF('Characteristics of Target Pop'!$G$16>0,'Characteristics of Target Pop'!$G$16,'Characteristics of Target Pop'!$C$16) -> 0 | K172: =IF('Characteristics of Target Pop'!$H$16>0,'Characteristics of Target Pop'!$H$16,'Characteristics of Target Pop'!$D$16) -> 0 | L172: =IF('Characteristics of Target Pop'!$I$16>0,'Characteristics of Target Pop'!$I$16,'Characteristics of Target Pop'!$E$16) -> 0 | N172: 240 | O172: 1 | P172: =ROUNDUP(((J172*I172)/N172),0) -> 0 | Q172: =ROUNDUP(((K172*I172)/N172),0) -> 0 | R172: =ROUNDUP(((L172*I172)/N172),0) -> 0 | S172: =P172*'Product cost'!$E$18 -> 0 | T172: =Q172*'Product cost'!$E$18 -> 0 | U172: =R172*'Product cost'!$E$18 -> 0
A173: Misoprostol (Bulk) 6B Complement | B173: Logistics | P173: ='Logistics Data Summary'!B19 -> 0 | Q173: ='Logistics Data Summary'!C19 -> 0 | R173: ='Logistics Data Summary'!D19 -> 0 | S173: =P173*'Product cost'!$E$18 -> 0 | T173: =Q173*'Product cost'!$E$18 -> 0 | U173: =R173*'Product cost'!$E$18 -> 0
A174: Oxytocin (Bulk) 6B Complement | D174: Complement to Kit 6B
A175: Oxytocin (Bulk) 6B Complement | B175: Demographic | C175: Oxytocin, injection, 10 IU/ml, 1-ml ampoule | D175: Medicines | G175: 1 | H175: 1 | I175: 1 | J175: =IF('Characteristics of Target Pop'!$G$16>0,'Characteristics of Target Pop'!$G$16,'Characteristics of Target Pop'!$C$16) -> 0 | K175: =IF('Characteristics of Target Pop'!$H$16>0,'Characteristics of Target Pop'!$H$16,'Characteristics of Target Pop'!$D$16) -> 0 | L175: =IF('Characteristics of Target Pop'!$I$16>0,'Characteristics of Target Pop'!$I$16,'Characteristics of Target Pop'!$E$16) -> 0 | N175: 300 | O175: 1 | P175: =ROUNDUP(((J175*I175)/N175),0) -> 0 | Q175: =ROUNDUP(((K175*I175)/N175),0) -> 0 | R175: =ROUNDUP(((L175*I175)/N175),0) -> 0 | S175: =P175*'Product cost'!$E$19 -> 0 | T175: =Q175*'Product cost'!$E$19 -> 0 | U175: =R175*'Product cost'!$E$19 -> 0
A176: Oxytocin (Bulk) 6B Complement | B176: Logistics | P176: ='Logistics Data Summary'!B20 -> 0 | Q176: ='Logistics Data Summary'!C20 -> 0 | R176: ='Logistics Data Summary'!D20 -> 0 | S176: =P176*'Product cost'!$E$19 -> 0 | T176: =Q176*'Product cost'!$E$19 -> 0 | U176: =R176*'Product cost'!$E$19 -> 0
A177: KIT 7 | D177: Intrauterine Device (IUD)
A178: Kit 7 | B178: Demographic | C178: Intrauterine device (IUD), Cu-T 380 A | D178: Medicines | G178: 1 | H178: 1 | I178: =(G178*H178)*1.5 -> 1.5 | J178: =IF('Characteristics of Target Pop'!$G$53>0,'Characteristics of Target Pop'!$G$53,'Characteristics of Target Pop'!$C$53) -> 0 | K178: =IF('Characteristics of Target Pop'!$H$53>0,'Characteristics of Target Pop'!$H$53,'Characteristics of Target Pop'!$D$53) -> 0 | L178: =IF('Characteristics of Target Pop'!$I$53>0,'Characteristics of Target Pop'!$I$53,'Characteristics of Target Pop'!$E$53) -> 0 | M178: 59.99999996 | N178: 90 | O178: 1 | P178: =ROUNDUP(((J178*I178)/N178),0) -> 0 | Q178: =ROUNDUP(((K178*I178)/N178),0) -> 0 | R178: =ROUNDUP(((L178*I178)/N178),0) -> 0 | S178: =MAX(P178:P195)*'Product cost'!$E$20 -> 0 | T178: =MAX(Q178:Q195)*'Product cost'!$E$20 -> 0 | U178: =MAX(R178:R195)*'Product cost'!$E$20 -> 0
A179: Kit 7 | B179: Demographic | C179: Azithromycin, capsule, 250 mg | I179: 4 | J179: =IF('Characteristics of Target Pop'!$G$53>0,'Characteristics of Target Pop'!$G$53,'Characteristics of Target Pop'!$C$53) -> 0 | K179: =IF('Characteristics of Target Pop'!$H$53>0,'Characteristics of Target Pop'!$H$53,'Characteristics of Target Pop'!$D$53) -> 0 | L179: =IF('Characteristics of Target Pop'!$I$53>0,'Characteristics of Target Pop'!$I$53,'Characteristics of Target Pop'!$E$53) -> 0 | N179: 240 | O179: 1 | P179: =ROUNDUP(((J179*I179)/N179),0) -> 0 | Q179: =ROUNDUP(((K179*I179)/N179),0) -> 0 | R179: =ROUNDUP(((L179*I179)/N179),0) -> 0
A180: Kit 7 | B180: Demographic | C180: Cefixime 200mg tablets | I180: 0.1 | J180: =IF('Characteristics of Target Pop'!$G$53>0,'Characteristics of Target Pop'!$G$53,'Characteristics of Target Pop'!$C$53) -> 0 | K180: =IF('Characteristics of Target Pop'!$H$53>0,'Characteristics of Target Pop'!$H$53,'Characteristics of Target Pop'!$D$53) -> 0 | L180: =IF('Characteristics of Target Pop'!$I$53>0,'Characteristics of Target Pop'!$I$53,'Characteristics of Target Pop'!$E$53) -> 0 | N180: 6 | O180: 1 | P180: =ROUNDUP(((J180*I180)/N180),0) -> 0 | Q180: =ROUNDUP(((K180*I180)/N180),0) -> 0 | R180: =ROUNDUP(((L180*I180)/N180),0) -> 0
A181: Kit 7 | B181: Demographic | C181: Polyvidone iodine, solution for cutaneous use, 10%, 1000-ml bottle | G181: 3 | H181: 1 | I181: =G181*H181 -> 3 | J181: =IF('Characteristics of Target Pop'!$G$8>0, 'Characteristics of Target Pop'!$G$8, 'Characteristics of Target Pop'!$C$8) -> 0 | K181: =IF('Characteristics of Target Pop'!$H$8>0, 'Characteristics of Target Pop'!$H$8, 'Characteristics of Target Pop'!$D$8) -> 0 | L181: =IF('Characteristics of Target Pop'!$I$8>0, 'Characteristics of Target Pop'!$I$8, 'Characteristics of Target Pop'!$E$8) -> 0 | M181: 3 | N181: 3 | O181: 30000 | P181: =ROUNDUP(((J181*$I$181)/$N$181/30000),0) -> 0 | Q181: =ROUNDUP(((K181*I181)/N181/30000),0) -> 0 | R181: =ROUNDUP(((L181*I181)/N181/30000),0) -> 0
A182: Kit 7 | B182: Demographic | C182: Bag (envelope), plastic, for drugs, approx. 10 x 15 cm, pack of 100 | D182: Medical devices, renewable | G182: 1 | H182: 1 | I182: 1 | J182: =IF('Characteristics of Target Pop'!$G$8>0, 'Characteristics of Target Pop'!$G$8, 'Characteristics of Target Pop'!$C$8) -> 0 | K182: =IF('Characteristics of Target Pop'!$H$8>0, 'Characteristics of Target Pop'!$H$8, 'Characteristics of Target Pop'!$D$8) -> 0 | L182: =IF('Characteristics of Target Pop'!$I$8>0, 'Characteristics of Target Pop'!$I$8, 'Characteristics of Target Pop'!$E$8) -> 0 | M182: 1 | N182: 1 | O182: 30000 | P182: =ROUNDUP(((J182*I182)/N182/30000),0) -> 0 | Q182: 0 | R182: 0
A183: Kit 7 | B183: Demographic | C183: Gloves, surgical, size 8, sterile, single use, pair | G183: 50 | H183: 1 | I183: 50 | J183: =IF('Characteristics of Target Pop'!$G$8>0, 'Characteristics of Target Pop'!$G$8, 'Characteristics of Target Pop'!$C$8) -> 0 | K183: =IF('Characteristics of Target Pop'!$H$8>0, 'Characteristics of Target Pop'!$H$8, 'Characteristics of Target Pop'!$D$8) -> 0 | L183: =IF('Characteristics of Target Pop'!$I$8>0, 'Characteristics of Target Pop'!$I$8, 'Characteristics of Target Pop'!$E$8) -> 0 | M183: 50 | N183: 50 | O183: 30000 | P183: =ROUNDUP(((J183*I183)/N183/30000),0) -> 0 | Q183: 0 | R183: 0
A184: Kit 7 | B184: Demographic | C184: Gloves, surgical, size 7, sterile, single use, pair | G184: 50 | H184: 1 | I184: 50 | J184: =IF('Characteristics of Target Pop'!$G$8>0, 'Characteristics of Target Pop'!$G$8, 'Characteristics of Target Pop'!$C$8) -> 0 | K184: =IF('Characteristics of Target Pop'!$H$8>0, 'Characteristics of Target Pop'!$H$8, 'Characteristics of Target Pop'!$D$8) -> 0 | L184: =IF('Characteristics of Target Pop'!$I$8>0, 'Characteristics of Target Pop'!$I$8, 'Characteristics of Target Pop'!$E$8) -> 0 | M184: 50 | N184: 50 | O184: 30000 | P184: =ROUNDUP(((J184*I184)/N184/30000),0) -> 0 | Q184: 0 | R184: 0
A185: Kit 7 | B185: Demographic | C185: Compress, gauze, 10 x 10 cm, sterile, single use, pack of 5 | I185: =200/60 -> 3.333333333 | J185: =IF('Characteristics of Target Pop'!$G$53>0,'Characteristics of Target Pop'!$G$53,'Characteristics of Target Pop'!$C$53) -> 0 | K185: =IF('Characteristics of Target Pop'!$H$53>0,'Characteristics of Target Pop'!$H$53,'Characteristics of Target Pop'!$D$53) -> 0 | L185: =IF('Characteristics of Target Pop'!$I$53>0,'Characteristics of Target Pop'!$I$53,'Characteristics of Target Pop'!$E$53) -> 0 | M185: 5 | N185: 200 | O185: 1 | P185: =ROUNDUP(((J185*I185)/N185),0) -> 0 | Q185: 0 | R185: 0
A186: Kit 7 | B186: Demographic | C186: Speculum, vaginal, Graves, 95 x 35 mm | D186: Medical devices, equipment | G186: 2 | H186: 1 | I186: 2 | J186: =IF('Characteristics of Target Pop'!$G$8>0, 'Characteristics of Target Pop'!$G$8, 'Characteristics of Target Pop'!$C$8) -> 0 | K186: =IF('Characteristics of Target Pop'!$H$8>0, 'Characteristics of Target Pop'!$H$8, 'Characteristics of Target Pop'!$D$8) -> 0 | L186: =IF('Characteristics of Target Pop'!$I$8>0, 'Characteristics of Target Pop'!$I$8, 'Characteristics of Target Pop'!$E$8) -> 0 | M186: 2 | N186: 2 | O186: 30000 | P186: =ROUNDUP(((J186*$I$186)/$N$186/30000),0) -> 0 | Q186: 0 | R186: 0
A187: Kit 7 | B187: Demographic | C187: Speculum, vaginal, Graves, 115 x 35 mm | G187: 1 | H187: 1 | I187: =G187*H187 -> 1 | J187: =IF('Characteristics of Target Pop'!$G$8>0, 'Characteristics of Target Pop'!$G$8, 'Characteristics of Target Pop'!$C$8) -> 0 | K187: =IF('Characteristics of Target Pop'!$H$8>0, 'Characteristics of Target Pop'!$H$8, 'Characteristics of Target Pop'!$D$8) -> 0 | L187: =IF('Characteristics of Target Pop'!$I$8>0, 'Characteristics of Target Pop'!$I$8, 'Characteristics of Target Pop'!$E$8) -> 0 | M187: 1 | N187: 1 | O187: 30000 | P187: =ROUNDUP(((J187*I187)/N187/30000),0) -> 0 | Q187: =ROUNDUP(((K187*I187)/N187/30000),0) -> 0 | R187: =ROUNDUP(((L187*I187)/N187/30000),0) -> 0
A188: Kit 7 | B188: Demographic | C188: Forceps, dressing, Cheron, 250 mm | G188: 1 | H188: 1 | I188: 1 | J188: =IF('Characteristics of Target Pop'!$G$8>0, 'Characteristics of Target Pop'!$G$8, 'Characteristics of Target Pop'!$C$8) -> 0 | K188: =IF('Characteristics of Target Pop'!$H$8>0, 'Characteristics of Target Pop'!$H$8, 'Characteristics of Target Pop'!$D$8) -> 0 | L188: =IF('Characteristics of Target Pop'!$I$8>0, 'Characteristics of Target Pop'!$I$8, 'Characteristics of Target Pop'!$E$8) -> 0 | M188: 1 | N188: 1 | O188: 30000 | P188: 0 | Q188: 0 | R188: 0
A189: Kit 7 | B189: Demographic | C189: Forceps, artery, Pean/Roch, 220 mm, straight | G189: 2 | H189: 1 | I189: 2 | J189: =IF('Characteristics of Target Pop'!$G$8>0, 'Characteristics of Target Pop'!$G$8, 'Characteristics of Target Pop'!$C$8) -> 0 | K189: =IF('Characteristics of Target Pop'!$H$8>0, 'Characteristics of Target Pop'!$H$8, 'Characteristics of Target Pop'!$D$8) -> 0 | L189: =IF('Characteristics of Target Pop'!$I$8>0, 'Characteristics of Target Pop'!$I$8, 'Characteristics of Target Pop'!$E$8) -> 0 | M189: 2 | N189: 2 | O189: 30000 | P189: 0 | Q189: 0 | R189: 0
A190: Kit 7 | B190: Demographic | C190: Sound, uterine, Martin, 320 mm | G190: 3 | H190: 1 | I190: 3 | J190: =IF('Characteristics of Target Pop'!$G$8>0, 'Characteristics of Target Pop'!$G$8, 'Characteristics of Target Pop'!$C$8) -> 0 | K190: =IF('Characteristics of Target Pop'!$H$8>0, 'Characteristics of Target Pop'!$H$8, 'Characteristics of Target Pop'!$D$8) -> 0 | L190: =IF('Characteristics of Target Pop'!$I$8>0, 'Characteristics of Target Pop'!$I$8, 'Characteristics of Target Pop'!$E$8) -> 0 | M190: 3 | N190: 3 | O190: 30000 | P190: 0 | Q190: 0 | R190: 0
A191: Kit 7 | B191: Demographic | C191: Forceps, uterine, Duplay, 280 mm, curved | G191: 1 | H191: 1 | I191: 1 | J191: =IF('Characteristics of Target Pop'!$G$8>0, 'Characteristics of Target Pop'!$G$8, 'Characteristics of Target Pop'!$C$8) -> 0 | K191: =IF('Characteristics of Target Pop'!$H$8>0, 'Characteristics of Target Pop'!$H$8, 'Characteristics of Target Pop'!$D$8) -> 0 | L191: =IF('Characteristics of Target Pop'!$I$8>0, 'Characteristics of Target Pop'!$I$8, 'Characteristics of Target Pop'!$E$8) -> 0 | M191: 1 | N191: 1 | O191: 30000 | P191: 0 | Q191: 0 | R191: 0
A192: Kit 7 | B192: Demographic | C192: Scissors, gynecological, 200 mm, curved, b/b | G192: 1 | H192: 1 | I192: 1 | J192: =IF('Characteristics of Target Pop'!$G$8>0, 'Characteristics of Target Pop'!$G$8, 'Characteristics of Target Pop'!$C$8) -> 0 | K192: =IF('Characteristics of Target Pop'!$H$8>0, 'Characteristics of Target Pop'!$H$8, 'Characteristics of Target Pop'!$D$8) -> 0 | L192: =IF('Characteristics of Target Pop'!$I$8>0, 'Characteristics of Target Pop'!$I$8, 'Characteristics of Target Pop'!$E$8) -> 0 | M192: 1 | N192: 1 | O192: 30000 | P192: 0 | Q192: 0 | R192: 0
A193: Kit 7 | B193: Demographic | C193: Bowl, stainless steel, approx. 180 ml | G193: 1 | H193: 1 | I193: 1 | J193: =IF('Characteristics of Target Pop'!$G$8>0, 'Characteristics of Target Pop'!$G$8, 'Characteristics of Target Pop'!$C$8) -> 0 | K193: =IF('Characteristics of Target Pop'!$H$8>0, 'Characteristics of Target Pop'!$H$8, 'Characteristics of Target Pop'!$D$8) -> 0 | L193: =IF('Characteristics of Target Pop'!$I$8>0, 'Characteristics of Target Pop'!$I$8, 'Characteristics of Target Pop'!$E$8) -> 0 | M193: 1 | N193: 1 | O193: 30000 | P193: 0 | Q193: 0 | R193: 0
A194: Kit 7 | B194: Demographic | C194: Basin, kidney, stainless steel, approx. 825 ml | G194: 2 | H194: 1 | I194: 2 | J194: =IF('Characteristics of Target Pop'!$G$8>0, 'Characteristics of Target Pop'!$G$8, 'Characteristics of Target Pop'!$C$8) -> 0 | K194: =IF('Characteristics of Target Pop'!$H$8>0, 'Characteristics of Target Pop'!$H$8, 'Characteristics of Target Pop'!$D$8) -> 0 | L194: =IF('Characteristics of Target Pop'!$I$8>0, 'Characteristics of Target Pop'!$I$8, 'Characteristics of Target Pop'!$E$8) -> 0 | M194: 2 | N194: 2 | O194: 30000 | P194: 0 | Q194: 0 | R194: 0
A195: Kit 7 | B195: Demographic | C195: Tray, instruments, stainless steel, approx. 320 x 200 x 80 mm, with cover | G195: 1 | H195: 1 | I195: 1 | J195: =IF('Characteristics of Target Pop'!$G$8>0, 'Characteristics of Target Pop'!$G$8, 'Characteristics of Target Pop'!$C$8) -> 0 | K195: =IF('Characteristics of Target Pop'!$H$8>0, 'Characteristics of Target Pop'!$H$8, 'Characteristics of Target Pop'!$D$8) -> 0 | L195: =IF('Characteristics of Target Pop'!$I$8>0, 'Characteristics of Target Pop'!$I$8, 'Characteristics of Target Pop'!$E$8) -> 0 | M195: 1 | N195: 1 | O195: 30000 | P195: 0 | Q195: 0 | R195: 0
A196: Kit 7 | B196: Logistics | P196: ='Logistics Data Summary'!B21 -> 0 | Q196: ='Logistics Data Summary'!C21 -> 0 | R196: ='Logistics Data Summary'!D21 -> 0 | S196: =P196*'Product cost'!$E$20 -> 0 | T196: =Q196*'Product cost'!$E$20 -> 0 | U196: =R196*'Product cost'!$E$20 -> 0
A197: KIT 8 | D197: Management of Miscarriage and complications of abortion
A198: Kit 8 | B198: Demographic | C198: Gentamicin (as sulfate), solution for injection, 40 mg/ml, 2-ml vial | D198: Medicines | G198: 1 | H198: 2 | I198: =N198/45 -> 2.222222222 | J198: =IF('Characteristics of Target Pop'!$G$19>0, 'Characteristics of Target Pop'!$G$19, 'Characteristics of Target Pop'!$C$19)*3 -> 0 | K198: =IF('Characteristics of Target Pop'!$H$19>0, 'Characteristics of Target Pop'!$H$19, 'Characteristics of Target Pop'!$D$19)*3 -> 0 | L198: =IF('Characteristics of Target Pop'!$I$19>0, 'Characteristics of Target Pop'!$I$19, 'Characteristics of Target Pop'!$E$19)*3 -> 0 | M198: 960 | N198: 100 | O198: 1 | P198: =ROUNDUP(((J198*$I$198)/$N$198),0) -> 0 | Q198: =ROUNDUP(((K198*I198)/N198),0) -> 0 | R198: =ROUNDUP(((L198*I198)/N198),0) -> 0 | S198: =MAX(P198:P236)*'Product cost'!$E$21 -> 0 | T198: =MAX(Q198:Q236)*'Product cost'!$E$21 -> 0 | U198: =MAX(R198:R236)*'Product cost'!$E$21 -> 0
A199: Kit 8 | B199: Demographic | C199: Ampicillin pdr/inj 500mg vial, | G199: 6 | H199: 7 | I199: =(G199*H199)*0.792 -> 33.264 | J199: =IF('Characteristics of Target Pop'!$G$19>0, 'Characteristics of Target Pop'!$G$19, 'Characteristics of Target Pop'!$C$19)*3 -> 0 | K199: =IF('Characteristics of Target Pop'!$H$19>0, 'Characteristics of Target Pop'!$H$19, 'Characteristics of Target Pop'!$D$19)*3 -> 0 | L199: =IF('Characteristics of Target Pop'!$I$19>0, 'Characteristics of Target Pop'!$I$19, 'Characteristics of Target Pop'!$E$19)*3 -> 0 | M199: 2520 | N199: 1500 | O199: 1 | P199: =ROUNDUP(((J199*I199)/N199),0) -> 0 | Q199: =ROUNDUP(((K199*I199)/N199),0) -> 0 | R199: =ROUNDUP(((L199*I199)/N199),0) -> 0
A200: Kit 8 | B200: Demographic | C200: Misoprostol, tablet, 0.2 mg (200 mcg) | G200: 3 | H200: 1 | I200: =G200*H200 -> 3 | J200: =IF('Characteristics of Target Pop'!$G$19>0, 'Characteristics of Target Pop'!$G$19, 'Characteristics of Target Pop'!$C$19)*3 -> 0 | K200: =IF('Characteristics of Target Pop'!$H$19>0, 'Characteristics of Target Pop'!$H$19, 'Characteristics of Target Pop'!$D$19)*3 -> 0 | L200: =IF('Characteristics of Target Pop'!$I$19>0, 'Characteristics of Target Pop'!$I$19, 'Characteristics of Target Pop'!$E$19)*3 -> 0 | M200: 180 | N200: 180 | O200: 1 | P200: =ROUNDUP(((J200*I200)/N200),0) -> 0 | Q200: =ROUNDUP(((K200*I200)/N200),0) -> 0 | R200: =ROUNDUP(((L200*I200)/N200),0) -> 0
... 196 more rows

Sheet Per-Item Estimates
C2: Per Item Estimates (Demographic Forecast Only)
C4: Forecast | D4: Demographic
C6: Unique Items (Kit Contents) | D6: Month 0 - 3 | E6: Month 3 - 6 | F6: Month 6 - 9
C7: 2cc silicone packaged in bags of 10 | D7: 0 | E7: 0 | F7: 0
C8: Accessory kit for MVA Plus, including (1) O-ring, (1) collarstop, (1) cap, (1) 2cc silicone | D8: 0 | E8: 0 | F8: 0
C9: Amoxicillin 125mg/5ml powder for oral suspension, bottle (pediatric) | D9: 0 | E9: 0 | F9: 0
C10: Ampicillin pdr/inj 500mg vial, | D10: 0 | E10: 0 | F10: 0
C11: Apron, protective, plastic, reusable | D11: 0 | E11: 0 | F11: 0
C12: Atazanavir (ATV) + ritonavir ®, tablets 300+100mg (adults: 1 tab/day for 28 days) | D12: 0 | E12: 0 | F12: 0
C13: Atropine sulfate, solution for injection, 1 mg/ml, 1-ml ampoule | D13: 0 | E13: 0 | F13: 0
C14: Azithromycin, capsule, 250 mg | D14: 0 | E14: 0 | F14: 0
C15: Azithromycin, oral suspension, 200 mg per 5 ml, bottle 15 ml | D15: 0 | E15: 0 | F15: 0
C16: Bag (envelope), plastic, for drugs, approx. 10 x 15 cm, pack of 100 | D16: 0 | E16: 0 | F16: 0
C17: Bag, plastic, approximately 18 x 28 cm, snap-lock fastening, for disposal of placenta | D17: 0 | E17: 0 | F17: 0
C18: Bag, shoulder, UNFPA logo, vinyl, approx. 360 x 230 x 610 mm | D18: 0 | E18: 0 | F18: 0
C19: Bag, urine, collecting, 2000 ml | D19: 0 | E19: 0 | F19: 0
C20: Basin, kidney, stainless steel, approx. 825 ml | D20: 0 | E20: 0 | F20: 0
C21: Basket, instruments, for sterilization, wired, 400 x 200 x 90 mm | D21: 0 | E21: 0 | F21: 0
C22: Basket, sterilizing, approx. 120 x 250 x 60 mm | D22: 0 | E22: 0 | F22: 0
C23: Battery, dry cell, AA, alkaline, 1.5 V, for Photometer | D23: 0 | E23: 0 | F23: 0
C24: Battery, dry cell, alkaline, AAA, 1.5V, for frontal flashlight | D24: 0 | E24: 0 | F24: 0
C25: Benzathine benzyl penicillin, powder for solution for injection, vial (equivalent to 1.2 million units of benzyl penicillin) | D25: 0 | E25: 0 | F25: 0
C26: Benzathine benzyl penicillin, powder for solution for injection, vial (equivalent to 2.4 million units of benzyl penicillin) | D26: 0 | E26: 0 | F26: 0
C27: Bio hazard bag 50 liters | D27: 0 | E27: 0 | F27: 0
C28: Blood bag + CPD (citrate-phosphate-dextrose), 250 ml | D28: 0 | E28: 0 | F28: 0
C29: Blood bag + CPD (citrate-phosphate-dextrose), 350ml | D29: 0 | E29: 0 | F29: 0
C30: Blood bag + CPD (citrate-phosphate-dextrose), 450ml | D30: 0 | E30: 0 | F30: 0
C31: Blood grouping tile with 12 depressions for blood testing | D31: 0 | E31: 0 | F31: 0
C32: Blood-giving set | D32: 0 | E32: 0 | F32: 0
C33: Blood-group test, anti-A + B, 10 ml, fl. dropper * | D33: 0 | E33: 0 | F33: 0
C34: Blood-group test, anti-A, 10 ml, fl. dropper * | D34: 0 | E34: 0 | F34: 0
C35: Blood-group test, anti-B, 10 ml, fl. dropper * | D35: 0 | E35: 0 | F35: 0
C36: Bowl, stainless steel, 500 ml | D36: 0 | E36: 0 | F36: 0
C37: Bowl, stainless steel, approx. 180 ml | D37: 0 | E37: 0 | F37: 0
C38: Brush, hand, scrubbing, plastic | D38: 0 | E38: 0 | F38: 0
C39: Bupivacaine hydrochloride (as anhydrous) 0.5% | D39: 0 | E39: 0 | F39: 0
C40: Butterfly 25G vein scalp (neonate/ cloxacillin) | D40: 0 | E40: 0 | F40: 0
C41: Calcium gluconate (monohydrate), solution for injection, 100 mg/ml, 10-ml ampoule | D41: 0 | E41: 0 | F41: 0
C42: Cannula, Easygrip, 10 mm, integrated base | D42: 0 | E42: 0 | F42: 0
C43: Cannula, Easygrip, 12 mm, integrated base | D43: 0 | E43: 0 | F43: 0
C44: Cannula, Easygrip, 6 mm, integrated base | D44: 0 | E44: 0 | F44: 0
C45: Cannula, Easygrip, 7 mm, integrated base | D45: 0 | E45: 0 | F45: 0
C46: Cannula, Easygrip, 8 mm, integrated base | D46: 0 | E46: 0 | F46: 0
C47: Cannula, Easygrip, 9 mm, integrated base | D47: 0 | E47: 0 | F47: 0
C48: Cannula, intravenous, short, 18G, sterile, single use | D48: 0 | E48: 0 | F48: 0
C49: Cannula, intravenous, short, 20G, sterile, single use | D49: 0 | E49: 0 | F49: 0
C50: Capillary tubes for Hb 301 | D50: 0 | E50: 0 | F50: 0
C51: Catheter, Foley, CH14, sterile, single use | D51: 0 | E51: 0 | F51: 0
C52: Catheter, urethral, CH12, sterile, single use | D52: 0 | E52: 0 | F52: 0
C53: Cefixime (as trihydrate), dry syrup for oral suspension, 100 mg/5 ml, bottle 30 ml | D53: 0 | E53: 0 | F53: 0
C54: Cefixime 200mg tablets | D54: 0 | E54: 0 | F54: 0
C55: Chlorhexidine Di-gluconate 7.1%, gel, tube, 10g | D55: 0 | E55: 0 | F55: 0
C56: Chlorhexidine gluconate, concentrated solution, 5%, bottle, 1000 ml | D56: 0 | E56: 0 | F56: 0
C57: Chlorhexidine gluconate, detergent solution, 4% (Hibiscrub), bottle, 500 ml | D57: 0 | E57: 0 | F57: 0
C58: Clamp, towel, Backhaus, 120 mm | D58: 0 | E58: 0 | F58: 0
C59: Clamp, umbilical, cord, sterile, single use | D59: 0 | E59: 0 | F59: 0
C60: Clindamycin Injection: 150 mg (as phosphate)/ ml (vial 4ml) (adult) | D60: 0 | E60: 0 | F60: 0
C61: Clindamycin, injection: 600mg (as phosphate) (adult) | D61: 0 | E61: 0 | F61: 0
C62: Clotrimazole, vaginal tablet, 500 mg (single dose) | D62: 0 | E62: 0 | F62: 0
C63: Cloxacillin powder for solution (IV/IM), 250mg vial (pediatric) | D63: 0 | E63: 0 | F63: 0
C64: Compound Sodium Lactate, solution for infusion, 1000ml bag, with giving set | D64: 0 | E64: 0 | F64: 0
C65: Compress, gauze, 10 x 10 cm, sterile, single use, pack of 5 | D65: 0 | E65: 0 | F65: 0
C66: Cotton cloth/towel, ‘tetra’, approx. 90 g/m2, approx. 100 x 100 cm | D66: 0 | E66: 0 | F66: 0
C67: Cotton wool, 500-g roll, non-sterile | D67: 0 | E67: 0 | F67: 0
C68: Cranioclast, Braun, 420 mm | D68: 0 | E68: 0 | F68: 0
C69: Cuff for pression, for bag 500/1000 ml | D69: 0 | E69: 0 | F69: 0
C70: Depot-Medroxyprogesterone Acetate (DMPA-SC) (Sayana© Press) | D70: 0 | E70: 0 | F70: 0
C71: Dilators, Denniston, polymer, set of 5 | D71: 0 | E71: 0 | F71: 0
C72: Drape, surgical, woven, 100 cm x 150 cm | D72: 0 | E72: 0 | F72: 0
C73: Drawsheet, plastic, approx. 90 x 180 cm | D73: 0 | E73: 0 | F73: 0
C74: Drawsheet, plastic, approximately 100 x 100 cm | D74: 0 | E74: 0 | F74: 0
C75: Drum, sterilizing, approx. 165 mm diameter | D75: 0 | E75: 0 | F75: 0
C76: Drum, sterilizing, approx. 260 mm diameter | D76: 0 | E76: 0 | F76: 0
C77: Drum, sterilizing, approx. 290 mm diameter | D77: 0 | E77: 0 | F77: 0
C78: Ephedrine 30 mg (hydrochloride)/ml in 1ml ampoule | D78: 0 | E78: 0 | F78: 0
C79: Epinephrine (Adrenaline) 1mg/ml, 1ml ampoule (for C-section under local anaesthesia) | D79: 0 | E79: 0 | F79: 0
C80: Ethinylestradiol 0.03 mg, plus levonorgestrel, 0.15 mg, combined tablet, 1 strip for 1 cycle (113 women x 3 cycles + 10% wastage) | D80: 0 | E80: 0 | F80: 0
C81: Extractor, mucus, 20 ml, sterile, single use | D81: 0 | E81: 0 | F81: 0
C82: Female condoms | D82: 0 | E82: 0 | F82: 0
C83: Ferrous sulfate + folic acid, tablet, 200 mg + 0.4 mg, box of 1000 | D83: 0 | E83: 0 | F83: 0
C84: Flashlight, frontal, LED, battery-operated | D84: 0 | E84: 0 | F84: 0
C85: Flashlight, LED, re-chargeable | D85: 0 | E85: 0 | F85: 0
C86: Forceps, artery, Halsted-Mosquito, 125 mm, curved | D86: 0 | E86: 0 | F86: 0
C87: Forceps, artery, Kelly, 140 mm, curved | D87: 0 | E87: 0 | F87: 0
C88: Forceps, artery, Kocher, 140 mm, 1 x 2 teeth, straight | D88: 0 | E88: 0 | F88: 0
C89: Forceps, artery, Kocher, 140 mm, straight | D89: 0 | E89: 0 | F89: 0
C90: Forceps, artery, Mixter, 230 mm, delicate | D90: 0 | E90: 0 | F90: 0
C91: Forceps, artery, Pean/Roch, 220 mm, straight | D91: 0 | E91: 0 | F91: 0
C92: Forceps, artery, Pean/Rochester, 200mm, curved | D92: 0 | E92: 0 | F92: 0
C93: Forceps, artery, Pean/Rochester, 240mm, curved | D93: 0 | E93: 0 | F93: 0
C94: Forceps, dressing and polypus, Cheron, 250mm | D94: 0 | E94: 0 | F94: 0
C95: Forceps, dressing, Cheron, 250 mm | D95: 0 | E95: 0 | F95: 0
C96: Forceps, dressing, standard, 145 mm, straight | D96: 0 | E96: 0 | F96: 0
C97: Forceps, dressing, standard, 250 mm, straight | D97: 0 | E97: 0 | F97: 0
C98: Forceps, intestinal, clamp, Doyen, 230 mm, curved | D98: 0 | E98: 0 | F98: 0
C99: Forceps, tissue and organ holding, Babcock, 200mm | D99: 0 | E99: 0 | F99: 0
C100: Forceps, tissue holding, Duval, 230mm | D100: 0 | E100: 0 | F100: 0
C101: Forceps, tissue seizing, Allis, 150mm | D101: 0 | E101: 0 | F101: 0
C102: Forceps, tissue, standard, 145 mm, straight | D102: 0 | E102: 0 | F102: 0
C103: Forceps, tissue, standard, 250 mm, straight | D103: 0 | E103: 0 | F103: 0
C104: Forceps, uterine evacuation, ovum, Bierer, small | D104: 0 | E104: 0 | F104: 0
C105: Forceps, uterine evacuation, oyum, Bierer, large | D105: 0 | E105: 0 | F105: 0
C106: Forceps, uterine, Duplay, 280 mm, curved | D106: 0 | E106: 0 | F106: 0
C107: Forceps, uterine, haemostatic, Phaneuf, 215mm, curved | D107: 0 | E107: 0 | F107: 0
C108: Forceps, uterine, Museux, 240 mm, curved | D108: 0 | E108: 0 | F108: 0
C109: Forceps, uterine, vulsellum, Duplay, 280mm, curved | D109: 0 | E109: 0 | F109: 0
C110: Gentamicin (as sulfate), solution for injection, 40 mg/ml, 2-ml vial | D110: 0 | E110: 0 | F110: 0
C111: Glasses, safety, regular size | D111: 0 | E111: 0 | F111: 0
C112: Glasses, safety, regular size, disposable | D112: 0 | E112: 0 | F112: 0
C113: Gloves, examination, medium, single use, box of 100 | D113: 0 | E113: 0 | F113: 0
C114: Gloves, gynecological, medium, sterile, single use, pair | D114: 0 | E114: 0 | F114: 0
C115: Gloves, surgical, size 7, sterile, single use, pair | D115: 0 | E115: 0 | F115: 0
C116: Gloves, surgical, size 8, sterile, single use, pair | D116: 0 | E116: 0 | F116: 0
C117: Glucose 10%/10ml | D117: 0 | E117: 0 | F117: 0
C118: Glucose, solution for infusion, 5% (iso-osmotic), 1-litre bottle + infusion-giving set, sterile, single use | D118: 0 | E118: 0 | F118: 0
C119: Hepatitis B surface antigen (HBsAg) rapid test, 100 tests | D119: 0 | E119: 0 | F119: 0
C120: Hepatitis C virus (HCV) rapid test, 100 tests * | D120: 0 | E120: 0 | F120: 0
C121: HIV test 1 + 2 rapid, 100 tests, kit | D121: 0 | E121: 0 | F121: 0
C122: Hook, decapitation, Braun, 310 mm | D122: 0 | E122: 0 | F122: 0
C123: Hourglass | D123: 0 | E123: 0 | F123: 0
C124: Hydralazine hydrochloride, powder for injection, 20 mg in ampoule | D124: 0 | E124: 0 | F124: 0
C125: Ibuprofen, tablets, 400 mg, 2 tablets per woman (1 prior to discharge, 1 to take home) | D125: 0 | E125: 0 | F125: 0
C126: Indicator, TST (Time, Steam, Temperature) control spot | D126: 0 | E126: 0 | F126: 0
C127: Intra uterine ballon tamponade | D127: 0 | E127: 0 | F127: 0
C128: Intrauterine device (IUD), Cu-T 380 A | D128: 0 | E128: 0 | F128: 0
C129: Kerosene storm-lamp + extra socks | D129: 0 | E129: 0 | F129: 0
C130: Ketamine (as hydrochloride), injection (solution for injection), 50 mg/ml, 10-ml vial | D130: 0 | E130: 0 | F130: 0
C131: Levonorgestrel, tablet, 0.03 mg, 1 strip for 1 cycle (20 women x 3 cycles) | D131: 0 | E131: 0 | F131: 0
C132: Levonorgestrel, tablet, 1.5 mg, (treatment: single dose) | D132: 0 | E132: 0 | F132: 0
C133: Lidocaine hydrochloride, injection, 10 mg/ml (1%), 20-ml ampoule | D133: 0 | E133: 0 | F133: 0
C134: Lopinavir (LPV) + ritonavir ®, tablets 100+25 mg (children) | D134: 0 | E134: 0 | F134: 0
C135: Lopinavir (LPV) + ritonavir ®, tablets 200+50 mg (children) | D135: 0 | E135: 0 | F135: 0
C136: Magnesium sulfate, injection, 500 mg/ml in 10-ml ampoule | D136: 0 | E136: 0 | F136: 0
C137: Magnesium sulfate, solution for injection, 500 mg/ml, 10-ml ampoule | D137: 0 | E137: 0 | F137: 0
C138: Male condoms | D138: 0 | E138: 0 | F138: 0
C139: Medroxyprogesterone acetate, depot injection, 150 mg/ml, 1-ml vial | D139: 0 | E139: 0 | F139: 0
C140: Metronidazole, tablet, 250 mg (single dose of 8 tablets, or 2 tablets twice a day for 7 days) | D140: 0 | E140: 0 | F140: 0
C141: Mifepristone 200mg tablet | D141: 0 | E141: 0 | F141: 0
C142: Misoprostol, tablet, 0.2 mg (200 mcg) | D142: 0 | E142: 0 | F142: 0
C143: MVA plus with 2cc silicone | D143: 0 | E143: 0 | F143: 0
C144: Needle holder, Mayo-Hegar, 180 mm, straight | D144: 0 | E144: 0 | F144: 0
C145: Needle, luer 25G, sterile single use | D145: 0 | E145: 0 | F145: 0
C146: Needle, luer, 21G (0.8 x 40 mm), sterile, single use | D146: 0 | E146: 0 | F146: 0
C147: Needle, luer, 23G (0.6 x 25 mm), sterile, single use | D147: 0 | E147: 0 | F147: 0
C148: Needle, luer, 25G (0.6 x 25 mm), sterile, single use | D148: 0 | E148: 0 | F148: 0
C149: Needle, spinal, 22G (0.7 x 90 mm), sterile, single use | D149: 0 | E149: 0 | F149: 0
C150: Non-Pneumatic Anti-Shock Garment | D150: 0 | E150: 0 | F150: 0
C151: Oxytocin, injection, 10 IU/ml, 1-ml ampoule | D151: 0 | E151: 0 | F151: 0
C152: Paracetamol 500 mg tabs | D152: 0 | E152: 0 | F152: 0
C153: Perforator, Smellie, 250 mm | D153: 0 | E153: 0 | F153: 0
C154: Photometer, HemoCue Hb 301 | D154: 0 | E154: 0 | F154: 0
C155: Pictorial instruction sheet | D155: 0 | E155: 0 | F155: 0
C156: Polyvidone iodine, solution for cutaneous use, 10%, 1000-ml bottle | D156: 0 | E156: 0 | F156: 0
C157: Poncho, wet-weather | D157: 0 | E157: 0 | F157: 0
C158: Pregnancy test, temperature stable | D158: 0 | E158: 0 | F158: 0
C159: Pump, suction, foot-operated | D159: 0 | E159: 0 | F159: 0
C160: Rapid plasma regain (RPR) test (for syphilis), 100 tests * | D160: 0 | E160: 0 | F160: 0
C161: Resuscitator, hand-operated, adult, set | D161: 0 | E161: 0 | F161: 0
C162: Resuscitator, hand-operated, infant/child, set | D162: 0 | E162: 0 | F162: 0
C163: Retractor, abdominal, Balfour, 3 blades | D163: 0 | E163: 0 | F163: 0
C164: Retractor, abdominal, Collin, 3 blades | D164: 0 | E164: 0 | F164: 0
C165: Retractor, Farabeuf, double-ended, 150 mm, pair | D165: 0 | E165: 0 | F165: 0
C166: Retractor, vaginal, Auvard, 38 x 80 mm | D166: 0 | E166: 0 | F166: 0
C167: Retractor, vaginal, Doyen, 45 x 85 mm | D167: 0 | E167: 0 | F167: 0
C168: Rhesus test, anti-D, 10 ml, dropper * | D168: 0 | E168: 0 | F168: 0
C169: Safety box, for used syringes and needles, 5 litres | D169: 0 | E169: 0 | F169: 0
C170: Scale, infant, springtype,5kg x 25g | D170: 0 | E170: 0 | F170: 0
C171: Scalpel blade, no. 22, sterile, single use. | D171: 0 | E171: 0 | F171: 0
C172: Scalpel handle, No. 4, long | D172: 0 | E172: 0 | F172: 0
C173: Scalpel handle, No. 4, standard | D173: 0 | E173: 0 | F173: 0
C174: Scissors, Deaver, 140 mm, curved, s/b | D174: 0 | E174: 0 | F174: 0
C175: Scissors, gynecological, 200 mm, curved, b/b | D175: 0 | E175: 0 | F175: 0
C176: Scissors, Mayo, 140 mm, curved, b/b (for cutting cord) | D176: 0 | E176: 0 | F176: 0
C177: Scissors, Mayo, 170 mm, curved | D177: 0 | E177: 0 | F177: 0
C178: Scissors, Mayo, 170 mm, curved, b/b | D178: 0 | E178: 0 | F178: 0
C179: Scissors, Mayo, 230 mm, curved | D179: 0 | E179: 0 | F179: 0
C180: Scissors, Metzembaum/ Nelson, 180 mm, curved, b/b | D180: 0 | E180: 0 | F180: 0
C181: Scissors, Metzembaum/Nelson, 230 mm, curved, b/b | D181: 0 | E181: 0 | F181: 0
C182: Scissors, umbilical cord, round blades, b/b, sterile, disposable | D182: 0 | E182: 0 | F182: 0
C183: Sling for use with infant scale* | D183: 0 | E183: 0 | F183: 0
C184: Sodium chloride, injectable 0,9% 10ml | D184: 0 | E184: 0 | F184: 0
C185: Sodium dichloroisocyanurate tablets, containing 1.67 g of NaDCC, 2 x box of 200 | D185: 0 | E185: 0 | F185: 0
C186: Sodium dichloroisocyanurate tablets, containing 1.67g NaDCC, box of 200 | D186: 0 | E186: 0 | F186: 0
C187: Sound, uterine, Martin, 320 mm | D187: 0 | E187: 0 | F187: 0
C188: Spatula, Ribbon retractor, malleable, 27 mm x 250 mm | D188: 0 | E188: 0 | F188: 0
C189: Speculum, vaginal, Graves, 115 x 35 mm | D189: 0 | E189: 0 | F189: 0
C190: Speculum, vaginal, Graves, 75 x 20 mm | D190: 0 | E190: 0 | F190: 0
C191: Speculum, vaginal, Graves, 95 x 35 mm | D191: 0 | E191: 0 | F191: 0
C192: Sphygmomanometer, adult, aneroid | D192: 0 | E192: 0 | F192: 0
C193: Sterilizer, steam, approx. 39 litres, w/access | D193: 0 | E193: 0 | F193: 0
C194: Stethoscope, binaural, complete | D194: 0 | E194: 0 | F194: 0
C195: Stethoscope, fetal, monaural | D195: 0 | E195: 0 | F195: 0
C196: Stove, kerosene, single burner, pressure | D196: 0 | E196: 0 | F196: 0
C197: Suture, synthetic, absorbable, DEC3(2/0), needle 3/8 30 mm, round, sterile, single use, box of 12 | D197: 0 | E197: 0 | F197: 0
C198: Suture, synthetic, absorbable, DEC3(2/0), needle, ½, 30 mm, round, sterile, single use, box of 12 | D198: 0 | E198: 0 | F198: 0
C199: Suture, synthetic, absorbable, DEC3(2/0), needle, 3/8, 50 mm, round, sterile, single use, box of 12 | D199: 0 | E199: 0 | F199: 0
C200: Suture, synthetic, absorbable, DEC4(1), needle, 3/8, 36 mm, triangular, sterile, single use, box of 12 | D200: 0 | E200: 0 | F200: 0
C201: Suture, synthetic, non-absorbable, DEC3(2/0), needle, 3/8, 30 mm, triangular, sterile, single use, box of 12 | D201: 0 | E201: 0 | F201: 0
C202: Syringe, feeding, catheter tip, 50/60 ml, sterile, single use | D202: 0 | E202: 0 | F202: 0
C203: Syringe, luer, 1 ml, sterile, single use | D203: 0 | E203: 0 | F203: 0
... 26 more rows

Sheet Product cost
C3: Item ID | D3: Kit name | E3: Cost | F3: Currency | G3: Last updated
C4: RH KIT 0 | D4: ERH Kit 0 - Administration and Training Kit | E4: 127.11 | F4: USD | G4: 2018-09-01
C5: RH KIT 1A | D5: ERH Kit 1A - Male Condom Kit | E5: 475.91 | F5: USD | G5: 2018-09-01
C6: RH KIT 1B | D6: ERH Kit 1B - Female Condom Kit (Complementary) | E6: 320.47 | F6: USD | G6: 2018-09-01
C7: RH KIT 2A | D7: ERH Kit 2A - Clean Delivery Kit - for Individual | E7: 591.45 | F7: USD | G7: 2018-09-01
D8: Kit 2A Complement: Chlorhexidine for Cord Care
D9: Kit 2A Complement: Misoprostol (Bulk)
C10: RH KIT 2B | D10: ERH Kit 2B Clean Delivery Kit - For use by birth attendants. | E10: 104.41 | F10: USD | G10: 2018-09-01
C11: RH KIT 3 | D11: ERH Kit 3 - Rape Treatment Kit | E11: 1167.14 | F11: USD | G11: 2018-09-01
C12: RH KIT 4 | D12: ERH Kit 4 - Oral and Injectable Contraception Kit | E12: 455.65 | F12: USD | G12: 2018-09-01
D13: Kit 4 Complement: DMPA-SC
C14: RH KIT 5 | D14: ERH Kit 5 - STD Drug Kit | E14: 714.78 | F14: USD | G14: 2018-09-01
C15: RHKIT6A | D15: ERH Kit 6A - Clinical Delivery Assistance Kit - Reusable Equ | E15: 895.37 | F15: USD | G15: 2018-09-01
D16: Kit 6A Complement: Non-Pneumatic Anti-Shock Garment
C17: RHKIT6B | D17: ERH Kit 6B - Clinical Delivery Assistance Kit - Drugs & Disp | E17: 622.88 | F17: USD | G17: 2018-09-01
D18: Kit 6B Complement: Misoprostol (Bulk)
D19: Kit 6B Complement: Oxytocin (Bulk)
C20: RH KIT 7 | D20: ERH Kit 7 - Intra Uterine Devices IUD Kit | E20: 241.23 | F20: USD | G20: 2018-09-01
C21: RH KIT 8 | D21: ERH Kit 8 - Management of Complication of Miscarriage Kit | E21: 648.22 | F21: USD | G21: 2018-09-01
D22: Kit 8 Complement: Misoprostol (Bulk)
D23: Kit 8 Complement: Mifepristone (Bulk)
C24: RH KIT 9 | D24: ERH Kit 9 - Suture of Cervical & Vaginal Tears Kit | E24: 297.76 | F24: USD | G24: 2018-09-01
C25: RH KIT 10 | D25: ERH Kit 10 - Vacuum Extraction Kit | E25: 977.82 | F25: USD | G25: 2018-09-01
C26: RH KIT 11A | D26: ERH Kit 11A - Referral Level Kit A - Reusable Equipment | E26: 848.19 | F26: USD | G26: 2018-09-01
C27: RH KIT 11B | D27: ERH Kit 11B Referral Level Kit B - Drugs & Disposable Equip. | E27: 4343.38 | F27: USD | G27: 2018-09-01
C28: RHKIT12 | D28: ERH Kit 12 - Blood Transfusion Kit | E28: 1475.9 | F28: USD | G28: 2018-09-01
C29: RHKITPEPSTAFF | D29: Emergency PEP Kit for HIV Treatment (FOR UNFPA STAFF ONLY) | E29: 35.96 | F29: USD | G29: 2018-09-01

Sheet Acknowledgement
C6: The development of this tool was lead by:
D8: Henia DAKKAK (dakkak@unfpa.org), Humanitarian SRHR Advisor, UNFPA
D9: Bouchta MOURABIT (mourabit@unfpa.org), Humanitarian Coordinator, UNFPA
D10: Raya ALCHUKR (alchukr@unfpa.org), SRH in Emergencies Specialist, UNFPA
D11: Nadia OLSON (nadia_olson@jsi.com), Senior Technical Advisor, JSI
C13: with additional valuable technical contributions from (in alphabetical order):
D15: Bangladesh Country Office
D16: Jordan Country Office
D17: Kenya Country Office
D18: Sierra Leone Country Office
C20: and technical elaboration and layout by:
D22: Barbara KNITTEL (barbara_knittel@jsi.com), Research, Monitoring and Evaluation Advisor, JSI
D23: Joseph MCCORD (joe_mccord@jsi.com), Supply Chain Technical Advisor, JSI
C25: To provide feedback or if you have questions on the tool, please contact:
D27: Raya ALCHUKR (alchukr@unfpa.org), SRH in Emergencies Specialist, UNFPA

Sheet Advocacy estimates (hidden)
D1: YEAR ONE | E1: YEAR TWO | F1: YEAR THREE | G1: Year One | J1: Year Two | M1: Year Three
A2: ERH Kits | B2: Name of ERH Kits | C2: Assumptions | D2: Total number of kits distributed (global) | E2: Total number of kits distributed (global) | F2: Total number of kits distributed (global) | G2: Total Target Pop | H2: Direct Target | I2: Direct Beneficiaries | J2: Total Target Pop | K2: Direct Target | L2: Direct Beneficiaries | M2: Total Target Pop | N2: Direct Target | O2: Direct Beneficiaries
A3: RH KIT 1A | B3: Male Condoms | C3: 20% of pop are adult males, 20% of this group will use condoms, each user will need 12 condoms/month for 3 months | D3: ='Results Dashboard'!S11 -> 0 | E3: ='Results Dashboard'!U11 -> 0 | F3: ='Results Dashboard'!W11 -> 0 | G3: =D3*10000 -> 0 | H3: =D3*2000 -> 0 | I3: =D3*400 -> 0 | J3: =E3*10000 -> 0 | K3: =E3*2000 -> 0 | L3: =E3*400 -> 0 | M3: =F3*10000 -> 0 | N3: =F3*2000 -> 0 | O3: =F3*400 -> 0
A4: RH KIT 1B | B4: Female Condoms | C4: 25% of affected pop are potentially sexually active women, 1% of this group will use female condoms (each user 6 condoms/month for 3 months) | D4: ='Results Dashboard'!S13 -> 0 | E4: ='Results Dashboard'!U13 -> 0 | F4: ='Results Dashboard'!W13 -> 0 | G4: =D4*10000 -> 0 | H4: =D4*2500 -> 0 | I4: =D4*25 -> 0 | J4: =E4*10000 -> 0 | K4: =E4*2500 -> 0 | L4: =E4*25 -> 0 | M4: =F4*10000 -> 0 | N4: =F4*2500 -> 0 | O4: =F4*25 -> 0
A5: RH KIT 2A | B5: Clean Delivery - Individual | C5: with 4% crude birth rate 100 deliveries in 3 months (and additional 100 are 6-9 months pregnant) | D5: ='Results Dashboard'!S15 -> 0 | E5: ='Results Dashboard'!U15 -> 0 | F5: ='Results Dashboard'!W15 -> 0 | G5: 0 | H5: =D5*200 -> 0 | I5: =D5*200 -> 0 | J5: 0 | K5: =E5*200 -> 0 | L5: =E5*200 -> 0 | M5: 0 | N5: =F5*200 -> 0 | O5: =F5*200 -> 0
A6: RH KIT 2B | B6: Clean Delivery - For Use By Birth Attendants | C6: 5 birth attendants to get one Kit | D6: ='Results Dashboard'!S21 -> 0 | E6: ='Results Dashboard'!U21 -> 0 | F6: ='Results Dashboard'!W21 -> 0 | G6: 0 | H6: =D6*5 -> 0 | I6: =D6*5 -> 0 | J6: 0 | K6: =E6*5 -> 0 | L6: =E6*5 -> 0 | M6: 0 | N6: =F6*5 -> 0 | O6: =F6*5 -> 0
A7: RH KIT 3 | B7: Rape Treatment | C7: 50 adult and 10 children survivors of rape (25% WRA + 55% Children as direct target pop) | D7: ='Results Dashboard'!S23 -> 0 | E7: ='Results Dashboard'!U23 -> 0 | F7: ='Results Dashboard'!W23 -> 0 | G7: 0 | H7: =D7*8000 -> 0 | I7: =D7*60 -> 0 | J7: 0 | K7: =E7*8000 -> 0 | L7: =E7*60 -> 0 | M7: 0 | N7: =F7*8000 -> 0 | O7: =F7*60 -> 0
A8: RH KIT 4 | B8: Oral & Injectable Contraception | C8: 15% of WRA will use contraceptive | D8: ='Results Dashboard'!S25 -> 0 | E8: ='Results Dashboard'!U25 -> 0 | F8: ='Results Dashboard'!W25 -> 0 | G8: 0 | H8: =D8*2500 -> 0 | I8: =D8*375 -> 0 | J8: 0 | K8: =E8*2500 -> 0 | L8: =E8*375 -> 0 | M8: 0 | N8: =F8*2500 -> 0 | O8: =F8*375 -> 0
A9: RH KIT 5 | B9: Treatment of Sexually Transmitted Infections | C9: 50% of affected pop are adults, 5% of them may have STIs | D9: ='Results Dashboard'!S29 -> 0 | E9: ='Results Dashboard'!U29 -> 0 | F9: ='Results Dashboard'!W29 -> 0 | G9: 0 | H9: =D9*500 -> 0 | I9: =D9*275 -> 0 | J9: 0 | K9: =E9*500 -> 0 | L9: =E9*275 -> 0 | M9: 0 | N9: =F9*500 -> 0 | O9: =F9*275 -> 0
A10: RHKIT 6A | B10: Clinical Delivery Assistance - Reusable Equipment | C10: EQUIPMENT - 4% crude birth rate, 15% of deliveries will take place in health facilities | D10: ='Results Dashboard'!S31 -> 0 | E10: ='Results Dashboard'!U31 -> 0 | F10: ='Results Dashboard'!W31 -> 0 | G10: =D10*30000 -> 0 | H10: =D10*300 -> 0 | I10: =D10*45 -> 0 | J10: =E10*30000 -> 0 | K10: =E10*300 -> 0 | L10: =E10*45 -> 0 | M10: =F10*30000 -> 0 | N10: =F10*300 -> 0 | O10: =F10*45 -> 0
A11: RHKIT 6B | B11: Clinical Delivery Assistance - Drug & Disposable Equipment | C11: 4% is crude birth rate, 15 % of deliveries will take place in health facilities | D11: ='Results Dashboard'!S35 -> 0 | E11: ='Results Dashboard'!U35 -> 0 | F11: ='Results Dashboard'!W35 -> 0 | G11: 0 | H11: =D11*300 -> 0 | I11: =D11*45 -> 0 | J11: 0 | K11: =E11*300 -> 0 | L11: =E11*45 -> 0 | M11: 0 | N11: =F11*300 -> 0 | O11: =F11*45 -> 0
A12: RH KIT 7 | B12: Intra Uterine Devices (IUD) | C12: 25% of pop are WRA, 15% of them use contraceptive incl. 5% will use IUD | D12: ='Results Dashboard'!S41 -> 0 | E12: ='Results Dashboard'!U41 -> 0 | F12: ='Results Dashboard'!W41 -> 0 | G12: 0 | H12: =D12*281 -> 0 | I12: =D12*14 -> 0 | J12: 0 | K12: =E12*281 -> 0 | L12: =E12*14 -> 0 | M12: 0 | N12: =F12*281 -> 0 | O12: =F12*14 -> 0
A13: RH KIT 8 | B13: Management of Complications of Miscarriage | C13: 20 of deliveries at facilities will have a miscarriage (spontaneous abortion or complications of unsafe abortion) | D13: ='Results Dashboard'!S43 -> 0 | E13: ='Results Dashboard'!U43 -> 0 | F13: ='Results Dashboard'!W43 -> 0 | G13: 0 | H13: =D13*300 -> 0 | I13: =D13*60 -> 0 | J13: 0 | K13: =E13*300 -> 0 | L13: =E13*60 -> 0 | M13: 0 | N13: =F13*300 -> 0 | O13: =F13*60 -> 0
A14: RH KIT 9 | B14: Suture of Tears (Cervical & Vaginal) and Vaginal Examination | C14: 15% of women who will give birth will need suturing (300 *15%) | D14: ='Results Dashboard'!S49 -> 0 | E14: ='Results Dashboard'!U49 -> 0 | F14: ='Results Dashboard'!W49 -> 0 | G14: 0 | H14: =D14*300 -> 0 | I14: =D14*45 -> 0 | J14: 0 | K14: =E14*300 -> 0 | L14: =E14*45 -> 0 | M14: 0 | N14: =F14*300 -> 0 | O14: =F14*45 -> 0
A15: RH KIT 10 | B15: Vacuum Extraction Delivery | C15: EQUIPMENT - Assisted deliveries that need vacuum extraction (16% = up to 4% will have a ventouse delivery & (8-12)% will have a forceps delivery) | D15: ='Results Dashboard'!S51 -> 0 | E15: ='Results Dashboard'!U51 -> 0 | F15: ='Results Dashboard'!W51 -> 0 | G15: 0 | H15: =D15*300 -> 0 | I15: =D15*48 -> 0 | J15: 0 | K15: =E15*300 -> 0 | L15: =E15*48 -> 0 | M15: 0 | N15: =F15*300 -> 0 | O15: =F15*48 -> 0
A16: RH KIT 11A | B16: Reusable Equipment | C16: EQUIPMENT - 4% is CBR, 1,500 deliveries in 3 months, 5% of these will require caesarian Section (75 women): additionally, about 30 women will need other emergency care (30). | D16: ='Results Dashboard'!S53 -> 0 | E16: ='Results Dashboard'!U53 -> 0 | F16: ='Results Dashboard'!W53 -> 0 | G16: =D16*150000 -> 0 | H16: =D16*1500 -> 0 | I16: =D16*105 -> 0 | J16: =E16*150000 -> 0 | K16: =E16*1500 -> 0 | L16: =E16*105 -> 0 | M16: =F16*150000 -> 0 | N16: =F16*1500 -> 0 | O16: =F16*105 -> 0
A17: RH KIT 11B | B17: Drugs & Disposable Equipment | C17: 4% is CBR, 1,500 deliveries in 3 months, 5% of these will require Caesarian Section (75 women): additionally, about 30 women will need other emergency care (30) | D17: ='Results Dashboard'!S55 -> 0 | E17: ='Results Dashboard'!U55 -> 0 | F17: ='Results Dashboard'!W55 -> 0 | G17: =D17*150000 -> 0 | H17: =D17*1500 -> 0 | I17: =D17*105 -> 0 | J17: =E17*150000 -> 0 | K17: =E17*1500 -> 0 | L17: =E17*105 -> 0 | M17: =F17*150000 -> 0 | N17: =F17*1500 -> 0 | O17: =F17*105 -> 0
A18: RHKIT 12 | B18: Blood Transfusion | C18: For safe blood transfusion / to be used only by a trained laboratory technician with access to basic laboratory facilities | D18: ='Results Dashboard'!S57 -> 0 | E18: ='Results Dashboard'!U57 -> 0 | F18: ='Results Dashboard'!W57 -> 0 | G18: =D18*150000 -> 0 | H18: =D18*1500 -> 0 | I18: =D18*105 -> 0 | J18: =E18*150000 -> 0 | K18: =E18*1500 -> 0 | L18: =E18*105 -> 0 | M18: =F18*150000 -> 0 | N18: =F18*1500 -> 0 | O18: =F18*105 -> 0

Sheet Hidden (hidden)
A1: Results Dashboard
C3: Column Labels
C4: KIT 1A | E4: KIT 1A Total | F4: Grand Total
B5: Values | C5: Demographic | D5: Logistics
B6: Now - 3 Months | C6: 0 | D6: 0 | E6: 0 | F6: 0
B7: 3 - 6 Months | C7: 0 | D7: 0 | E7: 0 | F7: 0
B8: 6 - 9 Months | C8: 0 | D8: 0 | E8: 0 | F8: 0
C11: Column Labels
C12: KIT 1A | D12: KIT 1A Total | E12: Grand Total
B13: Values | C13: Demographic
B14: Now - 3 Months | C14: 0 | D14: 0 | E14: 0
B15: 3 - 6 Months | C15: 0 | D15: 0 | E15: 0
B16: 6 - 9 Months | C16: 0 | D16: 0 | E16: 0
G17: Kit Type | H17: Year One | I17: Year Two | J17: Year Three
G18: Kit 1A | H18: ='Commodity estimates'!S4 -> 0 | I18: ='Commodity estimates'!T4 -> 0 | J18: ='Commodity estimates'!U4 -> 0
G19: Kit 1B | H19: ='Commodity estimates'!S7 -> 0 | I19: ='Commodity estimates'!T7 -> 0 | J19: ='Commodity estimates'!U7 -> 0
G20: Kit 2A | H20: =MAX('Commodity estimates'!S10:S17) -> 0 | I20: =MAX('Commodity estimates'!T10:T17) -> 0 | J20: =MAX('Commodity estimates'!U10:U17) -> 0
G21: Kit 2B | H21: =MAX('Commodity estimates'!S26:S30) -> 0 | I21: =MAX('Commodity estimates'!T26:T30) -> 0 | J21: =MAX('Commodity estimates'!U26:U30) -> 0
G22: Kit 3 | H22: =MAX('Commodity estimates'!S33:S44) -> 0 | I22: =MAX('Commodity estimates'!T33:T44) -> 0 | J22: =MAX('Commodity estimates'!U33:U44) -> 0
G23: Kit 4 | H23: =MAX('Commodity estimates'!S47:S55) -> 0 | I23: =MAX('Commodity estimates'!T47:T55) -> 0 | J23: =MAX('Commodity estimates'!U47:U55) -> 0
G24: Kit 5 | H24: =MAX('Commodity estimates'!S61:S83) -> 0 | I24: =MAX('Commodity estimates'!T61:T83) -> 0 | J24: =MAX('Commodity estimates'!U61:U83) -> 0
G25: Kit 6A | H25: =MAX('Commodity estimates'!S86:S113) -> 0 | I25: =MAX('Commodity estimates'!T86:T113) -> 0 | J25: =MAX('Commodity estimates'!U86:U113) -> 0
G26: Kit 6B | H26: =MAX('Commodity estimates'!S117:S168) -> 0 | I26: =MAX('Commodity estimates'!T117:T168) -> 0 | J26: =MAX('Commodity estimates'!U117:U168) -> 0
G27: Kit 7 | H27: =MAX('Commodity estimates'!S178:S195) -> 0 | I27: =MAX('Commodity estimates'!T178:T195) -> 0 | J27: =MAX('Commodity estimates'!U178:U195) -> 0
G28: Kit 8 | H28: =MAX('Commodity estimates'!S198:S236) -> 0 | I28: =MAX('Commodity estimates'!T198:T236) -> 0 | J28: =MAX('Commodity estimates'!U198:U236) -> 0
G29: Kit 9 | H29: =MAX('Commodity estimates'!S245:S262) -> 0 | I29: =MAX('Commodity estimates'!T245:T262) -> 0 | J29: =MAX('Commodity estimates'!U245:U262) -> 0
G30: Kit 10 | H30: =MAX('Commodity estimates'!S265) -> 0 | I30: =MAX('Commodity estimates'!T265) -> 0 | J30: =MAX('Commodity estimates'!U265) -> 0
G31: Kit 11A | H31: =MAX('Commodity estimates'!S267:S309) -> 0 | I31: =MAX('Commodity estimates'!T267:T309) -> 0 | J31: =MAX('Commodity estimates'!U267:U309) -> 0
G32: Kit 11B | H32: =MAX('Commodity estimates'!S311:S375) -> 0 | I32: =MAX('Commodity estimates'!T311:T375) -> 0 | J32: =MAX('Commodity estimates'!U311:U375) -> 0
G33: Kit 12 | H33: =MAX('Commodity estimates'!S378:S395) -> 0 | I33: =MAX('Commodity estimates'!T378:T395) -> 0 | J33: =MAX('Commodity estimates'!U378:U395) -> 0
G34: TOTAL | H34: =SUM(H18:H33) -> 0 | I34: =SUM(I18:I33) -> 0 | J34: =SUM(J18:J33) -> 0
A38: Advocacy Dashboard
B40: First 3 Months | C40: Months 3-6 | D40: Months 6-9
A41: ='Advocacy estimates '!B3 -> Male Condoms | B41: ='Advocacy estimates '!I3 -> 0 | C41: ='Advocacy estimates '!L3 -> 0 | D41: ='Advocacy estimates '!O3 -> 0
A42: ='Advocacy estimates '!B4 -> Female Condoms | B42: ='Advocacy estimates '!I4 -> 0 | C42: ='Advocacy estimates '!L4 -> 0 | D42: ='Advocacy estimates '!O4 -> 0
A43: ='Advocacy estimates '!B5 -> Clean Delivery - Individual | B43: ='Advocacy estimates '!I5 -> 0 | C43: ='Advocacy estimates '!L5 -> 0 | D43: ='Advocacy estimates '!O5 -> 0
A44: ='Advocacy estimates '!B6 -> Clean Delivery - For Use By Birth Attendants | B44: ='Advocacy estimates '!I6 -> 0 | C44: ='Advocacy estimates '!L6 -> 0 | D44: ='Advocacy estimates '!O6 -> 0
A45: ='Advocacy estimates '!B7 -> Rape Treatment | B45: ='Advocacy estimates '!I7 -> 0 | C45: ='Advocacy estimates '!L7 -> 0 | D45: ='Advocacy estimates '!O7 -> 0
A46: ='Advocacy estimates '!B8 -> Oral & Injectable Contraception | B46: ='Advocacy estimates '!I8 -> 0 | C46: ='Advocacy estimates '!L8 -> 0 | D46: ='Advocacy estimates '!O8 -> 0
A47: ='Advocacy estimates '!B9 -> Treatment of Sexually Transmitted Infections | B47: ='Advocacy estimates '!I9 -> 0 | C47: ='Advocacy estimates '!L9 -> 0 | D47: ='Advocacy estimates '!O9 -> 0
A48: ='Advocacy estimates '!B10 -> Clinical Delivery Assistance - Reusable Equipment | B48: ='Advocacy estimates '!I10 -> 0 | C48: ='Advocacy estimates '!L10 -> 0 | D48: ='Advocacy estimates '!O10 -> 0
A49: ='Advocacy estimates '!B11 -> Clinical Delivery Assistance - Drug & Disposable Equipment | B49: ='Advocacy estimates '!I11 -> 0 | C49: ='Advocacy estimates '!L11 -> 0 | D49: ='Advocacy estimates '!O11 -> 0
A50: ='Advocacy estimates '!B12 -> Intra Uterine Devices (IUD) | B50: ='Advocacy estimates '!I12 -> 0 | C50: ='Advocacy estimates '!L12 -> 0 | D50: ='Advocacy estimates '!O12 -> 0
A51: ='Advocacy estimates '!B13 -> Management of Complications of Miscarriage | B51: ='Advocacy estimates '!I13 -> 0 | C51: ='Advocacy estimates '!L13 -> 0 | D51: ='Advocacy estimates '!O13 -> 0
A52: ='Advocacy estimates '!B14 -> Suture of Tears (Cervical & Vaginal) and Vaginal Examination | B52: ='Advocacy estimates '!I14 -> 0 | C52: ='Advocacy estimates '!L14 -> 0 | D52: ='Advocacy estimates '!O14 -> 0
A53: ='Advocacy estimates '!B15 -> Vacuum Extraction Delivery | B53: ='Advocacy estimates '!I15 -> 0 | C53: ='Advocacy estimates '!L15 -> 0 | D53: ='Advocacy estimates '!O15 -> 0
A54: ='Advocacy estimates '!B16 -> Reusable Equipment | B54: ='Advocacy estimates '!I16 -> 0 | C54: ='Advocacy estimates '!L16 -> 0 | D54: ='Advocacy estimates '!O16 -> 0
A55: ='Advocacy estimates '!B17 -> Drugs & Disposable Equipment | B55: ='Advocacy estimates '!I17 -> 0 | C55: ='Advocacy estimates '!L17 -> 0 | D55: ='Advocacy estimates '!O17 -> 0
A56: ='Advocacy estimates '!B18 -> Blood Transfusion | B56: ='Advocacy estimates '!I18 -> 0 | C56: ='Advocacy estimates '!L18 -> 0 | D56: ='Advocacy estimates '!O18 -> 0
A58: Male Condoms | B58: ='Commodity estimates'!P4 -> 0 | C58: ='Commodity estimates'!Q4 -> 0 | D58: ='Commodity estimates'!R4 -> 0
A59: Female Condoms | B59: ='Commodity estimates'!P7 -> 0 | C59: ='Commodity estimates'!Q7 -> 0 | D59: ='Commodity estimates'!R7 -> 0
A60: Clean Delivery - Individual | B60: =MAX('Commodity estimates'!P10:P17) -> 0 | C60: =MAX('Commodity estimates'!Q10:Q17) -> 0 | D60: =MAX('Commodity estimates'!R10:R17) -> 0
A61: Clean Delivery - For Use By Birth Attendants | B61: =MAX('Commodity estimates'!P26:P30) -> 0 | C61: =MAX('Commodity estimates'!Q26:Q30) -> 0 | D61: =MAX('Commodity estimates'!R26:R30) -> 0
A62: Rape Treatment | B62: =MAX('Commodity estimates'!P33:P44) -> 0 | C62: =MAX('Commodity estimates'!Q33:Q44) -> 0 | D62: =MAX('Commodity estimates'!R33:R44) -> 0
A63: Oral & Injectable Contraception | B63: =MAX('Commodity estimates'!P47:P55) -> 0 | C63: =MAX('Commodity estimates'!Q47:Q55) -> 0 | D63: =MAX('Commodity estimates'!R47:R55) -> 0
A64: Treatment of Sexually Transmitted Infections | B64: =MAX('Commodity estimates'!P61:P83) -> 0 | C64: =MAX('Commodity estimates'!Q61:Q83) -> 0 | D64: =MAX('Commodity estimates'!R61:R83) -> 0
A65: Clinical Delivery Assistance - Reusable Equipment | B65: =MAX('Commodity estimates'!P86:P113) -> 0 | C65: =MAX('Commodity estimates'!Q86:Q113) -> 0 | D65: =MAX('Commodity estimates'!R86:R113) -> 0
A66: Clinical Delivery Assistance - Drug & Disposable Equipment | B66: =MAX('Commodity estimates'!P117:P168) -> 0 | C66: =MAX('Commodity estimates'!Q117:Q168) -> 0 | D66: =MAX('Commodity estimates'!R117:R168) -> 0
A67: Intra Uterine Devices (IUD) | B67: =MAX('Commodity estimates'!P178:P195) -> 0 | C67: =MAX('Commodity estimates'!Q178:Q195) -> 0 | D67: =MAX('Commodity estimates'!R178:R195) -> 0
A68: Management of Complications of Miscarriage | B68: =MAX('Commodity estimates'!P198:P236) -> 0 | C68: =MAX('Commodity estimates'!Q198:Q236) -> 0 | D68: =MAX('Commodity estimates'!R198:R236) -> 0
A69: Suture of Tears (Cervical & Vaginal) and Vaginal Examination | B69: =MAX('Commodity estimates'!P245:P262) -> 0 | C69: =MAX('Commodity estimates'!Q245:Q262) -> 0 | D69: =MAX('Commodity estimates'!R245:R262) -> 0
A70: Vacuum Extraction Delivery | B70: ='Commodity estimates'!P265 -> 0 | C70: ='Commodity estimates'!Q265 -> 0 | D70: ='Commodity estimates'!R265 -> 0
A71: Reusable Equipment | B71: =MAX('Commodity estimates'!P267:P309) -> 0 | C71: =MAX('Commodity estimates'!Q267:Q309) -> 0 | D71: =MAX('Commodity estimates'!R267:R309) -> 0
A72: Drugs & Disposable Equipment | B72: =MAX('Commodity estimates'!P311:P375) -> 0 | C72: =MAX('Commodity estimates'!Q311:Q375) -> 0 | D72: =MAX('Commodity estimates'!R311:R375) -> 0
A73: Blood Transfusion | B73: =MAX('Commodity estimates'!P378:P395) -> 0 | C73: =MAX('Commodity estimates'!Q378:Q395) -> 0 | D73: =MAX('Commodity estimates'!R378:R395) -> 0
